{"text_format":"1","workbook":"xlsx","n_sheets":4,"sheets":["Main","data","التقرير","ايصال"],"not_rendered":{"charts":0,"images":7,"macros":1,"external_links":0,"defined_names":7,"comments":0,"pivot_tables":0},"unopened":[],"bounds":{"document_bytes":16777216,"sheet_cells":100000,"rows_first":2000,"rows_last":500,"rows_between":2000,"halvings":0,"cell_chars":16384,"cell_head_chars":4096},"cells_cut":0,"cells_raw":0,"read":"whole","date_system":"1900"}

{"sheet":"Main","index":0,"n_rows":10,"n_cols":8,"rows_kept":10,"cut":false,"hidden":true,"merged":[]}
[]
[]
[null,null,null,null,null,null,null," بِسْمِ اللَّهِ الرَّحْمَنِ الرَّحِيمِ"]
[null,null,null,null,null,null,null," الْحَمْدُ لِلَّهِ رَبِّ الْعَالَمِينَ"]
[null,null,null,null,null,null,null,"والصلاة والسلام على سيدنا محمد "]
[null,null,null,null,null,null,null,"اشرف الخلق والمرسلين"]
[null,null,null,null,null,null,null,"صلى الله عليه وسلم"]
[null,null,null,null,null,null,null,"منتدى اوفيسنا"]
[null,null,null,null,null,null,null,"مع تحيات "]
[null,null,null,null,null,null,null,"وجيه شرف الدين"]

{"sheet":"data","index":1,"n_rows":3088,"n_cols":234,"rows_kept":3088,"cut":false,"hidden":false,"merged":[]}
[null,null,null,null,null,null,null,null,null,null,null,null,null,null,null,null,null,null,null,null,null,null,null,null,null,null,null,null,null,null,null,null,null,null,null,null,null,null,null,null,null,null,null,null,null,null,null,null,null,null,null,null,null,null,null,null,null,null,null,null,null,null,null,null,null,null,null,null,null,null,null,null,null,null,null,null,null,null,null,null,null,null,null,null,null,null,null,null,null,null,null,null,null,null,null,null,null,null,null,null,null,null,null,null,null,null,"سنة السداد",null,null,null,null,null,null,null,null,null,null,null,null,null,null,null,null,null,null,null,null,null,null,null,null,null,null,null,null,null,null,null,null,null,null,null,null,null,null,null,null,null,null,null,null,null,null,null,null,null,null,null,null,null,null,null,null,null,null,null,null,null,null,null,null,null,null,null,null,null,null,null,null,null,null,null,null,null,null,null,null,null,null,null,null,null,null,null,null,null,null,null,null,null,null,null,null,null,null,null,null,null,null,null,null,null,null,null,null,null,null,null,null,null,null,null,null,null,null,null,null,null,null,null,null,null,null,"سنة السداد"]
[null,null,null,null,null,null,null,null,null,null,null,null,null,null,null,null,null,null,null,null,null,null,null,null,null,null,31605201071231,{"$f":"IFERROR(IF(ISODD(MID($AA$2,13,1)),\"ذكر\",\"انثى\"),\"\")","v":"ذكر"},{"$f":"IFERROR(DATE(IF(LEFT(AA2,1)*1=3,20,19)&MID(AA2,2,2),MID(AA2,4,2),MID(AA2,6,2)),0)","v":"2016-05-20"},{"$f":"IFERROR(DATEDIF(AC2,TODAY(),\"md\"),0)","v":14},{"$f":"IFERROR(DATEDIF(AC2,TODAY(),\"ym\"),0)","v":5},{"$f":"IFERROR(DATEDIF(AC2,TODAY(),\"y\"),0)","v":6},{"$f":"AF2&\" \"&\"سنة\"&\" \"&AE2&\" \"&\"شهر\"&\" \"&AD2&\" \"&\"يوم\"","v":"6 سنة 5 شهر 14 يوم"},null,null,null,null,null,null,null,null,null,null,null,null,null,null,null,null,null,null,null,null,null,null,null,null,null,null,null,null,null,null,null,null,null,null,null,null,null,null,null,null,null,null,null,null,null,null,null,null,null,null,null,null,null,null,null,null,null,null,null,null,null,null,null,null,null,null,null,null,null,null,null,null,null,2018,null,null,null,null,null,null,null,null,null,null,null,null,null,null,null,null,null,null,null,null,null,null,null,null,null,null,null,null,null,null,null,null,null,null,null,null,null,null,null,null,null,null,null,null,null,null,null,null,null,null,null,null,null,null,null,null,null,null,null,null,null,null,null,null,null,null,null,null,null,null,null,null,null,null,null,null,null,null,null,null,null,null,null,null,null,null,null,null,null,null,null,null,null,null,null,null,null,null,null,null,null,null,null,null,null,null,null,null,null,null,null,null,null,null,null,null,null,null,null,null,null,null,null,null,null,null,2018]
[null,null,null,null,null,null,null,null,null,null,null,null,null,null,null,null,null,null,null,null,null,null,null,null,null,null,"احمد محمد محمود على",{"$f":"IFERROR(MID(AA3,FIND(\" \",AA3),100),\"\")","v":" محمد محمود على"}]
[]
["م","الاسم","كود طالب","تاريخ تقديم الملف","الرقم القومى","اسم الاب","الوظيفة","محل الإقامة","التليفون","رقم الايصال","تاريخ السداد المصروفات","ملاحظات","النوع",null,null,null,null,"سنة السداد"]
[1,"احمد محمد محمود على",100,"2022-11-03",31605201071231," محمد محمود على","بالتربية والتعليم","جمهورية مصر العربية",1111111111,265412098,"2022-11-03",null,{"$f":"IFERROR(IF(ISODD(MID(E6,13,1)),\"ذكر\",\"انثى\"),\"\")","v":"ذكر"},null,null,null," "]
[null,null,null,null,null,null,null,null,null,null,null,null,{"$f":"IFERROR(IF(ISODD(MID(E7,13,1)),\"ذكر\",\"انثى\"),\"\")","v":""}]
[null,null,null,null,null,null,null,null,null,null,null,null,""]
[null,null,null,null,null,null,null,null,null,null,null,null,""]
[null,null,null,null,null,null,null,null,null,null,null,null,""]
[null,null,null,null,null,null,null,null,null,null,null,null,""]
[null,null,null,null,null,null,null,null,null,null,null,null,""]
[null,null,null,null,null,null,null,null,null,null,null,null,""]
[null,null,null,null,null,null,null,null,null,null,null,null,""]
[null,null,null,null,null,null,null,null,null,null,null,null,""]
[null,null,null,null,null,null,null,null,null,null,null,null,""]
[null,null,null,null,null,null,null,null,null,null,null,null,""]
[null,null,null,null,null,null,null,null,null,null,null,null,""]
[null,null,null,null,null,null,null,null,null,null,null,null,""]
[null,null,null,null,null,null,null,null,null,null,null,null,"",null,null,null,null,{"$f":"YEAR(K20)","v":1900}]
[null,null,null,null,null,null,null,null,null,null,null,null,"",null,null,null,null,1900]
[null,null,null,null,null,null,null,null,null,null,null,null,"",null,null,null,null,1900]
[null,null,null,null,null,null,null,null,null,null,null,null,"",null,null,null,null,1900]
[null,null,null,null,null,null,null,null,null,null,null,null,"",null,null,null,null,1900]
[null,null,null,null,null,null,null,null,null,null,null,null,"",null,null,null,null,1900]
[null,null,null,null,null,null,null,null,null,null,null,null,"",null,null,null,null,1900]
[null,null,null,null,null,null,null,null,null,null,null,null,"",null,null,null,null,1900]
[null,null,null,null,null,null,null,null,null,null,null,null,"",null,null,null,null,1900]
[null,null,null,null,null,null,null,null,null,null,null,null,"",null,null,null,null,1900]
[null,null,null,null,null,null,null,null,null,null,null,null,"",null,null,null,null,1900]
[null,null,null,null,null,null,null,null,null,null,null,null,"",null,null,null,null,1900]
[null,null,null,null,null,null,null,null,null,null,null,null,"",null,null,null,null,1900]
[null,null,null,null,null,null,null,null,null,null,null,null,"",null,null,null,null,1900]
[null,null,null,null,null,null,null,null,null,null,null,null,"",null,null,null,null,1900]
[null,null,null,null,null,null,null,null,null,null,null,null,"",null,null,null,null,1900]
[null,null,null,null,null,null,null,null,null,null,null,null,"",null,null,null,null,1900]
[null,null,null,null,null,null,null,null,null,null,null,null,"",null,null,null,null,1900]
[null,null,null,null,null,null,null,null,null,null,null,null,"",null,null,null,null,1900]
[null,null,null,null,null,null,null,null,null,null,null,null,"",null,null,null,null,1900]
[null,null,null,null,null,null,null,null,null,null,null,null,"",null,null,null,null,1900]
[null,null,null,null,null,null,null,null,null,null,null,null,"",null,null,null,null,1900]
[null,null,null,null,null,null,null,null,null,null,null,null,"",null,null,null,null,1900]
[null,null,null,null,null,null,null,null,null,null,null,null,"",null,null,null,null,1900]
[null,null,null,null,null,null,null,null,null,null,null,null,"",null,null,null,null,1900]
[null,null,null,null,null,null,null,null,null,null,null,null,"",null,null,null,null,1900]
[null,null,null,null,null,null,null,null,null,null,null,null,"",null,null,null,null,1900]
[null,null,null,null,null,null,null,null,null,null,null,null,"",null,null,null,null,1900]
[null,null,null,null,null,null,null,null,null,null,null,null,"",null,null,null,null,1900]
[null,null,null,null,null,null,null,null,null,null,null,null,"",null,null,null,null,1900]
[null,null,null,null,null,null,null,null,null,null,null,null,"",null,null,null,null,1900]
[null,null,null,null,null,null,null,null,null,null,null,null,"",null,null,null,null,1900]
[null,null,null,null,null,null,null,null,null,null,null,null,"",null,null,null,null,1900]
[null,null,null,null,null,null,null,null,null,null,null,null,"",null,null,null,null,1900]
[null,null,null,null,null,null,null,null,null,null,null,null,"",null,null,null,null,1900]
[null,null,null,null,null,null,null,null,null,null,null,null,"",null,null,null,null,1900]
[null,null,null,null,null,null,null,null,null,null,null,null,"",null,null,null,null,1900]
[null,null,null,null,null,null,null,null,null,null,null,null,"",null,null,null,null,1900]
[null,null,null,null,null,null,null,null,null,null,null,null,"",null,null,null,null,1900]
[null,null,null,null,null,null,null,null,null,null,null,null,"",null,null,null,null,1900]
[null,null,null,null,null,null,null,null,null,null,null,null,"",null,null,null,null,1900]
[null,null,null,null,null,null,null,null,null,null,null,null,"",null,null,null,null,1900]
[null,null,null,null,null,null,null,null,null,null,null,null,"",null,null,null,null,1900]
[null,null,null,null,null,null,null,null,null,null,null,null,"",null,null,null,null,1900]
[null,null,null,null,null,null,null,null,null,null,null,null,"",null,null,null,null,1900]
[null,null,null,null,null,null,null,null,null,null,null,null,"",null,null,null,null,1900]
[null,null,null,null,null,null,null,null,null,null,null,null,"",null,null,null,null,1900]
[null,null,null,null,null,null,null,null,null,null,null,null,"",null,null,null,null,1900]
[null,null,null,null,null,null,null,null,null,null,null,null,"",null,null,null,null,1900]
[null,null,null,null,null,null,null,null,null,null,null,null,"",null,null,null,null,1900]
[null,null,null,null,null,null,null,null,null,null,null,null,"",null,null,null,null,{"$f":"YEAR(K70)","v":1900}]
[null,null,null,null,null,null,null,null,null,null,null,null,{"$f":"IFERROR(IF(ISODD(MID(E71,13,1)),\"ذكر\",\"انثى\"),\"\")","v":""},null,null,null,null,1900]
[null,null,null,null,null,null,null,null,null,null,null,null,"",null,null,null,null,1900]
[null,null,null,null,null,null,null,null,null,null,null,null,"",null,null,null,null,1900]
[null,null,null,null,null,null,null,null,null,null,null,null,"",null,null,null,null,1900]
[null,null,null,null,null,null,null,null,null,null,null,null,"",null,null,null,null,1900]
[null,null,null,null,null,null,null,null,null,null,null,null,"",null,null,null,null,1900]
[null,null,null,null,null,null,null,null,null,null,null,null,"",null,null,null,null,1900]
[null,null,null,null,null,null,null,null,null,null,null,null,"",null,null,null,null,1900]
[null,null,null,null,null,null,null,null,null,null,null,null,"",null,null,null,null,1900]
[null,null,null,null,null,null,null,null,null,null,null,null,"",null,null,null,null,1900]
[null,null,null,null,null,null,null,null,null,null,null,null,"",null,null,null,null,1900]
[null,null,null,null,null,null,null,null,null,null,null,null,"",null,null,null,null,1900]
[null,null,null,null,null,null,null,null,null,null,null,null,"",null,null,null,null,1900]
[null,null,null,null,null,null,null,null,null,null,null,null,"",null,null,null,null,1900]
[null,null,null,null,null,null,null,null,null,null,null,null,"",null,null,null,null,1900]
[null,null,null,null,null,null,null,null,null,null,null,null,"",null,null,null,null,1900]
[null,null,null,null,null,null,null,null,null,null,null,null,"",null,null,null,null,1900]
[null,null,null,null,null,null,null,null,null,null,null,null,"",null,null,null,null,1900]
[null,null,null,null,null,null,null,null,null,null,null,null,"",null,null,null,null,1900]
[null,null,null,null,null,null,null,null,null,null,null,null,"",null,null,null,null,1900]
[null,null,null,null,null,null,null,null,null,null,null,null,"",null,null,null,null,1900]
[null,null,null,null,null,null,null,null,null,null,null,null,"",null,null,null,null,1900]
[null,null,null,null,null,null,null,null,null,null,null,null,"",null,null,null,null,1900]
[null,null,null,null,null,null,null,null,null,null,null,null,"",null,null,null,null,1900]
[null,null,null,null,null,null,null,null,null,null,null,null,"",null,null,null,null,1900]
[null,null,null,null,null,null,null,null,null,null,null,null,"",null,null,null,null,1900]
[null,null,null,null,null,null,null,null,null,null,null,null,"",null,null,null,null,1900]
[null,null,null,null,null,null,null,null,null,null,null,null,"",null,null,null,null,1900]
[null,null,null,null,null,null,null,null,null,null,null,null,"",null,null,null,null,1900]
[null,null,null,null,null,null,null,null,null,null,null,null,"",null,null,null,null,1900]
[null,null,null,null,null,null,null,null,null,null,null,null,"",null,null,null,null,1900]
[null,null,null,null,null,null,null,null,null,null,null,null,"",null,null,null,null,1900]
[null,null,null,null,null,null,null,null,null,null,null,null,"",null,null,null,null,1900]
[null,null,null,null,null,null,null,null,null,null,null,null,"",null,null,null,null,1900]
[null,null,null,null,null,null,null,null,null,null,null,null,"",null,null,null,null,1900]
[null,null,null,null,null,null,null,null,null,null,null,null,"",null,null,null,null,1900]
[null,null,null,null,null,null,null,null,null,null,null,null,"",null,null,null,null,1900]
[null,null,null,null,null,null,null,null,null,null,null,null,"",null,null,null,null,1900]
[null,null,null,null,null,null,null,null,null,null,null,null,"",null,null,null,null,1900]
[null,null,null,null,null,null,null,null,null,null,null,null,"",null,null,null,null,1900]
[null,null,null,null,null,null,null,null,null,null,null,null,"",null,null,null,null,1900]
[null,null,null,null,null,null,null,null,null,null,null,null,"",null,null,null,null,1900]
[null,null,null,null,null,null,null,null,null,null,null,null,"",null,null,null,null,1900]
[null,null,null,null,null,null,null,null,null,null,null,null,"",null,null,null,null,1900]
[null,null,null,null,null,null,null,null,null,null,null,null,"",null,null,null,null,1900]
[null,null,null,null,null,null,null,null,null,null,null,null,"",null,null,null,null,1900]
[null,null,null,null,null,null,null,null,null,null,null,null,"",null,null,null,null,1900]
[null,null,null,null,null,null,null,null,null,null,null,null,"",null,null,null,null,1900]
[null,null,null,null,null,null,null,null,null,null,null,null,"",null,null,null,null,1900]
[null,null,null,null,null,null,null,null,null,null,null,null,"",null,null,null,null,1900]
[null,null,null,null,null,null,null,null,null,null,null,null,"",null,null,null,null,1900]
[null,null,null,null,null,null,null,null,null,null,null,null,"",null,null,null,null,1900]
[null,null,null,null,null,null,null,null,null,null,null,null,"",null,null,null,null,1900]
[null,null,null,null,null,null,null,null,null,null,null,null,"",null,null,null,null,1900]
[null,null,null,null,null,null,null,null,null,null,null,null,"",null,null,null,null,1900]
[null,null,null,null,null,null,null,null,null,null,null,null,"",null,null,null,null,1900]
[null,null,null,null,null,null,null,null,null,null,null,null,"",null,null,null,null,1900]
[null,null,null,null,null,null,null,null,null,null,null,null,"",null,null,null,null,1900]
[null,null,null,null,null,null,null,null,null,null,null,null,"",null,null,null,null,1900]
[null,null,null,null,null,null,null,null,null,null,null,null,"",null,null,null,null,1900]
[null,null,null,null,null,null,null,null,null,null,null,null,"",null,null,null,null,1900]
[null,null,null,null,null,null,null,null,null,null,null,null,"",null,null,null,null,1900]
[null,null,null,null,null,null,null,null,null,null,null,null,"",null,null,null,null,1900]
[null,null,null,null,null,null,null,null,null,null,null,null,"",null,null,null,null,{"$f":"YEAR(K134)","v":1900}]
[null,null,null,null,null,null,null,null,null,null,null,null,{"$f":"IFERROR(IF(ISODD(MID(E135,13,1)),\"ذكر\",\"انثى\"),\"\")","v":""},null,null,null,null,1900]
[null,null,null,null,null,null,null,null,null,null,null,null,"",null,null,null,null,1900]
[null,null,null,null,null,null,null,null,null,null,null,null,"",null,null,null,null,1900]
[null,null,null,null,null,null,null,null,null,null,null,null,"",null,null,null,null,1900]
[null,null,null,null,null,null,null,null,null,null,null,null,"",null,null,null,null,1900]
[null,null,null,null,null,null,null,null,null,null,null,null,"",null,null,null,null,1900]
[null,null,null,null,null,null,null,null,null,null,null,null,"",null,null,null,null,1900]
[null,null,null,null,null,null,null,null,null,null,null,null,"",null,null,null,null,1900]
[null,null,null,null,null,null,null,null,null,null,null,null,"",null,null,null,null,1900]
[null,null,null,null,null,null,null,null,null,null,null,null,"",null,null,null,null,1900]
[null,null,null,null,null,null,null,null,null,null,null,null,"",null,null,null,null,1900]
[null,null,null,null,null,null,null,null,null,null,null,null,"",null,null,null,null,1900]
[null,null,null,null,null,null,null,null,null,null,null,null,"",null,null,null,null,1900]
[null,null,null,null,null,null,null,null,null,null,null,null,"",null,null,null,null,1900]
[null,null,null,null,null,null,null,null,null,null,null,null,"",null,null,null,null,1900]
[null,null,null,null,null,null,null,null,null,null,null,null,"",null,null,null,null,1900]
[null,null,null,null,null,null,null,null,null,null,null,null,"",null,null,null,null,1900]
[null,null,null,null,null,null,null,null,null,null,null,null,"",null,null,null,null,1900]
[null,null,null,null,null,null,null,null,null,null,null,null,"",null,null,null,null,1900]
[null,null,null,null,null,null,null,null,null,null,null,null,"",null,null,null,null,1900]
[null,null,null,null,null,null,null,null,null,null,null,null,"",null,null,null,null,1900]
[null,null,null,null,null,null,null,null,null,null,null,null,"",null,null,null,null,1900]
[null,null,null,null,null,null,null,null,null,null,null,null,"",null,null,null,null,1900]
[null,null,null,null,null,null,null,null,null,null,null,null,"",null,null,null,null,1900]
[null,null,null,null,null,null,null,null,null,null,null,null,"",null,null,null,null,1900]
[null,null,null,null,null,null,null,null,null,null,null,null,"",null,null,null,null,1900]
[null,null,null,null,null,null,null,null,null,null,null,null,"",null,null,null,null,1900]
[null,null,null,null,null,null,null,null,null,null,null,null,"",null,null,null,null,1900]
[null,null,null,null,null,null,null,null,null,null,null,null,"",null,null,null,null,1900]
[null,null,null,null,null,null,null,null,null,null,null,null,"",null,null,null,null,1900]
[null,null,null,null,null,null,null,null,null,null,null,null,"",null,null,null,null,1900]
[null,null,null,null,null,null,null,null,null,null,null,null,"",null,null,null,null,1900]
[null,null,null,null,null,null,null,null,null,null,null,null,"",null,null,null,null,1900]
[null,null,null,null,null,null,null,null,null,null,null,null,"",null,null,null,null,1900]
[null,null,null,null,null,null,null,null,null,null,null,null,"",null,null,null,null,1900]
[null,null,null,null,null,null,null,null,null,null,null,null,"",null,null,null,null,1900]
[null,null,null,null,null,null,null,null,null,null,null,null,"",null,null,null,null,1900]
[null,null,null,null,null,null,null,null,null,null,null,null,"",null,null,null,null,1900]
[null,null,null,null,null,null,null,null,null,null,null,null,"",null,null,null,null,1900]
[null,null,null,null,null,null,null,null,null,null,null,null,"",null,null,null,null,1900]
[null,null,null,null,null,null,null,null,null,null,null,null,"",null,null,null,null,1900]
[null,null,null,null,null,null,null,null,null,null,null,null,"",null,null,null,null,1900]
[null,null,null,null,null,null,null,null,null,null,null,null,"",null,null,null,null,1900]
[null,null,null,null,null,null,null,null,null,null,null,null,"",null,null,null,null,1900]
[null,null,null,null,null,null,null,null,null,null,null,null,"",null,null,null,null,1900]
[null,null,null,null,null,null,null,null,null,null,null,null,"",null,null,null,null,1900]
[null,null,null,null,null,null,null,null,null,null,null,null,"",null,null,null,null,1900]
[null,null,null,null,null,null,null,null,null,null,null,null,"",null,null,null,null,1900]
[null,null,null,null,null,null,null,null,null,null,null,null,"",null,null,null,null,1900]
[null,null,null,null,null,null,null,null,null,null,null,null,"",null,null,null,null,1900]
[null,null,null,null,null,null,null,null,null,null,null,null,"",null,null,null,null,1900]
[null,null,null,null,null,null,null,null,null,null,null,null,"",null,null,null,null,1900]
[null,null,null,null,null,null,null,null,null,null,null,null,"",null,null,null,null,1900]
[null,null,null,null,null,null,null,null,null,null,null,null,"",null,null,null,null,1900]
[null,null,null,null,null,null,null,null,null,null,null,null,"",null,null,null,null,1900]
[null,null,null,null,null,null,null,null,null,null,null,null,"",null,null,null,null,1900]
[null,null,null,null,null,null,null,null,null,null,null,null,"",null,null,null,null,1900]
[null,null,null,null,null,null,null,null,null,null,null,null,"",null,null,null,null,1900]
[null,null,null,null,null,null,null,null,null,null,null,null,"",null,null,null,null,1900]
[null,null,null,null,null,null,null,null,null,null,null,null,"",null,null,null,null,1900]
[null,null,null,null,null,null,null,null,null,null,null,null,"",null,null,null,null,1900]
[null,null,null,null,null,null,null,null,null,null,null,null,"",null,null,null,null,1900]
[null,null,null,null,null,null,null,null,null,null,null,null,"",null,null,null,null,1900]
[null,null,null,null,null,null,null,null,null,null,null,null,"",null,null,null,null,{"$f":"YEAR(K198)","v":1900}]
[null,null,null,null,null,null,null,null,null,null,null,null,{"$f":"IFERROR(IF(ISODD(MID(E199,13,1)),\"ذكر\",\"انثى\"),\"\")","v":""},null,null,null,null,1900]
[null,null,null,null,null,null,null,null,null,null,null,null,"",null,null,null,null,1900]
[null,null,null,null,null,null,null,null,null,null,null,null,"",null,null,null,null,1900]
[null,null,null,null,null,null,null,null,null,null,null,null,"",null,null,null,null,1900]
[null,null,null,null,null,null,null,null,null,null,null,null,"",null,null,null,null,1900]
[null,null,null,null,null,null,null,null,null,null,null,null,"",null,null,null,null,1900]
[null,null,null,null,null,null,null,null,null,null,null,null,"",null,null,null,null,1900]
[null,null,null,null,null,null,null,null,null,null,null,null,"",null,null,null,null,1900]
[null,null,null,null,null,null,null,null,null,null,null,null,"",null,null,null,null,1900]
[null,null,null,null,null,null,null,null,null,null,null,null,"",null,null,null,null,1900]
[null,null,null,null,null,null,null,null,null,null,null,null,"",null,null,null,null,1900]
[null,null,null,null,null,null,null,null,null,null,null,null,"",null,null,null,null,1900]
[null,null,null,null,null,null,null,null,null,null,null,null,"",null,null,null,null,1900]
[null,null,null,null,null,null,null,null,null,null,null,null,"",null,null,null,null,1900]
[null,null,null,null,null,null,null,null,null,null,null,null,"",null,null,null,null,1900]
[null,null,null,null,null,null,null,null,null,null,null,null,"",null,null,null,null,1900]
[null,null,null,null,null,null,null,null,null,null,null,null,"",null,null,null,null,1900]
[null,null,null,null,null,null,null,null,null,null,null,null,"",null,null,null,null,1900]
[null,null,null,null,null,null,null,null,null,null,null,null,"",null,null,null,null,1900]
[null,null,null,null,null,null,null,null,null,null,null,null,"",null,null,null,null,1900]
[null,null,null,null,null,null,null,null,null,null,null,null,"",null,null,null,null,1900]
[null,null,null,null,null,null,null,null,null,null,null,null,"",null,null,null,null,1900]
[null,null,null,null,null,null,null,null,null,null,null,null,"",null,null,null,null,1900]
[null,null,null,null,null,null,null,null,null,null,null,null,"",null,null,null,null,1900]
[null,null,null,null,null,null,null,null,null,null,null,null,"",null,null,null,null,1900]
[null,null,null,null,null,null,null,null,null,null,null,null,"",null,null,null,null,1900]
[null,null,null,null,null,null,null,null,null,null,null,null,"",null,null,null,null,1900]
[null,null,null,null,null,null,null,null,null,null,null,null,"",null,null,null,null,1900]
[null,null,null,null,null,null,null,null,null,null,null,null,"",null,null,null,null,1900]
[null,null,null,null,null,null,null,null,null,null,null,null,"",null,null,null,null,1900]
[null,null,null,null,null,null,null,null,null,null,null,null,"",null,null,null,null,1900]
[null,null,null,null,null,null,null,null,null,null,null,null,"",null,null,null,null,1900]
[null,null,null,null,null,null,null,null,null,null,null,null,"",null,null,null,null,1900]
[null,null,null,null,null,null,null,null,null,null,null,null,"",null,null,null,null,1900]
[null,null,null,null,null,null,null,null,null,null,null,null,"",null,null,null,null,1900]
[null,null,null,null,null,null,null,null,null,null,null,null,"",null,null,null,null,1900]
[null,null,null,null,null,null,null,null,null,null,null,null,"",null,null,null,null,1900]
[null,null,null,null,null,null,null,null,null,null,null,null,"",null,null,null,null,1900]
[null,null,null,null,null,null,null,null,null,null,null,null,"",null,null,null,null,1900]
[null,null,null,null,null,null,null,null,null,null,null,null,"",null,null,null,null,1900]
[null,null,null,null,null,null,null,null,null,null,null,null,"",null,null,null,null,1900]
[null,null,null,null,null,null,null,null,null,null,null,null,"",null,null,null,null,1900]
[null,null,null,null,null,null,null,null,null,null,null,null,"",null,null,null,null,1900]
[null,null,null,null,null,null,null,null,null,null,null,null,"",null,null,null,null,1900]
[null,null,null,null,null,null,null,null,null,null,null,null,"",null,null,null,null,1900]
[null,null,null,null,null,null,null,null,null,null,null,null,"",null,null,null,null,1900]
[null,null,null,null,null,null,null,null,null,null,null,null,"",null,null,null,null,1900]
[null,null,null,null,null,null,null,null,null,null,null,null,"",null,null,null,null,1900]
[null,null,null,null,null,null,null,null,null,null,null,null,"",null,null,null,null,1900]
[null,null,null,null,null,null,null,null,null,null,null,null,"",null,null,null,null,1900]
[null,null,null,null,null,null,null,null,null,null,null,null,"",null,null,null,null,1900]
[null,null,null,null,null,null,null,null,null,null,null,null,"",null,null,null,null,1900]
[null,null,null,null,null,null,null,null,null,null,null,null,"",null,null,null,null,1900]
[null,null,null,null,null,null,null,null,null,null,null,null,"",null,null,null,null,1900]
[null,null,null,null,null,null,null,null,null,null,null,null,"",null,null,null,null,1900]
[null,null,null,null,null,null,null,null,null,null,null,null,"",null,null,null,null,1900]
[null,null,null,null,null,null,null,null,null,null,null,null,"",null,null,null,null,1900]
[null,null,null,null,null,null,null,null,null,null,null,null,"",null,null,null,null,1900]
[null,null,null,null,null,null,null,null,null,null,null,null,"",null,null,null,null,1900]
[null,null,null,null,null,null,null,null,null,null,null,null,"",null,null,null,null,1900]
[null,null,null,null,null,null,null,null,null,null,null,null,"",null,null,null,null,1900]
[null,null,null,null,null,null,null,null,null,null,null,null,"",null,null,null,null,1900]
[null,null,null,null,null,null,null,null,null,null,null,null,"",null,null,null,null,1900]
[null,null,null,null,null,null,null,null,null,null,null,null,"",null,null,null,null,{"$f":"YEAR(K262)","v":1900}]
[null,null,null,null,null,null,null,null,null,null,null,null,{"$f":"IFERROR(IF(ISODD(MID(E263,13,1)),\"ذكر\",\"انثى\"),\"\")","v":""},null,null,null,null,1900]
[null,null,null,null,null,null,null,null,null,null,null,null,"",null,null,null,null,1900]
[null,null,null,null,null,null,null,null,null,null,null,null,"",null,null,null,null,1900]
[null,null,null,null,null,null,null,null,null,null,null,null,"",null,null,null,null,1900]
[null,null,null,null,null,null,null,null,null,null,null,null,"",null,null,null,null,1900]
[null,null,null,null,null,null,null,null,null,null,null,null,"",null,null,null,null,1900]
[null,null,null,null,null,null,null,null,null,null,null,null,"",null,null,null,null,1900]
[null,null,null,null,null,null,null,null,null,null,null,null,"",null,null,null,null,1900]
[null,null,null,null,null,null,null,null,null,null,null,null,"",null,null,null,null,1900]
[null,null,null,null,null,null,null,null,null,null,null,null,"",null,null,null,null,1900]
[null,null,null,null,null,null,null,null,null,null,null,null,"",null,null,null,null,1900]
[null,null,null,null,null,null,null,null,null,null,null,null,"",null,null,null,null,1900]
[null,null,null,null,null,null,null,null,null,null,null,null,"",null,null,null,null,1900]
[null,null,null,null,null,null,null,null,null,null,null,null,"",null,null,null,null,1900]
[null,null,null,null,null,null,null,null,null,null,null,null,"",null,null,null,null,1900]
[null,null,null,null,null,null,null,null,null,null,null,null,"",null,null,null,null,1900]
[null,null,null,null,null,null,null,null,null,null,null,null,"",null,null,null,null,1900]
[null,null,null,null,null,null,null,null,null,null,null,null,"",null,null,null,null,1900]
[null,null,null,null,null,null,null,null,null,null,null,null,"",null,null,null,null,1900]
[null,null,null,null,null,null,null,null,null,null,null,null,"",null,null,null,null,1900]
[null,null,null,null,null,null,null,null,null,null,null,null,"",null,null,null,null,1900]
[null,null,null,null,null,null,null,null,null,null,null,null,"",null,null,null,null,1900]
[null,null,null,null,null,null,null,null,null,null,null,null,"",null,null,null,null,1900]
[null,null,null,null,null,null,null,null,null,null,null,null,"",null,null,null,null,1900]
[null,null,null,null,null,null,null,null,null,null,null,null,"",null,null,null,null,1900]
[null,null,null,null,null,null,null,null,null,null,null,null,"",null,null,null,null,1900]
[null,null,null,null,null,null,null,null,null,null,null,null,"",null,null,null,null,1900]
[null,null,null,null,null,null,null,null,null,null,null,null,"",null,null,null,null,1900]
[null,null,null,null,null,null,null,null,null,null,null,null,"",null,null,null,null,1900]
[null,null,null,null,null,null,null,null,null,null,null,null,"",null,null,null,null,1900]
[null,null,null,null,null,null,null,null,null,null,null,null,"",null,null,null,null,1900]
[null,null,null,null,null,null,null,null,null,null,null,null,"",null,null,null,null,1900]
[null,null,null,null,null,null,null,null,null,null,null,null,"",null,null,null,null,1900]
[null,null,null,null,null,null,null,null,null,null,null,null,"",null,null,null,null,1900]
[null,null,null,null,null,null,null,null,null,null,null,null,"",null,null,null,null,1900]
[null,null,null,null,null,null,null,null,null,null,null,null,"",null,null,null,null,1900]
[null,null,null,null,null,null,null,null,null,null,null,null,"",null,null,null,null,1900]
[null,null,null,null,null,null,null,null,null,null,null,null,"",null,null,null,null,1900]
[null,null,null,null,null,null,null,null,null,null,null,null,"",null,null,null,null,1900]
[null,null,null,null,null,null,null,null,null,null,null,null,"",null,null,null,null,1900]
[null,null,null,null,null,null,null,null,null,null,null,null,"",null,null,null,null,1900]
[null,null,null,null,null,null,null,null,null,null,null,null,"",null,null,null,null,1900]
[null,null,null,null,null,null,null,null,null,null,null,null,"",null,null,null,null,1900]
[null,null,null,null,null,null,null,null,null,null,null,null,"",null,null,null,null,1900]
[null,null,null,null,null,null,null,null,null,null,null,null,"",null,null,null,null,1900]
[null,null,null,null,null,null,null,null,null,null,null,null,"",null,null,null,null,1900]
[null,null,null,null,null,null,null,null,null,null,null,null,"",null,null,null,null,1900]
[null,null,null,null,null,null,null,null,null,null,null,null,"",null,null,null,null,1900]
[null,null,null,null,null,null,null,null,null,null,null,null,"",null,null,null,null,1900]
[null,null,null,null,null,null,null,null,null,null,null,null,"",null,null,null,null,1900]
[null,null,null,null,null,null,null,null,null,null,null,null,"",null,null,null,null,1900]
[null,null,null,null,null,null,null,null,null,null,null,null,"",null,null,null,null,1900]
[null,null,null,null,null,null,null,null,null,null,null,null,"",null,null,null,null,1900]
[null,null,null,null,null,null,null,null,null,null,null,null,"",null,null,null,null,1900]
[null,null,null,null,null,null,null,null,null,null,null,null,"",null,null,null,null,1900]
[null,null,null,null,null,null,null,null,null,null,null,null,"",null,null,null,null,1900]
[null,null,null,null,null,null,null,null,null,null,null,null,"",null,null,null,null,1900]
[null,null,null,null,null,null,null,null,null,null,null,null,"",null,null,null,null,1900]
[null,null,null,null,null,null,null,null,null,null,null,null,"",null,null,null,null,1900]
[null,null,null,null,null,null,null,null,null,null,null,null,"",null,null,null,null,1900]
[null,null,null,null,null,null,null,null,null,null,null,null,"",null,null,null,null,1900]
[null,null,null,null,null,null,null,null,null,null,null,null,"",null,null,null,null,1900]
[null,null,null,null,null,null,null,null,null,null,null,null,"",null,null,null,null,1900]
[null,null,null,null,null,null,null,null,null,null,null,null,"",null,null,null,null,{"$f":"YEAR(K326)","v":1900}]
[null,null,null,null,null,null,null,null,null,null,null,null,{"$f":"IFERROR(IF(ISODD(MID(E327,13,1)),\"ذكر\",\"انثى\"),\"\")","v":""},null,null,null,null,1900]
[null,null,null,null,null,null,null,null,null,null,null,null,"",null,null,null,null,1900]
[null,null,null,null,null,null,null,null,null,null,null,null,"",null,null,null,null,1900]
[null,null,null,null,null,null,null,null,null,null,null,null,"",null,null,null,null,1900]
[null,null,null,null,null,null,null,null,null,null,null,null,"",null,null,null,null,1900]
[null,null,null,null,null,null,null,null,null,null,null,null,"",null,null,null,null,1900]
[null,null,null,null,null,null,null,null,null,null,null,null,"",null,null,null,null,1900]
[null,null,null,null,null,null,null,null,null,null,null,null,"",null,null,null,null,1900]
[null,null,null,null,null,null,null,null,null,null,null,null,"",null,null,null,null,1900]
[null,null,null,null,null,null,null,null,null,null,null,null,"",null,null,null,null,1900]
[null,null,null,null,null,null,null,null,null,null,null,null,"",null,null,null,null,1900]
[null,null,null,null,null,null,null,null,null,null,null,null,"",null,null,null,null,1900]
[null,null,null,null,null,null,null,null,null,null,null,null,"",null,null,null,null,1900]
[null,null,null,null,null,null,null,null,null,null,null,null,"",null,null,null,null,1900]
[null,null,null,null,null,null,null,null,null,null,null,null,"",null,null,null,null,1900]
[null,null,null,null,null,null,null,null,null,null,null,null,"",null,null,null,null,1900]
[null,null,null,null,null,null,null,null,null,null,null,null,"",null,null,null,null,1900]
[null,null,null,null,null,null,null,null,null,null,null,null,"",null,null,null,null,1900]
[null,null,null,null,null,null,null,null,null,null,null,null,"",null,null,null,null,1900]
[null,null,null,null,null,null,null,null,null,null,null,null,"",null,null,null,null,1900]
[null,null,null,null,null,null,null,null,null,null,null,null,"",null,null,null,null,1900]
[null,null,null,null,null,null,null,null,null,null,null,null,"",null,null,null,null,1900]
[null,null,null,null,null,null,null,null,null,null,null,null,"",null,null,null,null,1900]
[null,null,null,null,null,null,null,null,null,null,null,null,"",null,null,null,null,1900]
[null,null,null,null,null,null,null,null,null,null,null,null,"",null,null,null,null,1900]
[null,null,null,null,null,null,null,null,null,null,null,null,"",null,null,null,null,1900]
[null,null,null,null,null,null,null,null,null,null,null,null,"",null,null,null,null,1900]
[null,null,null,null,null,null,null,null,null,null,null,null,"",null,null,null,null,1900]
[null,null,null,null,null,null,null,null,null,null,null,null,"",null,null,null,null,1900]
[null,null,null,null,null,null,null,null,null,null,null,null,"",null,null,null,null,1900]
[null,null,null,null,null,null,null,null,null,null,null,null,"",null,null,null,null,1900]
[null,null,null,null,null,null,null,null,null,null,null,null,"",null,null,null,null,1900]
[null,null,null,null,null,null,null,null,null,null,null,null,"",null,null,null,null,1900]
[null,null,null,null,null,null,null,null,null,null,null,null,"",null,null,null,null,1900]
[null,null,null,null,null,null,null,null,null,null,null,null,"",null,null,null,null,1900]
[null,null,null,null,null,null,null,null,null,null,null,null,"",null,null,null,null,1900]
[null,null,null,null,null,null,null,null,null,null,null,null,"",null,null,null,null,1900]
[null,null,null,null,null,null,null,null,null,null,null,null,"",null,null,null,null,1900]
[null,null,null,null,null,null,null,null,null,null,null,null,"",null,null,null,null,1900]
[null,null,null,null,null,null,null,null,null,null,null,null,"",null,null,null,null,1900]
[null,null,null,null,null,null,null,null,null,null,null,null,"",null,null,null,null,1900]
[null,null,null,null,null,null,null,null,null,null,null,null,"",null,null,null,null,1900]
[null,null,null,null,null,null,null,null,null,null,null,null,"",null,null,null,null,1900]
[null,null,null,null,null,null,null,null,null,null,null,null,"",null,null,null,null,1900]
[null,null,null,null,null,null,null,null,null,null,null,null,"",null,null,null,null,1900]
[null,null,null,null,null,null,null,null,null,null,null,null,"",null,null,null,null,1900]
[null,null,null,null,null,null,null,null,null,null,null,null,"",null,null,null,null,1900]
[null,null,null,null,null,null,null,null,null,null,null,null,"",null,null,null,null,1900]
[null,null,null,null,null,null,null,null,null,null,null,null,"",null,null,null,null,1900]
[null,null,null,null,null,null,null,null,null,null,null,null,"",null,null,null,null,1900]
[null,null,null,null,null,null,null,null,null,null,null,null,"",null,null,null,null,1900]
[null,null,null,null,null,null,null,null,null,null,null,null,"",null,null,null,null,1900]
[null,null,null,null,null,null,null,null,null,null,null,null,"",null,null,null,null,1900]
[null,null,null,null,null,null,null,null,null,null,null,null,"",null,null,null,null,1900]
[null,null,null,null,null,null,null,null,null,null,null,null,"",null,null,null,null,1900]
[null,null,null,null,null,null,null,null,null,null,null,null,"",null,null,null,null,1900]
[null,null,null,null,null,null,null,null,null,null,null,null,"",null,null,null,null,1900]
[null,null,null,null,null,null,null,null,null,null,null,null,"",null,null,null,null,1900]
[null,null,null,null,null,null,null,null,null,null,null,null,"",null,null,null,null,1900]
[null,null,null,null,null,null,null,null,null,null,null,null,"",null,null,null,null,1900]
[null,null,null,null,null,null,null,null,null,null,null,null,"",null,null,null,null,1900]
[null,null,null,null,null,null,null,null,null,null,null,null,"",null,null,null,null,1900]
[null,null,null,null,null,null,null,null,null,null,null,null,"",null,null,null,null,1900]
[null,null,null,null,null,null,null,null,null,null,null,null,"",null,null,null,null,{"$f":"YEAR(K390)","v":1900}]
[null,null,null,null,null,null,null,null,null,null,null,null,{"$f":"IFERROR(IF(ISODD(MID(E391,13,1)),\"ذكر\",\"انثى\"),\"\")","v":""},null,null,null,null,1900]
[null,null,null,null,null,null,null,null,null,null,null,null,"",null,null,null,null,1900]
[null,null,null,null,null,null,null,null,null,null,null,null,"",null,null,null,null,1900]
[null,null,null,null,null,null,null,null,null,null,null,null,"",null,null,null,null,1900]
[null,null,null,null,null,null,null,null,null,null,null,null,"",null,null,null,null,1900]
[null,null,null,null,null,null,null,null,null,null,null,null,"",null,null,null,null,1900]
[null,null,null,null,null,null,null,null,null,null,null,null,"",null,null,null,null,1900]
[null,null,null,null,null,null,null,null,null,null,null,null,"",null,null,null,null,1900]
[null,null,null,null,null,null,null,null,null,null,null,null,"",null,null,null,null,1900]
[null,null,null,null,null,null,null,null,null,null,null,null,"",null,null,null,null,1900]
[null,null,null,null,null,null,null,null,null,null,null,null,"",null,null,null,null,1900]
[null,null,null,null,null,null,null,null,null,null,null,null,"",null,null,null,null,1900]
[null,null,null,null,null,null,null,null,null,null,null,null,"",null,null,null,null,1900]
[null,null,null,null,null,null,null,null,null,null,null,null,"",null,null,null,null,1900]
[null,null,null,null,null,null,null,null,null,null,null,null,"",null,null,null,null,1900]
[null,null,null,null,null,null,null,null,null,null,null,null,"",null,null,null,null,1900]
[null,null,null,null,null,null,null,null,null,null,null,null,"",null,null,null,null,1900]
[null,null,null,null,null,null,null,null,null,null,null,null,"",null,null,null,null,1900]
[null,null,null,null,null,null,null,null,null,null,null,null,"",null,null,null,null,1900]
[null,null,null,null,null,null,null,null,null,null,null,null,"",null,null,null,null,1900]
[null,null,null,null,null,null,null,null,null,null,null,null,"",null,null,null,null,1900]
[null,null,null,null,null,null,null,null,null,null,null,null,"",null,null,null,null,1900]
[null,null,null,null,null,null,null,null,null,null,null,null,"",null,null,null,null,1900]
[null,null,null,null,null,null,null,null,null,null,null,null,"",null,null,null,null,1900]
[null,null,null,null,null,null,null,null,null,null,null,null,"",null,null,null,null,1900]
[null,null,null,null,null,null,null,null,null,null,null,null,"",null,null,null,null,1900]
[null,null,null,null,null,null,null,null,null,null,null,null,"",null,null,null,null,1900]
[null,null,null,null,null,null,null,null,null,null,null,null,"",null,null,null,null,1900]
[null,null,null,null,null,null,null,null,null,null,null,null,"",null,null,null,null,1900]
[null,null,null,null,null,null,null,null,null,null,null,null,"",null,null,null,null,1900]
[null,null,null,null,null,null,null,null,null,null,null,null,"",null,null,null,null,1900]
[null,null,null,null,null,null,null,null,null,null,null,null,"",null,null,null,null,1900]
[null,null,null,null,null,null,null,null,null,null,null,null,"",null,null,null,null,1900]
[null,null,null,null,null,null,null,null,null,null,null,null,"",null,null,null,null,1900]
[null,null,null,null,null,null,null,null,null,null,null,null,"",null,null,null,null,1900]
[null,null,null,null,null,null,null,null,null,null,null,null,"",null,null,null,null,1900]
[null,null,null,null,null,null,null,null,null,null,null,null,"",null,null,null,null,1900]
[null,null,null,null,null,null,null,null,null,null,null,null,"",null,null,null,null,1900]
[null,null,null,null,null,null,null,null,null,null,null,null,"",null,null,null,null,1900]
[null,null,null,null,null,null,null,null,null,null,null,null,"",null,null,null,null,1900]
[null,null,null,null,null,null,null,null,null,null,null,null,"",null,null,null,null,1900]
[null,null,null,null,null,null,null,null,null,null,null,null,"",null,null,null,null,1900]
[null,null,null,null,null,null,null,null,null,null,null,null,"",null,null,null,null,1900]
[null,null,null,null,null,null,null,null,null,null,null,null,"",null,null,null,null,1900]
[null,null,null,null,null,null,null,null,null,null,null,null,"",null,null,null,null,1900]
[null,null,null,null,null,null,null,null,null,null,null,null,"",null,null,null,null,1900]
[null,null,null,null,null,null,null,null,null,null,null,null,"",null,null,null,null,1900]
[null,null,null,null,null,null,null,null,null,null,null,null,"",null,null,null,null,1900]
[null,null,null,null,null,null,null,null,null,null,null,null,"",null,null,null,null,1900]
[null,null,null,null,null,null,null,null,null,null,null,null,"",null,null,null,null,1900]
[null,null,null,null,null,null,null,null,null,null,null,null,"",null,null,null,null,1900]
[null,null,null,null,null,null,null,null,null,null,null,null,"",null,null,null,null,1900]
[null,null,null,null,null,null,null,null,null,null,null,null,"",null,null,null,null,1900]
[null,null,null,null,null,null,null,null,null,null,null,null,"",null,null,null,null,1900]
[null,null,null,null,null,null,null,null,null,null,null,null,"",null,null,null,null,1900]
[null,null,null,null,null,null,null,null,null,null,null,null,"",null,null,null,null,1900]
[null,null,null,null,null,null,null,null,null,null,null,null,"",null,null,null,null,1900]
[null,null,null,null,null,null,null,null,null,null,null,null,"",null,null,null,null,1900]
[null,null,null,null,null,null,null,null,null,null,null,null,"",null,null,null,null,1900]
[null,null,null,null,null,null,null,null,null,null,null,null,"",null,null,null,null,1900]
[null,null,null,null,null,null,null,null,null,null,null,null,"",null,null,null,null,1900]
[null,null,null,null,null,null,null,null,null,null,null,null,"",null,null,null,null,1900]
[null,null,null,null,null,null,null,null,null,null,null,null,"",null,null,null,null,1900]
[null,null,null,null,null,null,null,null,null,null,null,null,"",null,null,null,null,{"$f":"YEAR(K454)","v":1900}]
[null,null,null,null,null,null,null,null,null,null,null,null,{"$f":"IFERROR(IF(ISODD(MID(E455,13,1)),\"ذكر\",\"انثى\"),\"\")","v":""},null,null,null,null,1900]
[null,null,null,null,null,null,null,null,null,null,null,null,"",null,null,null,null,1900]
[null,null,null,null,null,null,null,null,null,null,null,null,"",null,null,null,null,1900]
[null,null,null,null,null,null,null,null,null,null,null,null,"",null,null,null,null,1900]
[null,null,null,null,null,null,null,null,null,null,null,null,"",null,null,null,null,1900]
[null,null,null,null,null,null,null,null,null,null,null,null,"",null,null,null,null,1900]
[null,null,null,null,null,null,null,null,null,null,null,null,"",null,null,null,null,1900]
[null,null,null,null,null,null,null,null,null,null,null,null,"",null,null,null,null,1900]
[null,null,null,null,null,null,null,null,null,null,null,null,"",null,null,null,null,1900]
[null,null,null,null,null,null,null,null,null,null,null,null,"",null,null,null,null,1900]
[null,null,null,null,null,null,null,null,null,null,null,null,"",null,null,null,null,1900]
[null,null,null,null,null,null,null,null,null,null,null,null,"",null,null,null,null,1900]
[null,null,null,null,null,null,null,null,null,null,null,null,"",null,null,null,null,1900]
[null,null,null,null,null,null,null,null,null,null,null,null,"",null,null,null,null,1900]
[null,null,null,null,null,null,null,null,null,null,null,null,"",null,null,null,null,1900]
[null,null,null,null,null,null,null,null,null,null,null,null,"",null,null,null,null,1900]
[null,null,null,null,null,null,null,null,null,null,null,null,"",null,null,null,null,1900]
[null,null,null,null,null,null,null,null,null,null,null,null,"",null,null,null,null,1900]
[null,null,null,null,null,null,null,null,null,null,null,null,"",null,null,null,null,1900]
[null,null,null,null,null,null,null,null,null,null,null,null,"",null,null,null,null,1900]
[null,null,null,null,null,null,null,null,null,null,null,null,null,null,null,null,null,1900]
[null,null,null,null,null,null,null,null,null,null,null,null,null,null,null,null,null,1900]
[null,null,null,null,null,null,null,null,null,null,null,null,null,null,null,null,null,1900]
[null,null,null,null,null,null,null,null,null,null,null,null,null,null,null,null,null,1900]
[null,null,null,null,null,null,null,null,null,null,null,null,null,null,null,null,null,1900]
[null,null,null,null,null,null,null,null,null,null,null,null,null,null,null,null,null,1900]
[null,null,null,null,null,null,null,null,null,null,null,null,null,null,null,null,null,1900]
[null,null,null,null,null,null,null,null,null,null,null,null,null,null,null,null,null,1900]
[null,null,null,null,null,null,null,null,null,null,null,null,null,null,null,null,null,1900]
[null,null,null,null,null,null,null,null,null,null,null,null,null,null,null,null,null,1900]
[null,null,null,null,null,null,null,null,null,null,null,null,null,null,null,null,null,1900]
[null,null,null,null,null,null,null,null,null,null,null,null,null,null,null,null,null,1900]
[null,null,null,null,null,null,null,null,null,null,null,null,null,null,null,null,null,1900]
[null,null,null,null,null,null,null,null,null,null,null,null,null,null,null,null,null,1900]
[null,null,null,null,null,null,null,null,null,null,null,null,null,null,null,null,null,1900]
[null,null,null,null,null,null,null,null,null,null,null,null,null,null,null,null,null,1900]
[null,null,null,null,null,null,null,null,null,null,null,null,null,null,null,null,null,1900]
[null,null,null,null,null,null,null,null,null,null,null,null,null,null,null,null,null,1900]
[null,null,null,null,null,null,null,null,null,null,null,null,null,null,null,null,null,1900]
[null,null,null,null,null,null,null,null,null,null,null,null,null,null,null,null,null,1900]
[null,null,null,null,null,null,null,null,null,null,null,null,null,null,null,null,null,1900]
[null,null,null,null,null,null,null,null,null,null,null,null,null,null,null,null,null,1900]
[null,null,null,null,null,null,null,null,null,null,null,null,null,null,null,null,null,1900]
[null,null,null,null,null,null,null,null,null,null,null,null,null,null,null,null,null,1900]
[null,null,null,null,null,null,null,null,null,null,null,null,null,null,null,null,null,1900]
[null,null,null,null,null,null,null,null,null,null,null,null,null,null,null,null,null,1900]
[null,null,null,null,null,null,null,null,null,null,null,null,null,null,null,null,null,1900]
[null,null,null,null,null,null,null,null,null,null,null,null,null,null,null,null,null,1900]
[null,null,null,null,null,null,null,null,null,null,null,null,null,null,null,null,null,1900]
[null,null,null,null,null,null,null,null,null,null,null,null,null,null,null,null,null,1900]
[null,null,null,null,null,null,null,null,null,null,null,null,null,null,null,null,null,1900]
[null,null,null,null,null,null,null,null,null,null,null,null,null,null,null,null,null,1900]
[null,null,null,null,null,null,null,null,null,null,null,null,null,null,null,null,null,1900]
[null,null,null,null,null,null,null,null,null,null,null,null,null,null,null,null,null,1900]
[null,null,null,null,null,null,null,null,null,null,null,null,null,null,null,null,null,1900]
[null,null,null,null,null,null,null,null,null,null,null,null,null,null,null,null,null,1900]
[null,null,null,null,null,null,null,null,null,null,null,null,null,null,null,null,null,1900]
[null,null,null,null,null,null,null,null,null,null,null,null,null,null,null,null,null,1900]
[null,null,null,null,null,null,null,null,null,null,null,null,null,null,null,null,null,1900]
[null,null,null,null,null,null,null,null,null,null,null,null,null,null,null,null,null,1900]
[null,null,null,null,null,null,null,null,null,null,null,null,null,null,null,null,null,1900]
[null,null,null,null,null,null,null,null,null,null,null,null,null,null,null,null,null,1900]
[null,null,null,null,null,null,null,null,null,null,null,null,null,null,null,null,null,1900]
[null,null,null,null,null,null,null,null,null,null,null,null,null,null,null,null,null,{"$f":"YEAR(K518)","v":1900}]
[null,null,null,null,null,null,null,null,null,null,null,null,null,null,null,null,null,1900]
[null,null,null,null,null,null,null,null,null,null,null,null,null,null,null,null,null,1900]
[null,null,null,null,null,null,null,null,null,null,null,null,null,null,null,null,null,1900]
[null,null,null,null,null,null,null,null,null,null,null,null,null,null,null,null,null,1900]
[null,null,null,null,null,null,null,null,null,null,null,null,null,null,null,null,null,1900]
[null,null,null,null,null,null,null,null,null,null,null,null,null,null,null,null,null,1900]
[null,null,null,null,null,null,null,null,null,null,null,null,null,null,null,null,null,1900]
[null,null,null,null,null,null,null,null,null,null,null,null,null,null,null,null,null,1900]
[null,null,null,null,null,null,null,null,null,null,null,null,null,null,null,null,null,1900]
[null,null,null,null,null,null,null,null,null,null,null,null,null,null,null,null,null,1900]
[null,null,null,null,null,null,null,null,null,null,null,null,null,null,null,null,null,1900]
[null,null,null,null,null,null,null,null,null,null,null,null,null,null,null,null,null,1900]
[null,null,null,null,null,null,null,null,null,null,null,null,null,null,null,null,null,1900]
[null,null,null,null,null,null,null,null,null,null,null,null,null,null,null,null,null,1900]
[null,null,null,null,null,null,null,null,null,null,null,null,null,null,null,null,null,1900]
[null,null,null,null,null,null,null,null,null,null,null,null,null,null,null,null,null,1900]
[null,null,null,null,null,null,null,null,null,null,null,null,null,null,null,null,null,1900]
[null,null,null,null,null,null,null,null,null,null,null,null,null,null,null,null,null,1900]
[null,null,null,null,null,null,null,null,null,null,null,null,null,null,null,null,null,1900]
[null,null,null,null,null,null,null,null,null,null,null,null,null,null,null,null,null,1900]
[null,null,null,null,null,null,null,null,null,null,null,null,null,null,null,null,null,1900]
[null,null,null,null,null,null,null,null,null,null,null,null,null,null,null,null,null,1900]
[null,null,null,null,null,null,null,null,null,null,null,null,null,null,null,null,null,1900]
[null,null,null,null,null,null,null,null,null,null,null,null,null,null,null,null,null,1900]
[null,null,null,null,null,null,null,null,null,null,null,null,null,null,null,null,null,1900]
[null,null,null,null,null,null,null,null,null,null,null,null,null,null,null,null,null,1900]
[null,null,null,null,null,null,null,null,null,null,null,null,null,null,null,null,null,1900]
[null,null,null,null,null,null,null,null,null,null,null,null,null,null,null,null,null,1900]
[null,null,null,null,null,null,null,null,null,null,null,null,null,null,null,null,null,1900]
[null,null,null,null,null,null,null,null,null,null,null,null,null,null,null,null,null,1900]
[null,null,null,null,null,null,null,null,null,null,null,null,null,null,null,null,null,1900]
[null,null,null,null,null,null,null,null,null,null,null,null,null,null,null,null,null,1900]
[null,null,null,null,null,null,null,null,null,null,null,null,null,null,null,null,null,1900]
[null,null,null,null,null,null,null,null,null,null,null,null,null,null,null,null,null,1900]
[null,null,null,null,null,null,null,null,null,null,null,null,null,null,null,null,null,1900]
[null,null,null,null,null,null,null,null,null,null,null,null,null,null,null,null,null,1900]
[null,null,null,null,null,null,null,null,null,null,null,null,null,null,null,null,null,1900]
[null,null,null,null,null,null,null,null,null,null,null,null,null,null,null,null,null,1900]
[null,null,null,null,null,null,null,null,null,null,null,null,null,null,null,null,null,1900]
[null,null,null,null,null,null,null,null,null,null,null,null,null,null,null,null,null,1900]
[null,null,null,null,null,null,null,null,null,null,null,null,null,null,null,null,null,1900]
[null,null,null,null,null,null,null,null,null,null,null,null,null,null,null,null,null,1900]
[null,null,null,null,null,null,null,null,null,null,null,null,null,null,null,null,null,1900]
[null,null,null,null,null,null,null,null,null,null,null,null,null,null,null,null,null,1900]
[null,null,null,null,null,null,null,null,null,null,null,null,null,null,null,null,null,1900]
[null,null,null,null,null,null,null,null,null,null,null,null,null,null,null,null,null,1900]
[null,null,null,null,null,null,null,null,null,null,null,null,null,null,null,null,null,1900]
[null,null,null,null,null,null,null,null,null,null,null,null,null,null,null,null,null,1900]
[null,null,null,null,null,null,null,null,null,null,null,null,null,null,null,null,null,1900]
[null,null,null,null,null,null,null,null,null,null,null,null,null,null,null,null,null,1900]
[null,null,null,null,null,null,null,null,null,null,null,null,null,null,null,null,null,1900]
[null,null,null,null,null,null,null,null,null,null,null,null,null,null,null,null,null,1900]
[null,null,null,null,null,null,null,null,null,null,null,null,null,null,null,null,null,1900]
[null,null,null,null,null,null,null,null,null,null,null,null,null,null,null,null,null,1900]
[null,null,null,null,null,null,null,null,null,null,null,null,null,null,null,null,null,1900]
[null,null,null,null,null,null,null,null,null,null,null,null,null,null,null,null,null,1900]
[null,null,null,null,null,null,null,null,null,null,null,null,null,null,null,null,null,1900]
[null,null,null,null,null,null,null,null,null,null,null,null,null,null,null,null,null,1900]
[null,null,null,null,null,null,null,null,null,null,null,null,null,null,null,null,null,1900]
[null,null,null,null,null,null,null,null,null,null,null,null,null,null,null,null,null,1900]
[null,null,null,null,null,null,null,null,null,null,null,null,null,null,null,null,null,1900]
[null,null,null,null,null,null,null,null,null,null,null,null,null,null,null,null,null,1900]
[null,null,null,null,null,null,null,null,null,null,null,null,null,null,null,null,null,1900]
[null,null,null,null,null,null,null,null,null,null,null,null,null,null,null,null,null,{"$f":"YEAR(K582)","v":1900}]
[null,null,null,null,null,null,null,null,null,null,null,null,null,null,null,null,null,1900]
[null,null,null,null,null,null,null,null,null,null,null,null,null,null,null,null,null,1900]
[null,null,null,null,null,null,null,null,null,null,null,null,null,null,null,null,null,1900]
[null,null,null,null,null,null,null,null,null,null,null,null,null,null,null,null,null,1900]
[null,null,null,null,null,null,null,null,null,null,null,null,null,null,null,null,null,1900]
[null,null,null,null,null,null,null,null,null,null,null,null,null,null,null,null,null,1900]
[null,null,null,null,null,null,null,null,null,null,null,null,null,null,null,null,null,1900]
[null,null,null,null,null,null,null,null,null,null,null,null,null,null,null,null,null,1900]
[null,null,null,null,null,null,null,null,null,null,null,null,null,null,null,null,null,1900]
[null,null,null,null,null,null,null,null,null,null,null,null,null,null,null,null,null,1900]
[null,null,null,null,null,null,null,null,null,null,null,null,null,null,null,null,null,1900]
[null,null,null,null,null,null,null,null,null,null,null,null,null,null,null,null,null,1900]
[null,null,null,null,null,null,null,null,null,null,null,null,null,null,null,null,null,1900]
[null,null,null,null,null,null,null,null,null,null,null,null,null,null,null,null,null,1900]
[null,null,null,null,null,null,null,null,null,null,null,null,null,null,null,null,null,1900]
[null,null,null,null,null,null,null,null,null,null,null,null,null,null,null,null,null,1900]
[null,null,null,null,null,null,null,null,null,null,null,null,null,null,null,null,null,1900]
[null,null,null,null,null,null,null,null,null,null,null,null,null,null,null,null,null,1900]
[null,null,null,null,null,null,null,null,null,null,null,null,null,null,null,null,null,1900]
[null,null,null,null,null,null,null,null,null,null,null,null,null,null,null,null,null,1900]
[null,null,null,null,null,null,null,null,null,null,null,null,null,null,null,null,null,1900]
[null,null,null,null,null,null,null,null,null,null,null,null,null,null,null,null,null,1900]
[null,null,null,null,null,null,null,null,null,null,null,null,null,null,null,null,null,1900]
[null,null,null,null,null,null,null,null,null,null,null,null,null,null,null,null,null,1900]
[null,null,null,null,null,null,null,null,null,null,null,null,null,null,null,null,null,1900]
[null,null,null,null,null,null,null,null,null,null,null,null,null,null,null,null,null,1900]
[null,null,null,null,null,null,null,null,null,null,null,null,null,null,null,null,null,1900]
[null,null,null,null,null,null,null,null,null,null,null,null,null,null,null,null,null,1900]
[null,null,null,null,null,null,null,null,null,null,null,null,null,null,null,null,null,1900]
[null,null,null,null,null,null,null,null,null,null,null,null,null,null,null,null,null,1900]
[null,null,null,null,null,null,null,null,null,null,null,null,null,null,null,null,null,1900]
[null,null,null,null,null,null,null,null,null,null,null,null,null,null,null,null,null,1900]
[null,null,null,null,null,null,null,null,null,null,null,null,null,null,null,null,null,1900]
[null,null,null,null,null,null,null,null,null,null,null,null,null,null,null,null,null,1900]
[null,null,null,null,null,null,null,null,null,null,null,null,null,null,null,null,null,1900]
[null,null,null,null,null,null,null,null,null,null,null,null,null,null,null,null,null,1900]
[null,null,null,null,null,null,null,null,null,null,null,null,null,null,null,null,null,1900]
[null,null,null,null,null,null,null,null,null,null,null,null,null,null,null,null,null,1900]
[null,null,null,null,null,null,null,null,null,null,null,null,null,null,null,null,null,1900]
[null,null,null,null,null,null,null,null,null,null,null,null,null,null,null,null,null,1900]
[null,null,null,null,null,null,null,null,null,null,null,null,null,null,null,null,null,1900]
[null,null,null,null,null,null,null,null,null,null,null,null,null,null,null,null,null,1900]
[null,null,null,null,null,null,null,null,null,null,null,null,null,null,null,null,null,1900]
[null,null,null,null,null,null,null,null,null,null,null,null,null,null,null,null,null,1900]
[null,null,null,null,null,null,null,null,null,null,null,null,null,null,null,null,null,1900]
[null,null,null,null,null,null,null,null,null,null,null,null,null,null,null,null,null,1900]
[null,null,null,null,null,null,null,null,null,null,null,null,null,null,null,null,null,1900]
[null,null,null,null,null,null,null,null,null,null,null,null,null,null,null,null,null,1900]
[null,null,null,null,null,null,null,null,null,null,null,null,null,null,null,null,null,1900]
[null,null,null,null,null,null,null,null,null,null,null,null,null,null,null,null,null,1900]
[null,null,null,null,null,null,null,null,null,null,null,null,null,null,null,null,null,1900]
[null,null,null,null,null,null,null,null,null,null,null,null,null,null,null,null,null,1900]
[null,null,null,null,null,null,null,null,null,null,null,null,null,null,null,null,null,1900]
[null,null,null,null,null,null,null,null,null,null,null,null,null,null,null,null,null,1900]
[null,null,null,null,null,null,null,null,null,null,null,null,null,null,null,null,null,1900]
[null,null,null,null,null,null,null,null,null,null,null,null,null,null,null,null,null,1900]
[null,null,null,null,null,null,null,null,null,null,null,null,null,null,null,null,null,1900]
[null,null,null,null,null,null,null,null,null,null,null,null,null,null,null,null,null,1900]
[null,null,null,null,null,null,null,null,null,null,null,null,null,null,null,null,null,1900]
[null,null,null,null,null,null,null,null,null,null,null,null,null,null,null,null,null,1900]
[null,null,null,null,null,null,null,null,null,null,null,null,null,null,null,null,null,1900]
[null,null,null,null,null,null,null,null,null,null,null,null,null,null,null,null,null,1900]
[null,null,null,null,null,null,null,null,null,null,null,null,null,null,null,null,null,1900]
[null,null,null,null,null,null,null,null,null,null,null,null,null,null,null,null,null,{"$f":"YEAR(K646)","v":1900}]
[null,null,null,null,null,null,null,null,null,null,null,null,null,null,null,null,null,1900]
[null,null,null,null,null,null,null,null,null,null,null,null,null,null,null,null,null,1900]
[null,null,null,null,null,null,null,null,null,null,null,null,null,null,null,null,null,1900]
[null,null,null,null,null,null,null,null,null,null,null,null,null,null,null,null,null,1900]
[null,null,null,null,null,null,null,null,null,null,null,null,null,null,null,null,null,1900]
[null,null,null,null,null,null,null,null,null,null,null,null,null,null,null,null,null,1900]
[null,null,null,null,null,null,null,null,null,null,null,null,null,null,null,null,null,1900]
[null,null,null,null,null,null,null,null,null,null,null,null,null,null,null,null,null,1900]
[null,null,null,null,null,null,null,null,null,null,null,null,null,null,null,null,null,1900]
[null,null,null,null,null,null,null,null,null,null,null,null,null,null,null,null,null,1900]
[null,null,null,null,null,null,null,null,null,null,null,null,null,null,null,null,null,1900]
[null,null,null,null,null,null,null,null,null,null,null,null,null,null,null,null,null,1900]
[null,null,null,null,null,null,null,null,null,null,null,null,null,null,null,null,null,1900]
[null,null,null,null,null,null,null,null,null,null,null,null,null,null,null,null,null,1900]
[null,null,null,null,null,null,null,null,null,null,null,null,null,null,null,null,null,1900]
[null,null,null,null,null,null,null,null,null,null,null,null,null,null,null,null,null,1900]
[null,null,null,null,null,null,null,null,null,null,null,null,null,null,null,null,null,1900]
[null,null,null,null,null,null,null,null,null,null,null,null,null,null,null,null,null,1900]
[null,null,null,null,null,null,null,null,null,null,null,null,null,null,null,null,null,1900]
[null,null,null,null,null,null,null,null,null,null,null,null,null,null,null,null,null,1900]
[null,null,null,null,null,null,null,null,null,null,null,null,null,null,null,null,null,1900]
[null,null,null,null,null,null,null,null,null,null,null,null,null,null,null,null,null,1900]
[null,null,null,null,null,null,null,null,null,null,null,null,null,null,null,null,null,1900]
[null,null,null,null,null,null,null,null,null,null,null,null,null,null,null,null,null,1900]
[null,null,null,null,null,null,null,null,null,null,null,null,null,null,null,null,null,1900]
[null,null,null,null,null,null,null,null,null,null,null,null,null,null,null,null,null,1900]
[null,null,null,null,null,null,null,null,null,null,null,null,null,null,null,null,null,1900]
[null,null,null,null,null,null,null,null,null,null,null,null,null,null,null,null,null,1900]
[null,null,null,null,null,null,null,null,null,null,null,null,null,null,null,null,null,1900]
[null,null,null,null,null,null,null,null,null,null,null,null,null,null,null,null,null,1900]
[null,null,null,null,null,null,null,null,null,null,null,null,null,null,null,null,null,1900]
[null,null,null,null,null,null,null,null,null,null,null,null,null,null,null,null,null,1900]
[null,null,null,null,null,null,null,null,null,null,null,null,null,null,null,null,null,1900]
[null,null,null,null,null,null,null,null,null,null,null,null,null,null,null,null,null,1900]
[null,null,null,null,null,null,null,null,null,null,null,null,null,null,null,null,null,1900]
[null,null,null,null,null,null,null,null,null,null,null,null,null,null,null,null,null,1900]
[null,null,null,null,null,null,null,null,null,null,null,null,null,null,null,null,null,1900]
[null,null,null,null,null,null,null,null,null,null,null,null,null,null,null,null,null,1900]
[null,null,null,null,null,null,null,null,null,null,null,null,null,null,null,null,null,1900]
[null,null,null,null,null,null,null,null,null,null,null,null,null,null,null,null,null,1900]
[null,null,null,null,null,null,null,null,null,null,null,null,null,null,null,null,null,1900]
[null,null,null,null,null,null,null,null,null,null,null,null,null,null,null,null,null,1900]
[null,null,null,null,null,null,null,null,null,null,null,null,null,null,null,null,null,1900]
[null,null,null,null,null,null,null,null,null,null,null,null,null,null,null,null,null,1900]
[null,null,null,null,null,null,null,null,null,null,null,null,null,null,null,null,null,1900]
[null,null,null,null,null,null,null,null,null,null,null,null,null,null,null,null,null,1900]
[null,null,null,null,null,null,null,null,null,null,null,null,null,null,null,null,null,1900]
[null,null,null,null,null,null,null,null,null,null,null,null,null,null,null,null,null,1900]
[null,null,null,null,null,null,null,null,null,null,null,null,null,null,null,null,null,1900]
[null,null,null,null,null,null,null,null,null,null,null,null,null,null,null,null,null,1900]
[null,null,null,null,null,null,null,null,null,null,null,null,null,null,null,null,null,1900]
[null,null,null,null,null,null,null,null,null,null,null,null,null,null,null,null,null,1900]
[null,null,null,null,null,null,null,null,null,null,null,null,null,null,null,null,null,1900]
[null,null,null,null,null,null,null,null,null,null,null,null,null,null,null,null,null,1900]
[null,null,null,null,null,null,null,null,null,null,null,null,null,null,null,null,null,1900]
[null,null,null,null,null,null,null,null,null,null,null,null,null,null,null,null,null,1900]
[null,null,null,null,null,null,null,null,null,null,null,null,null,null,null,null,null,1900]
[null,null,null,null,null,null,null,null,null,null,null,null,null,null,null,null,null,1900]
[null,null,null,null,null,null,null,null,null,null,null,null,null,null,null,null,null,1900]
[null,null,null,null,null,null,null,null,null,null,null,null,null,null,null,null,null,1900]
[null,null,null,null,null,null,null,null,null,null,null,null,null,null,null,null,null,1900]
[null,null,null,null,null,null,null,null,null,null,null,null,null,null,null,null,null,1900]
[null,null,null,null,null,null,null,null,null,null,null,null,null,null,null,null,null,1900]
[null,null,null,null,null,null,null,null,null,null,null,null,null,null,null,null,null,{"$f":"YEAR(K710)","v":1900}]
[null,null,null,null,null,null,null,null,null,null,null,null,null,null,null,null,null,1900]
[null,null,null,null,null,null,null,null,null,null,null,null,null,null,null,null,null,1900]
[null,null,null,null,null,null,null,null,null,null,null,null,null,null,null,null,null,1900]
[null,null,null,null,null,null,null,null,null,null,null,null,null,null,null,null,null,1900]
[null,null,null,null,null,null,null,null,null,null,null,null,null,null,null,null,null,1900]
[null,null,null,null,null,null,null,null,null,null,null,null,null,null,null,null,null,1900]
[null,null,null,null,null,null,null,null,null,null,null,null,null,null,null,null,null,1900]
[null,null,null,null,null,null,null,null,null,null,null,null,null,null,null,null,null,1900]
[null,null,null,null,null,null,null,null,null,null,null,null,null,null,null,null,null,1900]
[null,null,null,null,null,null,null,null,null,null,null,null,null,null,null,null,null,1900]
[null,null,null,null,null,null,null,null,null,null,null,null,null,null,null,null,null,1900]
[null,null,null,null,null,null,null,null,null,null,null,null,null,null,null,null,null,1900]
[null,null,null,null,null,null,null,null,null,null,null,null,null,null,null,null,null,1900]
[null,null,null,null,null,null,null,null,null,null,null,null,null,null,null,null,null,1900]
[null,null,null,null,null,null,null,null,null,null,null,null,null,null,null,null,null,1900]
[null,null,null,null,null,null,null,null,null,null,null,null,null,null,null,null,null,1900]
[null,null,null,null,null,null,null,null,null,null,null,null,null,null,null,null,null,1900]
[null,null,null,null,null,null,null,null,null,null,null,null,null,null,null,null,null,1900]
[null,null,null,null,null,null,null,null,null,null,null,null,null,null,null,null,null,1900]
[null,null,null,null,null,null,null,null,null,null,null,null,null,null,null,null,null,1900]
[null,null,null,null,null,null,null,null,null,null,null,null,null,null,null,null,null,1900]
[null,null,null,null,null,null,null,null,null,null,null,null,null,null,null,null,null,1900]
[null,null,null,null,null,null,null,null,null,null,null,null,null,null,null,null,null,1900]
[null,null,null,null,null,null,null,null,null,null,null,null,null,null,null,null,null,1900]
[null,null,null,null,null,null,null,null,null,null,null,null,null,null,null,null,null,1900]
[null,null,null,null,null,null,null,null,null,null,null,null,null,null,null,null,null,1900]
[null,null,null,null,null,null,null,null,null,null,null,null,null,null,null,null,null,1900]
[null,null,null,null,null,null,null,null,null,null,null,null,null,null,null,null,null,1900]
[null,null,null,null,null,null,null,null,null,null,null,null,null,null,null,null,null,1900]
[null,null,null,null,null,null,null,null,null,null,null,null,null,null,null,null,null,1900]
[null,null,null,null,null,null,null,null,null,null,null,null,null,null,null,null,null,1900]
[null,null,null,null,null,null,null,null,null,null,null,null,null,null,null,null,null,1900]
[null,null,null,null,null,null,null,null,null,null,null,null,null,null,null,null,null,1900]
[null,null,null,null,null,null,null,null,null,null,null,null,null,null,null,null,null,1900]
[null,null,null,null,null,null,null,null,null,null,null,null,null,null,null,null,null,1900]
[null,null,null,null,null,null,null,null,null,null,null,null,null,null,null,null,null,1900]
[null,null,null,null,null,null,null,null,null,null,null,null,null,null,null,null,null,1900]
[null,null,null,null,null,null,null,null,null,null,null,null,null,null,null,null,null,1900]
[null,null,null,null,null,null,null,null,null,null,null,null,null,null,null,null,null,1900]
[null,null,null,null,null,null,null,null,null,null,null,null,null,null,null,null,null,1900]
[null,null,null,null,null,null,null,null,null,null,null,null,null,null,null,null,null,1900]
[null,null,null,null,null,null,null,null,null,null,null,null,null,null,null,null,null,1900]
[null,null,null,null,null,null,null,null,null,null,null,null,null,null,null,null,null,1900]
[null,null,null,null,null,null,null,null,null,null,null,null,null,null,null,null,null,1900]
[null,null,null,null,null,null,null,null,null,null,null,null,null,null,null,null,null,1900]
[null,null,null,null,null,null,null,null,null,null,null,null,null,null,null,null,null,1900]
[null,null,null,null,null,null,null,null,null,null,null,null,null,null,null,null,null,1900]
[null,null,null,null,null,null,null,null,null,null,null,null,null,null,null,null,null,1900]
[null,null,null,null,null,null,null,null,null,null,null,null,null,null,null,null,null,1900]
[null,null,null,null,null,null,null,null,null,null,null,null,null,null,null,null,null,1900]
[null,null,null,null,null,null,null,null,null,null,null,null,null,null,null,null,null,1900]
[null,null,null,null,null,null,null,null,null,null,null,null,null,null,null,null,null,1900]
[null,null,null,null,null,null,null,null,null,null,null,null,null,null,null,null,null,1900]
[null,null,null,null,null,null,null,null,null,null,null,null,null,null,null,null,null,1900]
[null,null,null,null,null,null,null,null,null,null,null,null,null,null,null,null,null,1900]
[null,null,null,null,null,null,null,null,null,null,null,null,null,null,null,null,null,1900]
[null,null,null,null,null,null,null,null,null,null,null,null,null,null,null,null,null,1900]
[null,null,null,null,null,null,null,null,null,null,null,null,null,null,null,null,null,1900]
[null,null,null,null,null,null,null,null,null,null,null,null,null,null,null,null,null,1900]
[null,null,null,null,null,null,null,null,null,null,null,null,null,null,null,null,null,1900]
[null,null,null,null,null,null,null,null,null,null,null,null,null,null,null,null,null,1900]
[null,null,null,null,null,null,null,null,null,null,null,null,null,null,null,null,null,1900]
[null,null,null,null,null,null,null,null,null,null,null,null,null,null,null,null,null,1900]
[null,null,null,null,null,null,null,null,null,null,null,null,null,null,null,null,null,{"$f":"YEAR(K774)","v":1900}]
[null,null,null,null,null,null,null,null,null,null,null,null,null,null,null,null,null,1900]
[null,null,null,null,null,null,null,null,null,null,null,null,null,null,null,null,null,1900]
[null,null,null,null,null,null,null,null,null,null,null,null,null,null,null,null,null,1900]
[null,null,null,null,null,null,null,null,null,null,null,null,null,null,null,null,null,1900]
[null,null,null,null,null,null,null,null,null,null,null,null,null,null,null,null,null,1900]
[null,null,null,null,null,null,null,null,null,null,null,null,null,null,null,null,null,1900]
[null,null,null,null,null,null,null,null,null,null,null,null,null,null,null,null,null,1900]
[null,null,null,null,null,null,null,null,null,null,null,null,null,null,null,null,null,1900]
[null,null,null,null,null,null,null,null,null,null,null,null,null,null,null,null,null,1900]
[null,null,null,null,null,null,null,null,null,null,null,null,null,null,null,null,null,1900]
[null,null,null,null,null,null,null,null,null,null,null,null,null,null,null,null,null,1900]
[null,null,null,null,null,null,null,null,null,null,null,null,null,null,null,null,null,1900]
[null,null,null,null,null,null,null,null,null,null,null,null,null,null,null,null,null,1900]
[null,null,null,null,null,null,null,null,null,null,null,null,null,null,null,null,null,1900]
[null,null,null,null,null,null,null,null,null,null,null,null,null,null,null,null,null,1900]
[null,null,null,null,null,null,null,null,null,null,null,null,null,null,null,null,null,1900]
[null,null,null,null,null,null,null,null,null,null,null,null,null,null,null,null,null,1900]
[null,null,null,null,null,null,null,null,null,null,null,null,null,null,null,null,null,1900]
[null,null,null,null,null,null,null,null,null,null,null,null,null,null,null,null,null,1900]
[null,null,null,null,null,null,null,null,null,null,null,null,null,null,null,null,null,1900]
[null,null,null,null,null,null,null,null,null,null,null,null,null,null,null,null,null,1900]
[null,null,null,null,null,null,null,null,null,null,null,null,null,null,null,null,null,1900]
[null,null,null,null,null,null,null,null,null,null,null,null,null,null,null,null,null,1900]
[null,null,null,null,null,null,null,null,null,null,null,null,null,null,null,null,null,1900]
[null,null,null,null,null,null,null,null,null,null,null,null,null,null,null,null,null,1900]
[null,null,null,null,null,null,null,null,null,null,null,null,null,null,null,null,null,1900]
[null,null,null,null,null,null,null,null,null,null,null,null,null,null,null,null,null,1900]
[null,null,null,null,null,null,null,null,null,null,null,null,null,null,null,null,null,1900]
[null,null,null,null,null,null,null,null,null,null,null,null,null,null,null,null,null,1900]
[null,null,null,null,null,null,null,null,null,null,null,null,null,null,null,null,null,1900]
[null,null,null,null,null,null,null,null,null,null,null,null,null,null,null,null,null,1900]
[null,null,null,null,null,null,null,null,null,null,null,null,null,null,null,null,null,1900]
[null,null,null,null,null,null,null,null,null,null,null,null,null,null,null,null,null,1900]
[null,null,null,null,null,null,null,null,null,null,null,null,null,null,null,null,null,1900]
[null,null,null,null,null,null,null,null,null,null,null,null,null,null,null,null,null,1900]
[null,null,null,null,null,null,null,null,null,null,null,null,null,null,null,null,null,1900]
[null,null,null,null,null,null,null,null,null,null,null,null,null,null,null,null,null,1900]
[null,null,null,null,null,null,null,null,null,null,null,null,null,null,null,null,null,1900]
[null,null,null,null,null,null,null,null,null,null,null,null,null,null,null,null,null,1900]
[null,null,null,null,null,null,null,null,null,null,null,null,null,null,null,null,null,1900]
[null,null,null,null,null,null,null,null,null,null,null,null,null,null,null,null,null,1900]
[null,null,null,null,null,null,null,null,null,null,null,null,null,null,null,null,null,1900]
[null,null,null,null,null,null,null,null,null,null,null,null,null,null,null,null,null,1900]
[null,null,null,null,null,null,null,null,null,null,null,null,null,null,null,null,null,1900]
[null,null,null,null,null,null,null,null,null,null,null,null,null,null,null,null,null,1900]
[null,null,null,null,null,null,null,null,null,null,null,null,null,null,null,null,null,1900]
[null,null,null,null,null,null,null,null,null,null,null,null,null,null,null,null,null,1900]
[null,null,null,null,null,null,null,null,null,null,null,null,null,null,null,null,null,1900]
[null,null,null,null,null,null,null,null,null,null,null,null,null,null,null,null,null,1900]
[null,null,null,null,null,null,null,null,null,null,null,null,null,null,null,null,null,1900]
[null,null,null,null,null,null,null,null,null,null,null,null,null,null,null,null,null,1900]
[null,null,null,null,null,null,null,null,null,null,null,null,null,null,null,null,null,1900]
[null,null,null,null,null,null,null,null,null,null,null,null,null,null,null,null,null,1900]
[null,null,null,null,null,null,null,null,null,null,null,null,null,null,null,null,null,1900]
[null,null,null,null,null,null,null,null,null,null,null,null,null,null,null,null,null,1900]
[null,null,null,null,null,null,null,null,null,null,null,null,null,null,null,null,null,1900]
[null,null,null,null,null,null,null,null,null,null,null,null,null,null,null,null,null,1900]
[null,null,null,null,null,null,null,null,null,null,null,null,null,null,null,null,null,1900]
[null,null,null,null,null,null,null,null,null,null,null,null,null,null,null,null,null,1900]
[null,null,null,null,null,null,null,null,null,null,null,null,null,null,null,null,null,1900]
[null,null,null,null,null,null,null,null,null,null,null,null,null,null,null,null,null,1900]
[null,null,null,null,null,null,null,null,null,null,null,null,null,null,null,null,null,1900]
[null,null,null,null,null,null,null,null,null,null,null,null,null,null,null,null,null,1900]
[null,null,null,null,null,null,null,null,null,null,null,null,null,null,null,null,null,{"$f":"YEAR(K838)","v":1900}]
[null,null,null,null,null,null,null,null,null,null,null,null,null,null,null,null,null,1900]
[null,null,null,null,null,null,null,null,null,null,null,null,null,null,null,null,null,1900]
[null,null,null,null,null,null,null,null,null,null,null,null,null,null,null,null,null,1900]
[null,null,null,null,null,null,null,null,null,null,null,null,null,null,null,null,null,1900]
[null,null,null,null,null,null,null,null,null,null,null,null,null,null,null,null,null,1900]
[null,null,null,null,null,null,null,null,null,null,null,null,null,null,null,null,null,1900]
[null,null,null,null,null,null,null,null,null,null,null,null,null,null,null,null,null,1900]
[null,null,null,null,null,null,null,null,null,null,null,null,null,null,null,null,null,1900]
[null,null,null,null,null,null,null,null,null,null,null,null,null,null,null,null,null,1900]
[null,null,null,null,null,null,null,null,null,null,null,null,null,null,null,null,null,1900]
[null,null,null,null,null,null,null,null,null,null,null,null,null,null,null,null,null,1900]
[null,null,null,null,null,null,null,null,null,null,null,null,null,null,null,null,null,1900]
[null,null,null,null,null,null,null,null,null,null,null,null,null,null,null,null,null,1900]
[null,null,null,null,null,null,null,null,null,null,null,null,null,null,null,null,null,1900]
[null,null,null,null,null,null,null,null,null,null,null,null,null,null,null,null,null,1900]
[null,null,null,null,null,null,null,null,null,null,null,null,null,null,null,null,null,1900]
[null,null,null,null,null,null,null,null,null,null,null,null,null,null,null,null,null,1900]
[null,null,null,null,null,null,null,null,null,null,null,null,null,null,null,null,null,1900]
[null,null,null,null,null,null,null,null,null,null,null,null,null,null,null,null,null,1900]
[null,null,null,null,null,null,null,null,null,null,null,null,null,null,null,null,null,1900]
[null,null,null,null,null,null,null,null,null,null,null,null,null,null,null,null,null,1900]
[null,null,null,null,null,null,null,null,null,null,null,null,null,null,null,null,null,1900]
[null,null,null,null,null,null,null,null,null,null,null,null,null,null,null,null,null,1900]
[null,null,null,null,null,null,null,null,null,null,null,null,null,null,null,null,null,1900]
[null,null,null,null,null,null,null,null,null,null,null,null,null,null,null,null,null,1900]
[null,null,null,null,null,null,null,null,null,null,null,null,null,null,null,null,null,1900]
[null,null,null,null,null,null,null,null,null,null,null,null,null,null,null,null,null,1900]
[null,null,null,null,null,null,null,null,null,null,null,null,null,null,null,null,null,1900]
[null,null,null,null,null,null,null,null,null,null,null,null,null,null,null,null,null,1900]
[null,null,null,null,null,null,null,null,null,null,null,null,null,null,null,null,null,1900]
[null,null,null,null,null,null,null,null,null,null,null,null,null,null,null,null,null,1900]
[null,null,null,null,null,null,null,null,null,null,null,null,null,null,null,null,null,1900]
[null,null,null,null,null,null,null,null,null,null,null,null,null,null,null,null,null,1900]
[null,null,null,null,null,null,null,null,null,null,null,null,null,null,null,null,null,1900]
[null,null,null,null,null,null,null,null,null,null,null,null,null,null,null,null,null,1900]
[null,null,null,null,null,null,null,null,null,null,null,null,null,null,null,null,null,1900]
[null,null,null,null,null,null,null,null,null,null,null,null,null,null,null,null,null,1900]
[null,null,null,null,null,null,null,null,null,null,null,null,null,null,null,null,null,1900]
[null,null,null,null,null,null,null,null,null,null,null,null,null,null,null,null,null,1900]
[null,null,null,null,null,null,null,null,null,null,null,null,null,null,null,null,null,1900]
[null,null,null,null,null,null,null,null,null,null,null,null,null,null,null,null,null,1900]
[null,null,null,null,null,null,null,null,null,null,null,null,null,null,null,null,null,1900]
[null,null,null,null,null,null,null,null,null,null,null,null,null,null,null,null,null,1900]
[null,null,null,null,null,null,null,null,null,null,null,null,null,null,null,null,null,1900]
[null,null,null,null,null,null,null,null,null,null,null,null,null,null,null,null,null,1900]
[null,null,null,null,null,null,null,null,null,null,null,null,null,null,null,null,null,1900]
[null,null,null,null,null,null,null,null,null,null,null,null,null,null,null,null,null,1900]
[null,null,null,null,null,null,null,null,null,null,null,null,null,null,null,null,null,1900]
[null,null,null,null,null,null,null,null,null,null,null,null,null,null,null,null,null,1900]
[null,null,null,null,null,null,null,null,null,null,null,null,null,null,null,null,null,1900]
[null,null,null,null,null,null,null,null,null,null,null,null,null,null,null,null,null,1900]
[null,null,null,null,null,null,null,null,null,null,null,null,null,null,null,null,null,1900]
[null,null,null,null,null,null,null,null,null,null,null,null,null,null,null,null,null,1900]
[null,null,null,null,null,null,null,null,null,null,null,null,null,null,null,null,null,1900]
[null,null,null,null,null,null,null,null,null,null,null,null,null,null,null,null,null,1900]
[null,null,null,null,null,null,null,null,null,null,null,null,null,null,null,null,null,1900]
[null,null,null,null,null,null,null,null,null,null,null,null,null,null,null,null,null,1900]
[null,null,null,null,null,null,null,null,null,null,null,null,null,null,null,null,null,1900]
[null,null,null,null,null,null,null,null,null,null,null,null,null,null,null,null,null,1900]
[null,null,null,null,null,null,null,null,null,null,null,null,null,null,null,null,null,1900]
[null,null,null,null,null,null,null,null,null,null,null,null,null,null,null,null,null,1900]
[null,null,null,null,null,null,null,null,null,null,null,null,null,null,null,null,null,1900]
[null,null,null,null,null,null,null,null,null,null,null,null,null,null,null,null,null,1900]
[null,null,null,null,null,null,null,null,null,null,null,null,null,null,null,null,null,{"$f":"YEAR(K902)","v":1900}]
[null,null,null,null,null,null,null,null,null,null,null,null,null,null,null,null,null,1900]
[null,null,null,null,null,null,null,null,null,null,null,null,null,null,null,null,null,1900]
[null,null,null,null,null,null,null,null,null,null,null,null,null,null,null,null,null,1900]
[null,null,null,null,null,null,null,null,null,null,null,null,null,null,null,null,null,1900]
[null,null,null,null,null,null,null,null,null,null,null,null,null,null,null,null,null,1900]
[null,null,null,null,null,null,null,null,null,null,null,null,null,null,null,null,null,1900]
[null,null,null,null,null,null,null,null,null,null,null,null,null,null,null,null,null,1900]
[null,null,null,null,null,null,null,null,null,null,null,null,null,null,null,null,null,1900]
[null,null,null,null,null,null,null,null,null,null,null,null,null,null,null,null,null,1900]
[null,null,null,null,null,null,null,null,null,null,null,null,null,null,null,null,null,1900]
[null,null,null,null,null,null,null,null,null,null,null,null,null,null,null,null,null,1900]
[null,null,null,null,null,null,null,null,null,null,null,null,null,null,null,null,null,1900]
[null,null,null,null,null,null,null,null,null,null,null,null,null,null,null,null,null,1900]
[null,null,null,null,null,null,null,null,null,null,null,null,null,null,null,null,null,1900]
[null,null,null,null,null,null,null,null,null,null,null,null,null,null,null,null,null,1900]
[null,null,null,null,null,null,null,null,null,null,null,null,null,null,null,null,null,1900]
[null,null,null,null,null,null,null,null,null,null,null,null,null,null,null,null,null,1900]
[null,null,null,null,null,null,null,null,null,null,null,null,null,null,null,null,null,1900]
[null,null,null,null,null,null,null,null,null,null,null,null,null,null,null,null,null,1900]
[null,null,null,null,null,null,null,null,null,null,null,null,null,null,null,null,null,1900]
[null,null,null,null,null,null,null,null,null,null,null,null,null,null,null,null,null,1900]
[null,null,null,null,null,null,null,null,null,null,null,null,null,null,null,null,null,1900]
[null,null,null,null,null,null,null,null,null,null,null,null,null,null,null,null,null,1900]
[null,null,null,null,null,null,null,null,null,null,null,null,null,null,null,null,null,1900]
[null,null,null,null,null,null,null,null,null,null,null,null,null,null,null,null,null,1900]
[null,null,null,null,null,null,null,null,null,null,null,null,null,null,null,null,null,1900]
[null,null,null,null,null,null,null,null,null,null,null,null,null,null,null,null,null,1900]
[null,null,null,null,null,null,null,null,null,null,null,null,null,null,null,null,null,1900]
[null,null,null,null,null,null,null,null,null,null,null,null,null,null,null,null,null,1900]
[null,null,null,null,null,null,null,null,null,null,null,null,null,null,null,null,null,1900]
[null,null,null,null,null,null,null,null,null,null,null,null,null,null,null,null,null,1900]
[null,null,null,null,null,null,null,null,null,null,null,null,null,null,null,null,null,1900]
[null,null,null,null,null,null,null,null,null,null,null,null,null,null,null,null,null,1900]
[null,null,null,null,null,null,null,null,null,null,null,null,null,null,null,null,null,1900]
[null,null,null,null,null,null,null,null,null,null,null,null,null,null,null,null,null,1900]
[null,null,null,null,null,null,null,null,null,null,null,null,null,null,null,null,null,1900]
[null,null,null,null,null,null,null,null,null,null,null,null,null,null,null,null,null,1900]
[null,null,null,null,null,null,null,null,null,null,null,null,null,null,null,null,null,1900]
[null,null,null,null,null,null,null,null,null,null,null,null,null,null,null,null,null,1900]
[null,null,null,null,null,null,null,null,null,null,null,null,null,null,null,null,null,1900]
[null,null,null,null,null,null,null,null,null,null,null,null,null,null,null,null,null,1900]
[null,null,null,null,null,null,null,null,null,null,null,null,null,null,null,null,null,1900]
[null,null,null,null,null,null,null,null,null,null,null,null,null,null,null,null,null,1900]
[null,null,null,null,null,null,null,null,null,null,null,null,null,null,null,null,null,1900]
[null,null,null,null,null,null,null,null,null,null,null,null,null,null,null,null,null,1900]
[null,null,null,null,null,null,null,null,null,null,null,null,null,null,null,null,null,1900]
[null,null,null,null,null,null,null,null,null,null,null,null,null,null,null,null,null,1900]
[null,null,null,null,null,null,null,null,null,null,null,null,null,null,null,null,null,1900]
[null,null,null,null,null,null,null,null,null,null,null,null,null,null,null,null,null,1900]
[null,null,null,null,null,null,null,null,null,null,null,null,null,null,null,null,null,1900]
[null,null,null,null,null,null,null,null,null,null,null,null,null,null,null,null,null,1900]
[null,null,null,null,null,null,null,null,null,null,null,null,null,null,null,null,null,1900]
[null,null,null,null,null,null,null,null,null,null,null,null,null,null,null,null,null,1900]
[null,null,null,null,null,null,null,null,null,null,null,null,null,null,null,null,null,1900]
[null,null,null,null,null,null,null,null,null,null,null,null,null,null,null,null,null,1900]
[null,null,null,null,null,null,null,null,null,null,null,null,null,null,null,null,null,1900]
[null,null,null,null,null,null,null,null,null,null,null,null,null,null,null,null,null,1900]
[null,null,null,null,null,null,null,null,null,null,null,null,null,null,null,null,null,1900]
[null,null,null,null,null,null,null,null,null,null,null,null,null,null,null,null,null,1900]
[null,null,null,null,null,null,null,null,null,null,null,null,null,null,null,null,null,1900]
[null,null,null,null,null,null,null,null,null,null,null,null,null,null,null,null,null,1900]
[null,null,null,null,null,null,null,null,null,null,null,null,null,null,null,null,null,1900]
[null,null,null,null,null,null,null,null,null,null,null,null,null,null,null,null,null,1900]
[null,null,null,null,null,null,null,null,null,null,null,null,null,null,null,null,null,{"$f":"YEAR(K966)","v":1900}]
[null,null,null,null,null,null,null,null,null,null,null,null,null,null,null,null,null,1900]
[null,null,null,null,null,null,null,null,null,null,null,null,null,null,null,null,null,1900]
[null,null,null,null,null,null,null,null,null,null,null,null,null,null,null,null,null,1900]
[null,null,null,null,null,null,null,null,null,null,null,null,null,null,null,null,null,1900]
[null,null,null,null,null,null,null,null,null,null,null,null,null,null,null,null,null,1900]
[null,null,null,null,null,null,null,null,null,null,null,null,null,null,null,null,null,1900]
[null,null,null,null,null,null,null,null,null,null,null,null,null,null,null,null,null,1900]
[null,null,null,null,null,null,null,null,null,null,null,null,null,null,null,null,null,1900]
[null,null,null,null,null,null,null,null,null,null,null,null,null,null,null,null,null,1900]
[null,null,null,null,null,null,null,null,null,null,null,null,null,null,null,null,null,1900]
[null,null,null,null,null,null,null,null,null,null,null,null,null,null,null,null,null,1900]
[null,null,null,null,null,null,null,null,null,null,null,null,null,null,null,null,null,1900]
[null,null,null,null,null,null,null,null,null,null,null,null,null,null,null,null,null,1900]
[null,null,null,null,null,null,null,null,null,null,null,null,null,null,null,null,null,1900]
[null,null,null,null,null,null,null,null,null,null,null,null,null,null,null,null,null,1900]
[null,null,null,null,null,null,null,null,null,null,null,null,null,null,null,null,null,1900]
[null,null,null,null,null,null,null,null,null,null,null,null,null,null,null,null,null,1900]
[null,null,null,null,null,null,null,null,null,null,null,null,null,null,null,null,null,1900]
[null,null,null,null,null,null,null,null,null,null,null,null,null,null,null,null,null,1900]
[null,null,null,null,null,null,null,null,null,null,null,null,null,null,null,null,null,1900]
[null,null,null,null,null,null,null,null,null,null,null,null,null,null,null,null,null,1900]
[null,null,null,null,null,null,null,null,null,null,null,null,null,null,null,null,null,1900]
[null,null,null,null,null,null,null,null,null,null,null,null,null,null,null,null,null,1900]
[null,null,null,null,null,null,null,null,null,null,null,null,null,null,null,null,null,1900]
[null,null,null,null,null,null,null,null,null,null,null,null,null,null,null,null,null,1900]
[null,null,null,null,null,null,null,null,null,null,null,null,null,null,null,null,null,1900]
[null,null,null,null,null,null,null,null,null,null,null,null,null,null,null,null,null,1900]
[null,null,null,null,null,null,null,null,null,null,null,null,null,null,null,null,null,1900]
[null,null,null,null,null,null,null,null,null,null,null,null,null,null,null,null,null,1900]
[null,null,null,null,null,null,null,null,null,null,null,null,null,null,null,null,null,1900]
[null,null,null,null,null,null,null,null,null,null,null,null,null,null,null,null,null,1900]
[null,null,null,null,null,null,null,null,null,null,null,null,null,null,null,null,null,1900]
[null,null,null,null,null,null,null,null,null,null,null,null,null,null,null,null,null,1900]
[null,null,null,null,null,null,null,null,null,null,null,null,null,null,null,null,null,1900]
[null,null,null,null,null,null,null,null,null,null,null,null,null,null,null,null,null,1900]
[null,null,null,null,null,null,null,null,null,null,null,null,null,null,null,null,null,1900]
[null,null,null,null,null,null,null,null,null,null,null,null,null,null,null,null,null,1900]
[null,null,null,null,null,null,null,null,null,null,null,null,null,null,null,null,null,1900]
[null,null,null,null,null,null,null,null,null,null,null,null,null,null,null,null,null,1900]
[null,null,null,null,null,null,null,null,null,null,null,null,null,null,null,null,null,1900]
[null,null,null,null,null,null,null,null,null,null,null,null,null,null,null,null,null,1900]
[null,null,null,null,null,null,null,null,null,null,null,null,null,null,null,null,null,1900]
[null,null,null,null,null,null,null,null,null,null,null,null,null,null,null,null,null,1900]
[null,null,null,null,null,null,null,null,null,null,null,null,null,null,null,null,null,1900]
[null,null,null,null,null,null,null,null,null,null,null,null,null,null,null,null,null,1900]
[null,null,null,null,null,null,null,null,null,null,null,null,null,null,null,null,null,1900]
[null,null,null,null,null,null,null,null,null,null,null,null,null,null,null,null,null,1900]
[null,null,null,null,null,null,null,null,null,null,null,null,null,null,null,null,null,1900]
[null,null,null,null,null,null,null,null,null,null,null,null,null,null,null,null,null,1900]
[null,null,null,null,null,null,null,null,null,null,null,null,null,null,null,null,null,1900]
[null,null,null,null,null,null,null,null,null,null,null,null,null,null,null,null,null,1900]
[null,null,null,null,null,null,null,null,null,null,null,null,null,null,null,null,null,1900]
[null,null,null,null,null,null,null,null,null,null,null,null,null,null,null,null,null,1900]
[null,null,null,null,null,null,null,null,null,null,null,null,null,null,null,null,null,1900]
[null,null,null,null,null,null,null,null,null,null,null,null,null,null,null,null,null,1900]
[null,null,null,null,null,null,null,null,null,null,null,null,null,null,null,null,null,1900]
[null,null,null,null,null,null,null,null,null,null,null,null,null,null,null,null,null,1900]
[null,null,null,null,null,null,null,null,null,null,null,null,null,null,null,null,null,1900]
[null,null,null,null,null,null,null,null,null,null,null,null,null,null,null,null,null,1900]
[null,null,null,null,null,null,null,null,null,null,null,null,null,null,null,null,null,1900]
[null,null,null,null,null,null,null,null,null,null,null,null,null,null,null,null,null,1900]
[null,null,null,null,null,null,null,null,null,null,null,null,null,null,null,null,null,1900]
[null,null,null,null,null,null,null,null,null,null,null,null,null,null,null,null,null,1900]
[null,null,null,null,null,null,null,null,null,null,null,null,null,null,null,null,null,{"$f":"YEAR(K1030)","v":1900}]
[null,null,null,null,null,null,null,null,null,null,null,null,null,null,null,null,null,1900]
[null,null,null,null,null,null,null,null,null,null,null,null,null,null,null,null,null,1900]
[null,null,null,null,null,null,null,null,null,null,null,null,null,null,null,null,null,1900]
[null,null,null,null,null,null,null,null,null,null,null,null,null,null,null,null,null,1900]
[null,null,null,null,null,null,null,null,null,null,null,null,null,null,null,null,null,1900]
[null,null,null,null,null,null,null,null,null,null,null,null,null,null,null,null,null,1900]
[null,null,null,null,null,null,null,null,null,null,null,null,null,null,null,null,null,1900]
[null,null,null,null,null,null,null,null,null,null,null,null,null,null,null,null,null,1900]
[null,null,null,null,null,null,null,null,null,null,null,null,null,null,null,null,null,1900]
[null,null,null,null,null,null,null,null,null,null,null,null,null,null,null,null,null,1900]
[null,null,null,null,null,null,null,null,null,null,null,null,null,null,null,null,null,1900]
[null,null,null,null,null,null,null,null,null,null,null,null,null,null,null,null,null,1900]
[null,null,null,null,null,null,null,null,null,null,null,null,null,null,null,null,null,1900]
[null,null,null,null,null,null,null,null,null,null,null,null,null,null,null,null,null,1900]
[null,null,null,null,null,null,null,null,null,null,null,null,null,null,null,null,null,1900]
[null,null,null,null,null,null,null,null,null,null,null,null,null,null,null,null,null,1900]
[null,null,null,null,null,null,null,null,null,null,null,null,null,null,null,null,null,1900]
[null,null,null,null,null,null,null,null,null,null,null,null,null,null,null,null,null,1900]
[null,null,null,null,null,null,null,null,null,null,null,null,null,null,null,null,null,1900]
[null,null,null,null,null,null,null,null,null,null,null,null,null,null,null,null,null,1900]
[null,null,null,null,null,null,null,null,null,null,null,null,null,null,null,null,null,1900]
[null,null,null,null,null,null,null,null,null,null,null,null,null,null,null,null,null,1900]
[null,null,null,null,null,null,null,null,null,null,null,null,null,null,null,null,null,1900]
[null,null,null,null,null,null,null,null,null,null,null,null,null,null,null,null,null,1900]
[null,null,null,null,null,null,null,null,null,null,null,null,null,null,null,null,null,1900]
[null,null,null,null,null,null,null,null,null,null,null,null,null,null,null,null,null,1900]
[null,null,null,null,null,null,null,null,null,null,null,null,null,null,null,null,null,1900]
[null,null,null,null,null,null,null,null,null,null,null,null,null,null,null,null,null,1900]
[null,null,null,null,null,null,null,null,null,null,null,null,null,null,null,null,null,1900]
[null,null,null,null,null,null,null,null,null,null,null,null,null,null,null,null,null,1900]
[null,null,null,null,null,null,null,null,null,null,null,null,null,null,null,null,null,1900]
[null,null,null,null,null,null,null,null,null,null,null,null,null,null,null,null,null,1900]
[null,null,null,null,null,null,null,null,null,null,null,null,null,null,null,null,null,1900]
[null,null,null,null,null,null,null,null,null,null,null,null,null,null,null,null,null,1900]
[null,null,null,null,null,null,null,null,null,null,null,null,null,null,null,null,null,1900]
[null,null,null,null,null,null,null,null,null,null,null,null,null,null,null,null,null,1900]
[null,null,null,null,null,null,null,null,null,null,null,null,null,null,null,null,null,1900]
[null,null,null,null,null,null,null,null,null,null,null,null,null,null,null,null,null,1900]
[null,null,null,null,null,null,null,null,null,null,null,null,null,null,null,null,null,1900]
[null,null,null,null,null,null,null,null,null,null,null,null,null,null,null,null,null,1900]
[null,null,null,null,null,null,null,null,null,null,null,null,null,null,null,null,null,1900]
[null,null,null,null,null,null,null,null,null,null,null,null,null,null,null,null,null,1900]
[null,null,null,null,null,null,null,null,null,null,null,null,null,null,null,null,null,1900]
[null,null,null,null,null,null,null,null,null,null,null,null,null,null,null,null,null,1900]
[null,null,null,null,null,null,null,null,null,null,null,null,null,null,null,null,null,1900]
[null,null,null,null,null,null,null,null,null,null,null,null,null,null,null,null,null,1900]
[null,null,null,null,null,null,null,null,null,null,null,null,null,null,null,null,null,1900]
[null,null,null,null,null,null,null,null,null,null,null,null,null,null,null,null,null,1900]
[null,null,null,null,null,null,null,null,null,null,null,null,null,null,null,null,null,1900]
[null,null,null,null,null,null,null,null,null,null,null,null,null,null,null,null,null,1900]
[null,null,null,null,null,null,null,null,null,null,null,null,null,null,null,null,null,1900]
[null,null,null,null,null,null,null,null,null,null,null,null,null,null,null,null,null,1900]
[null,null,null,null,null,null,null,null,null,null,null,null,null,null,null,null,null,1900]
[null,null,null,null,null,null,null,null,null,null,null,null,null,null,null,null,null,1900]
[null,null,null,null,null,null,null,null,null,null,null,null,null,null,null,null,null,1900]
[null,null,null,null,null,null,null,null,null,null,null,null,null,null,null,null,null,1900]
[null,null,null,null,null,null,null,null,null,null,null,null,null,null,null,null,null,1900]
[null,null,null,null,null,null,null,null,null,null,null,null,null,null,null,null,null,1900]
[null,null,null,null,null,null,null,null,null,null,null,null,null,null,null,null,null,1900]
[null,null,null,null,null,null,null,null,null,null,null,null,null,null,null,null,null,1900]
[null,null,null,null,null,null,null,null,null,null,null,null,null,null,null,null,null,1900]
[null,null,null,null,null,null,null,null,null,null,null,null,null,null,null,null,null,1900]
[null,null,null,null,null,null,null,null,null,null,null,null,null,null,null,null,null,1900]
[null,null,null,null,null,null,null,null,null,null,null,null,null,null,null,null,null,{"$f":"YEAR(K1094)","v":1900}]
[null,null,null,null,null,null,null,null,null,null,null,null,null,null,null,null,null,1900]
[null,null,null,null,null,null,null,null,null,null,null,null,null,null,null,null,null,1900]
[null,null,null,null,null,null,null,null,null,null,null,null,null,null,null,null,null,1900]
[null,null,null,null,null,null,null,null,null,null,null,null,null,null,null,null,null,1900]
[null,null,null,null,null,null,null,null,null,null,null,null,null,null,null,null,null,1900]
[null,null,null,null,null,null,null,null,null,null,null,null,null,null,null,null,null,1900]
[null,null,null,null,null,null,null,null,null,null,null,null,null,null,null,null,null,1900]
[null,null,null,null,null,null,null,null,null,null,null,null,null,null,null,null,null,1900]
[null,null,null,null,null,null,null,null,null,null,null,null,null,null,null,null,null,1900]
[null,null,null,null,null,null,null,null,null,null,null,null,null,null,null,null,null,1900]
[null,null,null,null,null,null,null,null,null,null,null,null,null,null,null,null,null,1900]
[null,null,null,null,null,null,null,null,null,null,null,null,null,null,null,null,null,1900]
[null,null,null,null,null,null,null,null,null,null,null,null,null,null,null,null,null,1900]
[null,null,null,null,null,null,null,null,null,null,null,null,null,null,null,null,null,1900]
[null,null,null,null,null,null,null,null,null,null,null,null,null,null,null,null,null,1900]
[null,null,null,null,null,null,null,null,null,null,null,null,null,null,null,null,null,1900]
[null,null,null,null,null,null,null,null,null,null,null,null,null,null,null,null,null,1900]
[null,null,null,null,null,null,null,null,null,null,null,null,null,null,null,null,null,1900]
[null,null,null,null,null,null,null,null,null,null,null,null,null,null,null,null,null,1900]
[null,null,null,null,null,null,null,null,null,null,null,null,null,null,null,null,null,1900]
[null,null,null,null,null,null,null,null,null,null,null,null,null,null,null,null,null,1900]
[null,null,null,null,null,null,null,null,null,null,null,null,null,null,null,null,null,1900]
[null,null,null,null,null,null,null,null,null,null,null,null,null,null,null,null,null,1900]
[null,null,null,null,null,null,null,null,null,null,null,null,null,null,null,null,null,1900]
[null,null,null,null,null,null,null,null,null,null,null,null,null,null,null,null,null,1900]
[null,null,null,null,null,null,null,null,null,null,null,null,null,null,null,null,null,1900]
[null,null,null,null,null,null,null,null,null,null,null,null,null,null,null,null,null,1900]
[null,null,null,null,null,null,null,null,null,null,null,null,null,null,null,null,null,1900]
[null,null,null,null,null,null,null,null,null,null,null,null,null,null,null,null,null,1900]
[null,null,null,null,null,null,null,null,null,null,null,null,null,null,null,null,null,1900]
[null,null,null,null,null,null,null,null,null,null,null,null,null,null,null,null,null,1900]
[null,null,null,null,null,null,null,null,null,null,null,null,null,null,null,null,null,1900]
[null,null,null,null,null,null,null,null,null,null,null,null,null,null,null,null,null,1900]
[null,null,null,null,null,null,null,null,null,null,null,null,null,null,null,null,null,1900]
[null,null,null,null,null,null,null,null,null,null,null,null,null,null,null,null,null,1900]
[null,null,null,null,null,null,null,null,null,null,null,null,null,null,null,null,null,1900]
[null,null,null,null,null,null,null,null,null,null,null,null,null,null,null,null,null,1900]
[null,null,null,null,null,null,null,null,null,null,null,null,null,null,null,null,null,1900]
[null,null,null,null,null,null,null,null,null,null,null,null,null,null,null,null,null,1900]
[null,null,null,null,null,null,null,null,null,null,null,null,null,null,null,null,null,1900]
[null,null,null,null,null,null,null,null,null,null,null,null,null,null,null,null,null,1900]
[null,null,null,null,null,null,null,null,null,null,null,null,null,null,null,null,null,1900]
[null,null,null,null,null,null,null,null,null,null,null,null,null,null,null,null,null,1900]
[null,null,null,null,null,null,null,null,null,null,null,null,null,null,null,null,null,1900]
[null,null,null,null,null,null,null,null,null,null,null,null,null,null,null,null,null,1900]
[null,null,null,null,null,null,null,null,null,null,null,null,null,null,null,null,null,1900]
[null,null,null,null,null,null,null,null,null,null,null,null,null,null,null,null,null,1900]
[null,null,null,null,null,null,null,null,null,null,null,null,null,null,null,null,null,1900]
[null,null,null,null,null,null,null,null,null,null,null,null,null,null,null,null,null,1900]
[null,null,null,null,null,null,null,null,null,null,null,null,null,null,null,null,null,1900]
[null,null,null,null,null,null,null,null,null,null,null,null,null,null,null,null,null,1900]
[null,null,null,null,null,null,null,null,null,null,null,null,null,null,null,null,null,1900]
[null,null,null,null,null,null,null,null,null,null,null,null,null,null,null,null,null,1900]
[null,null,null,null,null,null,null,null,null,null,null,null,null,null,null,null,null,1900]
[null,null,null,null,null,null,null,null,null,null,null,null,null,null,null,null,null,1900]
[null,null,null,null,null,null,null,null,null,null,null,null,null,null,null,null,null,1900]
[null,null,null,null,null,null,null,null,null,null,null,null,null,null,null,null,null,1900]
[null,null,null,null,null,null,null,null,null,null,null,null,null,null,null,null,null,1900]
[null,null,null,null,null,null,null,null,null,null,null,null,null,null,null,null,null,1900]
[null,null,null,null,null,null,null,null,null,null,null,null,null,null,null,null,null,1900]
[null,null,null,null,null,null,null,null,null,null,null,null,null,null,null,null,null,1900]
[null,null,null,null,null,null,null,null,null,null,null,null,null,null,null,null,null,1900]
[null,null,null,null,null,null,null,null,null,null,null,null,null,null,null,null,null,1900]
[null,null,null,null,null,null,null,null,null,null,null,null,null,null,null,null,null,{"$f":"YEAR(K1158)","v":1900}]
[null,null,null,null,null,null,null,null,null,null,null,null,null,null,null,null,null,1900]
[null,null,null,null,null,null,null,null,null,null,null,null,null,null,null,null,null,1900]
[null,null,null,null,null,null,null,null,null,null,null,null,null,null,null,null,null,1900]
[null,null,null,null,null,null,null,null,null,null,null,null,null,null,null,null,null,1900]
[null,null,null,null,null,null,null,null,null,null,null,null,null,null,null,null,null,1900]
[null,null,null,null,null,null,null,null,null,null,null,null,null,null,null,null,null,1900]
[null,null,null,null,null,null,null,null,null,null,null,null,null,null,null,null,null,1900]
[null,null,null,null,null,null,null,null,null,null,null,null,null,null,null,null,null,1900]
[null,null,null,null,null,null,null,null,null,null,null,null,null,null,null,null,null,1900]
[null,null,null,null,null,null,null,null,null,null,null,null,null,null,null,null,null,1900]
[null,null,null,null,null,null,null,null,null,null,null,null,null,null,null,null,null,1900]
[null,null,null,null,null,null,null,null,null,null,null,null,null,null,null,null,null,1900]
[null,null,null,null,null,null,null,null,null,null,null,null,null,null,null,null,null,1900]
[null,null,null,null,null,null,null,null,null,null,null,null,null,null,null,null,null,1900]
[null,null,null,null,null,null,null,null,null,null,null,null,null,null,null,null,null,1900]
[null,null,null,null,null,null,null,null,null,null,null,null,null,null,null,null,null,1900]
[null,null,null,null,null,null,null,null,null,null,null,null,null,null,null,null,null,1900]
[null,null,null,null,null,null,null,null,null,null,null,null,null,null,null,null,null,1900]
[null,null,null,null,null,null,null,null,null,null,null,null,null,null,null,null,null,1900]
[null,null,null,null,null,null,null,null,null,null,null,null,null,null,null,null,null,1900]
[null,null,null,null,null,null,null,null,null,null,null,null,null,null,null,null,null,1900]
[null,null,null,null,null,null,null,null,null,null,null,null,null,null,null,null,null,1900]
[null,null,null,null,null,null,null,null,null,null,null,null,null,null,null,null,null,1900]
[null,null,null,null,null,null,null,null,null,null,null,null,null,null,null,null,null,1900]
[null,null,null,null,null,null,null,null,null,null,null,null,null,null,null,null,null,1900]
[null,null,null,null,null,null,null,null,null,null,null,null,null,null,null,null,null,1900]
[null,null,null,null,null,null,null,null,null,null,null,null,null,null,null,null,null,1900]
[null,null,null,null,null,null,null,null,null,null,null,null,null,null,null,null,null,1900]
[null,null,null,null,null,null,null,null,null,null,null,null,null,null,null,null,null,1900]
[null,null,null,null,null,null,null,null,null,null,null,null,null,null,null,null,null,1900]
[null,null,null,null,null,null,null,null,null,null,null,null,null,null,null,null,null,1900]
[null,null,null,null,null,null,null,null,null,null,null,null,null,null,null,null,null,1900]
[null,null,null,null,null,null,null,null,null,null,null,null,null,null,null,null,null,1900]
[null,null,null,null,null,null,null,null,null,null,null,null,null,null,null,null,null,1900]
[null,null,null,null,null,null,null,null,null,null,null,null,null,null,null,null,null,1900]
[null,null,null,null,null,null,null,null,null,null,null,null,null,null,null,null,null,1900]
[null,null,null,null,null,null,null,null,null,null,null,null,null,null,null,null,null,1900]
[null,null,null,null,null,null,null,null,null,null,null,null,null,null,null,null,null,1900]
[null,null,null,null,null,null,null,null,null,null,null,null,null,null,null,null,null,1900]
[null,null,null,null,null,null,null,null,null,null,null,null,null,null,null,null,null,1900]
[null,null,null,null,null,null,null,null,null,null,null,null,null,null,null,null,null,1900]
[null,null,null,null,null,null,null,null,null,null,null,null,null,null,null,null,null,1900]
[null,null,null,null,null,null,null,null,null,null,null,null,null,null,null,null,null,1900]
[null,null,null,null,null,null,null,null,null,null,null,null,null,null,null,null,null,1900]
[null,null,null,null,null,null,null,null,null,null,null,null,null,null,null,null,null,1900]
[null,null,null,null,null,null,null,null,null,null,null,null,null,null,null,null,null,1900]
[null,null,null,null,null,null,null,null,null,null,null,null,null,null,null,null,null,1900]
[null,null,null,null,null,null,null,null,null,null,null,null,null,null,null,null,null,1900]
[null,null,null,null,null,null,null,null,null,null,null,null,null,null,null,null,null,1900]
[null,null,null,null,null,null,null,null,null,null,null,null,null,null,null,null,null,1900]
[null,null,null,null,null,null,null,null,null,null,null,null,null,null,null,null,null,1900]
[null,null,null,null,null,null,null,null,null,null,null,null,null,null,null,null,null,1900]
[null,null,null,null,null,null,null,null,null,null,null,null,null,null,null,null,null,1900]
[null,null,null,null,null,null,null,null,null,null,null,null,null,null,null,null,null,1900]
[null,null,null,null,null,null,null,null,null,null,null,null,null,null,null,null,null,1900]
[null,null,null,null,null,null,null,null,null,null,null,null,null,null,null,null,null,1900]
[null,null,null,null,null,null,null,null,null,null,null,null,null,null,null,null,null,1900]
[null,null,null,null,null,null,null,null,null,null,null,null,null,null,null,null,null,1900]
[null,null,null,null,null,null,null,null,null,null,null,null,null,null,null,null,null,1900]
[null,null,null,null,null,null,null,null,null,null,null,null,null,null,null,null,null,1900]
[null,null,null,null,null,null,null,null,null,null,null,null,null,null,null,null,null,1900]
[null,null,null,null,null,null,null,null,null,null,null,null,null,null,null,null,null,1900]
[null,null,null,null,null,null,null,null,null,null,null,null,null,null,null,null,null,1900]
[null,null,null,null,null,null,null,null,null,null,null,null,null,null,null,null,null,{"$f":"YEAR(K1222)","v":1900}]
[null,null,null,null,null,null,null,null,null,null,null,null,null,null,null,null,null,1900]
[null,null,null,null,null,null,null,null,null,null,null,null,null,null,null,null,null,1900]
[null,null,null,null,null,null,null,null,null,null,null,null,null,null,null,null,null,1900]
[null,null,null,null,null,null,null,null,null,null,null,null,null,null,null,null,null,1900]
[null,null,null,null,null,null,null,null,null,null,null,null,null,null,null,null,null,1900]
[null,null,null,null,null,null,null,null,null,null,null,null,null,null,null,null,null,1900]
[null,null,null,null,null,null,null,null,null,null,null,null,null,null,null,null,null,1900]
[null,null,null,null,null,null,null,null,null,null,null,null,null,null,null,null,null,1900]
[null,null,null,null,null,null,null,null,null,null,null,null,null,null,null,null,null,1900]
[null,null,null,null,null,null,null,null,null,null,null,null,null,null,null,null,null,1900]
[null,null,null,null,null,null,null,null,null,null,null,null,null,null,null,null,null,1900]
[null,null,null,null,null,null,null,null,null,null,null,null,null,null,null,null,null,1900]
[null,null,null,null,null,null,null,null,null,null,null,null,null,null,null,null,null,1900]
[null,null,null,null,null,null,null,null,null,null,null,null,null,null,null,null,null,1900]
[null,null,null,null,null,null,null,null,null,null,null,null,null,null,null,null,null,1900]
[null,null,null,null,null,null,null,null,null,null,null,null,null,null,null,null,null,1900]
[null,null,null,null,null,null,null,null,null,null,null,null,null,null,null,null,null,1900]
[null,null,null,null,null,null,null,null,null,null,null,null,null,null,null,null,null,1900]
[null,null,null,null,null,null,null,null,null,null,null,null,null,null,null,null,null,1900]
[null,null,null,null,null,null,null,null,null,null,null,null,null,null,null,null,null,1900]
[null,null,null,null,null,null,null,null,null,null,null,null,null,null,null,null,null,1900]
[null,null,null,null,null,null,null,null,null,null,null,null,null,null,null,null,null,1900]
[null,null,null,null,null,null,null,null,null,null,null,null,null,null,null,null,null,1900]
[null,null,null,null,null,null,null,null,null,null,null,null,null,null,null,null,null,1900]
[null,null,null,null,null,null,null,null,null,null,null,null,null,null,null,null,null,1900]
[null,null,null,null,null,null,null,null,null,null,null,null,null,null,null,null,null,1900]
[null,null,null,null,null,null,null,null,null,null,null,null,null,null,null,null,null,1900]
[null,null,null,null,null,null,null,null,null,null,null,null,null,null,null,null,null,1900]
[null,null,null,null,null,null,null,null,null,null,null,null,null,null,null,null,null,1900]
[null,null,null,null,null,null,null,null,null,null,null,null,null,null,null,null,null,1900]
[null,null,null,null,null,null,null,null,null,null,null,null,null,null,null,null,null,1900]
[null,null,null,null,null,null,null,null,null,null,null,null,null,null,null,null,null,1900]
[null,null,null,null,null,null,null,null,null,null,null,null,null,null,null,null,null,1900]
[null,null,null,null,null,null,null,null,null,null,null,null,null,null,null,null,null,1900]
[null,null,null,null,null,null,null,null,null,null,null,null,null,null,null,null,null,1900]
[null,null,null,null,null,null,null,null,null,null,null,null,null,null,null,null,null,1900]
[null,null,null,null,null,null,null,null,null,null,null,null,null,null,null,null,null,1900]
[null,null,null,null,null,null,null,null,null,null,null,null,null,null,null,null,null,1900]
[null,null,null,null,null,null,null,null,null,null,null,null,null,null,null,null,null,1900]
[null,null,null,null,null,null,null,null,null,null,null,null,null,null,null,null,null,1900]
[null,null,null,null,null,null,null,null,null,null,null,null,null,null,null,null,null,1900]
[null,null,null,null,null,null,null,null,null,null,null,null,null,null,null,null,null,1900]
[null,null,null,null,null,null,null,null,null,null,null,null,null,null,null,null,null,1900]
[null,null,null,null,null,null,null,null,null,null,null,null,null,null,null,null,null,1900]
[null,null,null,null,null,null,null,null,null,null,null,null,null,null,null,null,null,1900]
[null,null,null,null,null,null,null,null,null,null,null,null,null,null,null,null,null,1900]
[null,null,null,null,null,null,null,null,null,null,null,null,null,null,null,null,null,1900]
[null,null,null,null,null,null,null,null,null,null,null,null,null,null,null,null,null,1900]
[null,null,null,null,null,null,null,null,null,null,null,null,null,null,null,null,null,1900]
[null,null,null,null,null,null,null,null,null,null,null,null,null,null,null,null,null,1900]
[null,null,null,null,null,null,null,null,null,null,null,null,null,null,null,null,null,1900]
[null,null,null,null,null,null,null,null,null,null,null,null,null,null,null,null,null,1900]
[null,null,null,null,null,null,null,null,null,null,null,null,null,null,null,null,null,1900]
[null,null,null,null,null,null,null,null,null,null,null,null,null,null,null,null,null,1900]
[null,null,null,null,null,null,null,null,null,null,null,null,null,null,null,null,null,1900]
[null,null,null,null,null,null,null,null,null,null,null,null,null,null,null,null,null,1900]
[null,null,null,null,null,null,null,null,null,null,null,null,null,null,null,null,null,1900]
[null,null,null,null,null,null,null,null,null,null,null,null,null,null,null,null,null,1900]
[null,null,null,null,null,null,null,null,null,null,null,null,null,null,null,null,null,1900]
[null,null,null,null,null,null,null,null,null,null,null,null,null,null,null,null,null,1900]
[null,null,null,null,null,null,null,null,null,null,null,null,null,null,null,null,null,1900]
[null,null,null,null,null,null,null,null,null,null,null,null,null,null,null,null,null,1900]
[null,null,null,null,null,null,null,null,null,null,null,null,null,null,null,null,null,1900]
[null,null,null,null,null,null,null,null,null,null,null,null,null,null,null,null,null,{"$f":"YEAR(K1286)","v":1900}]
[null,null,null,null,null,null,null,null,null,null,null,null,null,null,null,null,null,1900]
[null,null,null,null,null,null,null,null,null,null,null,null,null,null,null,null,null,1900]
[null,null,null,null,null,null,null,null,null,null,null,null,null,null,null,null,null,1900]
[null,null,null,null,null,null,null,null,null,null,null,null,null,null,null,null,null,1900]
[null,null,null,null,null,null,null,null,null,null,null,null,null,null,null,null,null,1900]
[null,null,null,null,null,null,null,null,null,null,null,null,null,null,null,null,null,1900]
[null,null,null,null,null,null,null,null,null,null,null,null,null,null,null,null,null,1900]
[null,null,null,null,null,null,null,null,null,null,null,null,null,null,null,null,null,1900]
[null,null,null,null,null,null,null,null,null,null,null,null,null,null,null,null,null,1900]
[null,null,null,null,null,null,null,null,null,null,null,null,null,null,null,null,null,1900]
[null,null,null,null,null,null,null,null,null,null,null,null,null,null,null,null,null,1900]
[null,null,null,null,null,null,null,null,null,null,null,null,null,null,null,null,null,1900]
[null,null,null,null,null,null,null,null,null,null,null,null,null,null,null,null,null,1900]
[null,null,null,null,null,null,null,null,null,null,null,null,null,null,null,null,null,1900]
[null,null,null,null,null,null,null,null,null,null,null,null,null,null,null,null,null,1900]
[null,null,null,null,null,null,null,null,null,null,null,null,null,null,null,null,null,1900]
[null,null,null,null,null,null,null,null,null,null,null,null,null,null,null,null,null,1900]
[null,null,null,null,null,null,null,null,null,null,null,null,null,null,null,null,null,1900]
[null,null,null,null,null,null,null,null,null,null,null,null,null,null,null,null,null,1900]
[null,null,null,null,null,null,null,null,null,null,null,null,null,null,null,null,null,1900]
[null,null,null,null,null,null,null,null,null,null,null,null,null,null,null,null,null,1900]
[null,null,null,null,null,null,null,null,null,null,null,null,null,null,null,null,null,1900]
[null,null,null,null,null,null,null,null,null,null,null,null,null,null,null,null,null,1900]
[null,null,null,null,null,null,null,null,null,null,null,null,null,null,null,null,null,1900]
[null,null,null,null,null,null,null,null,null,null,null,null,null,null,null,null,null,1900]
[null,null,null,null,null,null,null,null,null,null,null,null,null,null,null,null,null,1900]
[null,null,null,null,null,null,null,null,null,null,null,null,null,null,null,null,null,1900]
[null,null,null,null,null,null,null,null,null,null,null,null,null,null,null,null,null,1900]
[null,null,null,null,null,null,null,null,null,null,null,null,null,null,null,null,null,1900]
[null,null,null,null,null,null,null,null,null,null,null,null,null,null,null,null,null,1900]
[null,null,null,null,null,null,null,null,null,null,null,null,null,null,null,null,null,1900]
[null,null,null,null,null,null,null,null,null,null,null,null,null,null,null,null,null,1900]
[null,null,null,null,null,null,null,null,null,null,null,null,null,null,null,null,null,1900]
[null,null,null,null,null,null,null,null,null,null,null,null,null,null,null,null,null,1900]
[null,null,null,null,null,null,null,null,null,null,null,null,null,null,null,null,null,1900]
[null,null,null,null,null,null,null,null,null,null,null,null,null,null,null,null,null,1900]
[null,null,null,null,null,null,null,null,null,null,null,null,null,null,null,null,null,1900]
[null,null,null,null,null,null,null,null,null,null,null,null,null,null,null,null,null,1900]
[null,null,null,null,null,null,null,null,null,null,null,null,null,null,null,null,null,1900]
[null,null,null,null,null,null,null,null,null,null,null,null,null,null,null,null,null,1900]
[null,null,null,null,null,null,null,null,null,null,null,null,null,null,null,null,null,1900]
[null,null,null,null,null,null,null,null,null,null,null,null,null,null,null,null,null,1900]
[null,null,null,null,null,null,null,null,null,null,null,null,null,null,null,null,null,1900]
[null,null,null,null,null,null,null,null,null,null,null,null,null,null,null,null,null,1900]
[null,null,null,null,null,null,null,null,null,null,null,null,null,null,null,null,null,1900]
[null,null,null,null,null,null,null,null,null,null,null,null,null,null,null,null,null,1900]
[null,null,null,null,null,null,null,null,null,null,null,null,null,null,null,null,null,1900]
[null,null,null,null,null,null,null,null,null,null,null,null,null,null,null,null,null,1900]
[null,null,null,null,null,null,null,null,null,null,null,null,null,null,null,null,null,1900]
[null,null,null,null,null,null,null,null,null,null,null,null,null,null,null,null,null,1900]
[null,null,null,null,null,null,null,null,null,null,null,null,null,null,null,null,null,1900]
[null,null,null,null,null,null,null,null,null,null,null,null,null,null,null,null,null,1900]
[null,null,null,null,null,null,null,null,null,null,null,null,null,null,null,null,null,1900]
[null,null,null,null,null,null,null,null,null,null,null,null,null,null,null,null,null,1900]
[null,null,null,null,null,null,null,null,null,null,null,null,null,null,null,null,null,1900]
[null,null,null,null,null,null,null,null,null,null,null,null,null,null,null,null,null,1900]
[null,null,null,null,null,null,null,null,null,null,null,null,null,null,null,null,null,1900]
[null,null,null,null,null,null,null,null,null,null,null,null,null,null,null,null,null,1900]
[null,null,null,null,null,null,null,null,null,null,null,null,null,null,null,null,null,1900]
[null,null,null,null,null,null,null,null,null,null,null,null,null,null,null,null,null,1900]
[null,null,null,null,null,null,null,null,null,null,null,null,null,null,null,null,null,1900]
[null,null,null,null,null,null,null,null,null,null,null,null,null,null,null,null,null,1900]
[null,null,null,null,null,null,null,null,null,null,null,null,null,null,null,null,null,1900]
[null,null,null,null,null,null,null,null,null,null,null,null,null,null,null,null,null,{"$f":"YEAR(K1350)","v":1900}]
[null,null,null,null,null,null,null,null,null,null,null,null,null,null,null,null,null,1900]
[null,null,null,null,null,null,null,null,null,null,null,null,null,null,null,null,null,1900]
[null,null,null,null,null,null,null,null,null,null,null,null,null,null,null,null,null,1900]
[null,null,null,null,null,null,null,null,null,null,null,null,null,null,null,null,null,1900]
[null,null,null,null,null,null,null,null,null,null,null,null,null,null,null,null,null,1900]
[null,null,null,null,null,null,null,null,null,null,null,null,null,null,null,null,null,1900]
[null,null,null,null,null,null,null,null,null,null,null,null,null,null,null,null,null,1900]
[null,null,null,null,null,null,null,null,null,null,null,null,null,null,null,null,null,1900]
[null,null,null,null,null,null,null,null,null,null,null,null,null,null,null,null,null,1900]
[null,null,null,null,null,null,null,null,null,null,null,null,null,null,null,null,null,1900]
[null,null,null,null,null,null,null,null,null,null,null,null,null,null,null,null,null,1900]
[null,null,null,null,null,null,null,null,null,null,null,null,null,null,null,null,null,1900]
[null,null,null,null,null,null,null,null,null,null,null,null,null,null,null,null,null,1900]
[null,null,null,null,null,null,null,null,null,null,null,null,null,null,null,null,null,1900]
[null,null,null,null,null,null,null,null,null,null,null,null,null,null,null,null,null,1900]
[null,null,null,null,null,null,null,null,null,null,null,null,null,null,null,null,null,1900]
[null,null,null,null,null,null,null,null,null,null,null,null,null,null,null,null,null,1900]
[null,null,null,null,null,null,null,null,null,null,null,null,null,null,null,null,null,1900]
[null,null,null,null,null,null,null,null,null,null,null,null,null,null,null,null,null,1900]
[null,null,null,null,null,null,null,null,null,null,null,null,null,null,null,null,null,1900]
[null,null,null,null,null,null,null,null,null,null,null,null,null,null,null,null,null,1900]
[null,null,null,null,null,null,null,null,null,null,null,null,null,null,null,null,null,1900]
[null,null,null,null,null,null,null,null,null,null,null,null,null,null,null,null,null,1900]
[null,null,null,null,null,null,null,null,null,null,null,null,null,null,null,null,null,1900]
[null,null,null,null,null,null,null,null,null,null,null,null,null,null,null,null,null,1900]
[null,null,null,null,null,null,null,null,null,null,null,null,null,null,null,null,null,1900]
[null,null,null,null,null,null,null,null,null,null,null,null,null,null,null,null,null,1900]
[null,null,null,null,null,null,null,null,null,null,null,null,null,null,null,null,null,1900]
[null,null,null,null,null,null,null,null,null,null,null,null,null,null,null,null,null,1900]
[null,null,null,null,null,null,null,null,null,null,null,null,null,null,null,null,null,1900]
[null,null,null,null,null,null,null,null,null,null,null,null,null,null,null,null,null,1900]
[null,null,null,null,null,null,null,null,null,null,null,null,null,null,null,null,null,1900]
[null,null,null,null,null,null,null,null,null,null,null,null,null,null,null,null,null,1900]
[null,null,null,null,null,null,null,null,null,null,null,null,null,null,null,null,null,1900]
[null,null,null,null,null,null,null,null,null,null,null,null,null,null,null,null,null,1900]
[null,null,null,null,null,null,null,null,null,null,null,null,null,null,null,null,null,1900]
[null,null,null,null,null,null,null,null,null,null,null,null,null,null,null,null,null,1900]
[null,null,null,null,null,null,null,null,null,null,null,null,null,null,null,null,null,1900]
[null,null,null,null,null,null,null,null,null,null,null,null,null,null,null,null,null,1900]
[null,null,null,null,null,null,null,null,null,null,null,null,null,null,null,null,null,1900]
[null,null,null,null,null,null,null,null,null,null,null,null,null,null,null,null,null,1900]
[null,null,null,null,null,null,null,null,null,null,null,null,null,null,null,null,null,1900]
[null,null,null,null,null,null,null,null,null,null,null,null,null,null,null,null,null,1900]
[null,null,null,null,null,null,null,null,null,null,null,null,null,null,null,null,null,1900]
[null,null,null,null,null,null,null,null,null,null,null,null,null,null,null,null,null,1900]
[null,null,null,null,null,null,null,null,null,null,null,null,null,null,null,null,null,1900]
[null,null,null,null,null,null,null,null,null,null,null,null,null,null,null,null,null,1900]
[null,null,null,null,null,null,null,null,null,null,null,null,null,null,null,null,null,1900]
[null,null,null,null,null,null,null,null,null,null,null,null,null,null,null,null,null,1900]
[null,null,null,null,null,null,null,null,null,null,null,null,null,null,null,null,null,1900]
[null,null,null,null,null,null,null,null,null,null,null,null,null,null,null,null,null,1900]
[null,null,null,null,null,null,null,null,null,null,null,null,null,null,null,null,null,1900]
[null,null,null,null,null,null,null,null,null,null,null,null,null,null,null,null,null,1900]
[null,null,null,null,null,null,null,null,null,null,null,null,null,null,null,null,null,1900]
[null,null,null,null,null,null,null,null,null,null,null,null,null,null,null,null,null,1900]
[null,null,null,null,null,null,null,null,null,null,null,null,null,null,null,null,null,1900]
[null,null,null,null,null,null,null,null,null,null,null,null,null,null,null,null,null,1900]
[null,null,null,null,null,null,null,null,null,null,null,null,null,null,null,null,null,1900]
[null,null,null,null,null,null,null,null,null,null,null,null,null,null,null,null,null,1900]
[null,null,null,null,null,null,null,null,null,null,null,null,null,null,null,null,null,1900]
[null,null,null,null,null,null,null,null,null,null,null,null,null,null,null,null,null,1900]
[null,null,null,null,null,null,null,null,null,null,null,null,null,null,null,null,null,1900]
[null,null,null,null,null,null,null,null,null,null,null,null,null,null,null,null,null,1900]
[null,null,null,null,null,null,null,null,null,null,null,null,null,null,null,null,null,{"$f":"YEAR(K1414)","v":1900}]
[null,null,null,null,null,null,null,null,null,null,null,null,null,null,null,null,null,1900]
[null,null,null,null,null,null,null,null,null,null,null,null,null,null,null,null,null,1900]
[null,null,null,null,null,null,null,null,null,null,null,null,null,null,null,null,null,1900]
[null,null,null,null,null,null,null,null,null,null,null,null,null,null,null,null,null,1900]
[null,null,null,null,null,null,null,null,null,null,null,null,null,null,null,null,null,1900]
[null,null,null,null,null,null,null,null,null,null,null,null,null,null,null,null,null,1900]
[null,null,null,null,null,null,null,null,null,null,null,null,null,null,null,null,null,1900]
[null,null,null,null,null,null,null,null,null,null,null,null,null,null,null,null,null,1900]
[null,null,null,null,null,null,null,null,null,null,null,null,null,null,null,null,null,1900]
[null,null,null,null,null,null,null,null,null,null,null,null,null,null,null,null,null,1900]
[null,null,null,null,null,null,null,null,null,null,null,null,null,null,null,null,null,1900]
[null,null,null,null,null,null,null,null,null,null,null,null,null,null,null,null,null,1900]
[null,null,null,null,null,null,null,null,null,null,null,null,null,null,null,null,null,1900]
[null,null,null,null,null,null,null,null,null,null,null,null,null,null,null,null,null,1900]
[null,null,null,null,null,null,null,null,null,null,null,null,null,null,null,null,null,1900]
[null,null,null,null,null,null,null,null,null,null,null,null,null,null,null,null,null,1900]
[null,null,null,null,null,null,null,null,null,null,null,null,null,null,null,null,null,1900]
[null,null,null,null,null,null,null,null,null,null,null,null,null,null,null,null,null,1900]
[null,null,null,null,null,null,null,null,null,null,null,null,null,null,null,null,null,1900]
[null,null,null,null,null,null,null,null,null,null,null,null,null,null,null,null,null,1900]
[null,null,null,null,null,null,null,null,null,null,null,null,null,null,null,null,null,1900]
[null,null,null,null,null,null,null,null,null,null,null,null,null,null,null,null,null,1900]
[null,null,null,null,null,null,null,null,null,null,null,null,null,null,null,null,null,1900]
[null,null,null,null,null,null,null,null,null,null,null,null,null,null,null,null,null,1900]
[null,null,null,null,null,null,null,null,null,null,null,null,null,null,null,null,null,1900]
[null,null,null,null,null,null,null,null,null,null,null,null,null,null,null,null,null,1900]
[null,null,null,null,null,null,null,null,null,null,null,null,null,null,null,null,null,1900]
[null,null,null,null,null,null,null,null,null,null,null,null,null,null,null,null,null,1900]
[null,null,null,null,null,null,null,null,null,null,null,null,null,null,null,null,null,1900]
[null,null,null,null,null,null,null,null,null,null,null,null,null,null,null,null,null,1900]
[null,null,null,null,null,null,null,null,null,null,null,null,null,null,null,null,null,1900]
[null,null,null,null,null,null,null,null,null,null,null,null,null,null,null,null,null,1900]
[null,null,null,null,null,null,null,null,null,null,null,null,null,null,null,null,null,1900]
[null,null,null,null,null,null,null,null,null,null,null,null,null,null,null,null,null,1900]
[null,null,null,null,null,null,null,null,null,null,null,null,null,null,null,null,null,1900]
[null,null,null,null,null,null,null,null,null,null,null,null,null,null,null,null,null,1900]
[null,null,null,null,null,null,null,null,null,null,null,null,null,null,null,null,null,1900]
[null,null,null,null,null,null,null,null,null,null,null,null,null,null,null,null,null,1900]
[null,null,null,null,null,null,null,null,null,null,null,null,null,null,null,null,null,1900]
[null,null,null,null,null,null,null,null,null,null,null,null,null,null,null,null,null,1900]
[null,null,null,null,null,null,null,null,null,null,null,null,null,null,null,null,null,1900]
[null,null,null,null,null,null,null,null,null,null,null,null,null,null,null,null,null,1900]
[null,null,null,null,null,null,null,null,null,null,null,null,null,null,null,null,null,1900]
[null,null,null,null,null,null,null,null,null,null,null,null,null,null,null,null,null,1900]
[null,null,null,null,null,null,null,null,null,null,null,null,null,null,null,null,null,1900]
[null,null,null,null,null,null,null,null,null,null,null,null,null,null,null,null,null,1900]
[null,null,null,null,null,null,null,null,null,null,null,null,null,null,null,null,null,1900]
[null,null,null,null,null,null,null,null,null,null,null,null,null,null,null,null,null,1900]
[null,null,null,null,null,null,null,null,null,null,null,null,null,null,null,null,null,1900]
[null,null,null,null,null,null,null,null,null,null,null,null,null,null,null,null,null,1900]
[null,null,null,null,null,null,null,null,null,null,null,null,null,null,null,null,null,1900]
[null,null,null,null,null,null,null,null,null,null,null,null,null,null,null,null,null,1900]
[null,null,null,null,null,null,null,null,null,null,null,null,null,null,null,null,null,1900]
[null,null,null,null,null,null,null,null,null,null,null,null,null,null,null,null,null,1900]
[null,null,null,null,null,null,null,null,null,null,null,null,null,null,null,null,null,1900]
[null,null,null,null,null,null,null,null,null,null,null,null,null,null,null,null,null,1900]
[null,null,null,null,null,null,null,null,null,null,null,null,null,null,null,null,null,1900]
[null,null,null,null,null,null,null,null,null,null,null,null,null,null,null,null,null,1900]
[null,null,null,null,null,null,null,null,null,null,null,null,null,null,null,null,null,1900]
[null,null,null,null,null,null,null,null,null,null,null,null,null,null,null,null,null,1900]
[null,null,null,null,null,null,null,null,null,null,null,null,null,null,null,null,null,1900]
[null,null,null,null,null,null,null,null,null,null,null,null,null,null,null,null,null,1900]
[null,null,null,null,null,null,null,null,null,null,null,null,null,null,null,null,null,1900]
[null,null,null,null,null,null,null,null,null,null,null,null,null,null,null,null,null,{"$f":"YEAR(K1478)","v":1900}]
[null,null,null,null,null,null,null,null,null,null,null,null,null,null,null,null,null,1900]
[null,null,null,null,null,null,null,null,null,null,null,null,null,null,null,null,null,1900]
[null,null,null,null,null,null,null,null,null,null,null,null,null,null,null,null,null,1900]
[null,null,null,null,null,null,null,null,null,null,null,null,null,null,null,null,null,1900]
[null,null,null,null,null,null,null,null,null,null,null,null,null,null,null,null,null,1900]
[null,null,null,null,null,null,null,null,null,null,null,null,null,null,null,null,null,1900]
[null,null,null,null,null,null,null,null,null,null,null,null,null,null,null,null,null,1900]
[null,null,null,null,null,null,null,null,null,null,null,null,null,null,null,null,null,1900]
[null,null,null,null,null,null,null,null,null,null,null,null,null,null,null,null,null,1900]
[null,null,null,null,null,null,null,null,null,null,null,null,null,null,null,null,null,1900]
[null,null,null,null,null,null,null,null,null,null,null,null,null,null,null,null,null,1900]
[null,null,null,null,null,null,null,null,null,null,null,null,null,null,null,null,null,1900]
[null,null,null,null,null,null,null,null,null,null,null,null,null,null,null,null,null,1900]
[null,null,null,null,null,null,null,null,null,null,null,null,null,null,null,null,null,1900]
[null,null,null,null,null,null,null,null,null,null,null,null,null,null,null,null,null,1900]
[null,null,null,null,null,null,null,null,null,null,null,null,null,null,null,null,null,1900]
[null,null,null,null,null,null,null,null,null,null,null,null,null,null,null,null,null,1900]
[null,null,null,null,null,null,null,null,null,null,null,null,null,null,null,null,null,1900]
[null,null,null,null,null,null,null,null,null,null,null,null,null,null,null,null,null,1900]
[null,null,null,null,null,null,null,null,null,null,null,null,null,null,null,null,null,1900]
[null,null,null,null,null,null,null,null,null,null,null,null,null,null,null,null,null,1900]
[null,null,null,null,null,null,null,null,null,null,null,null,null,null,null,null,null,1900]
[null,null,null,null,null,null,null,null,null,null,null,null,null,null,null,null,null,1900]
[null,null,null,null,null,null,null,null,null,null,null,null,null,null,null,null,null,1900]
[null,null,null,null,null,null,null,null,null,null,null,null,null,null,null,null,null,1900]
[null,null,null,null,null,null,null,null,null,null,null,null,null,null,null,null,null,1900]
[null,null,null,null,null,null,null,null,null,null,null,null,null,null,null,null,null,1900]
[null,null,null,null,null,null,null,null,null,null,null,null,null,null,null,null,null,1900]
[null,null,null,null,null,null,null,null,null,null,null,null,null,null,null,null,null,1900]
[null,null,null,null,null,null,null,null,null,null,null,null,null,null,null,null,null,1900]
[null,null,null,null,null,null,null,null,null,null,null,null,null,null,null,null,null,1900]
[null,null,null,null,null,null,null,null,null,null,null,null,null,null,null,null,null,1900]
[null,null,null,null,null,null,null,null,null,null,null,null,null,null,null,null,null,1900]
[null,null,null,null,null,null,null,null,null,null,null,null,null,null,null,null,null,1900]
[null,null,null,null,null,null,null,null,null,null,null,null,null,null,null,null,null,1900]
[null,null,null,null,null,null,null,null,null,null,null,null,null,null,null,null,null,1900]
[null,null,null,null,null,null,null,null,null,null,null,null,null,null,null,null,null,1900]
[null,null,null,null,null,null,null,null,null,null,null,null,null,null,null,null,null,1900]
[null,null,null,null,null,null,null,null,null,null,null,null,null,null,null,null,null,1900]
[null,null,null,null,null,null,null,null,null,null,null,null,null,null,null,null,null,1900]
[null,null,null,null,null,null,null,null,null,null,null,null,null,null,null,null,null,1900]
[null,null,null,null,null,null,null,null,null,null,null,null,null,null,null,null,null,1900]
[null,null,null,null,null,null,null,null,null,null,null,null,null,null,null,null,null,1900]
[null,null,null,null,null,null,null,null,null,null,null,null,null,null,null,null,null,1900]
[null,null,null,null,null,null,null,null,null,null,null,null,null,null,null,null,null,1900]
[null,null,null,null,null,null,null,null,null,null,null,null,null,null,null,null,null,1900]
[null,null,null,null,null,null,null,null,null,null,null,null,null,null,null,null,null,1900]
[null,null,null,null,null,null,null,null,null,null,null,null,null,null,null,null,null,1900]
[null,null,null,null,null,null,null,null,null,null,null,null,null,null,null,null,null,1900]
[null,null,null,null,null,null,null,null,null,null,null,null,null,null,null,null,null,1900]
[null,null,null,null,null,null,null,null,null,null,null,null,null,null,null,null,null,1900]
[null,null,null,null,null,null,null,null,null,null,null,null,null,null,null,null,null,1900]
[null,null,null,null,null,null,null,null,null,null,null,null,null,null,null,null,null,1900]
[null,null,null,null,null,null,null,null,null,null,null,null,null,null,null,null,null,1900]
[null,null,null,null,null,null,null,null,null,null,null,null,null,null,null,null,null,1900]
[null,null,null,null,null,null,null,null,null,null,null,null,null,null,null,null,null,1900]
[null,null,null,null,null,null,null,null,null,null,null,null,null,null,null,null,null,1900]
[null,null,null,null,null,null,null,null,null,null,null,null,null,null,null,null,null,1900]
[null,null,null,null,null,null,null,null,null,null,null,null,null,null,null,null,null,1900]
[null,null,null,null,null,null,null,null,null,null,null,null,null,null,null,null,null,1900]
[null,null,null,null,null,null,null,null,null,null,null,null,null,null,null,null,null,1900]
[null,null,null,null,null,null,null,null,null,null,null,null,null,null,null,null,null,1900]
[null,null,null,null,null,null,null,null,null,null,null,null,null,null,null,null,null,1900]
[null,null,null,null,null,null,null,null,null,null,null,null,null,null,null,null,null,{"$f":"YEAR(K1542)","v":1900}]
[null,null,null,null,null,null,null,null,null,null,null,null,null,null,null,null,null,1900]
[null,null,null,null,null,null,null,null,null,null,null,null,null,null,null,null,null,1900]
[null,null,null,null,null,null,null,null,null,null,null,null,null,null,null,null,null,1900]
[null,null,null,null,null,null,null,null,null,null,null,null,null,null,null,null,null,1900]
[null,null,null,null,null,null,null,null,null,null,null,null,null,null,null,null,null,1900]
[null,null,null,null,null,null,null,null,null,null,null,null,null,null,null,null,null,1900]
[null,null,null,null,null,null,null,null,null,null,null,null,null,null,null,null,null,1900]
[null,null,null,null,null,null,null,null,null,null,null,null,null,null,null,null,null,1900]
[null,null,null,null,null,null,null,null,null,null,null,null,null,null,null,null,null,1900]
[null,null,null,null,null,null,null,null,null,null,null,null,null,null,null,null,null,1900]
[null,null,null,null,null,null,null,null,null,null,null,null,null,null,null,null,null,1900]
[null,null,null,null,null,null,null,null,null,null,null,null,null,null,null,null,null,1900]
[null,null,null,null,null,null,null,null,null,null,null,null,null,null,null,null,null,1900]
[null,null,null,null,null,null,null,null,null,null,null,null,null,null,null,null,null,1900]
[null,null,null,null,null,null,null,null,null,null,null,null,null,null,null,null,null,1900]
[null,null,null,null,null,null,null,null,null,null,null,null,null,null,null,null,null,1900]
[null,null,null,null,null,null,null,null,null,null,null,null,null,null,null,null,null,1900]
[null,null,null,null,null,null,null,null,null,null,null,null,null,null,null,null,null,1900]
[null,null,null,null,null,null,null,null,null,null,null,null,null,null,null,null,null,1900]
[null,null,null,null,null,null,null,null,null,null,null,null,null,null,null,null,null,1900]
[null,null,null,null,null,null,null,null,null,null,null,null,null,null,null,null,null,1900]
[null,null,null,null,null,null,null,null,null,null,null,null,null,null,null,null,null,1900]
[null,null,null,null,null,null,null,null,null,null,null,null,null,null,null,null,null,1900]
[null,null,null,null,null,null,null,null,null,null,null,null,null,null,null,null,null,1900]
[null,null,null,null,null,null,null,null,null,null,null,null,null,null,null,null,null,1900]
[null,null,null,null,null,null,null,null,null,null,null,null,null,null,null,null,null,1900]
[null,null,null,null,null,null,null,null,null,null,null,null,null,null,null,null,null,1900]
[null,null,null,null,null,null,null,null,null,null,null,null,null,null,null,null,null,1900]
[null,null,null,null,null,null,null,null,null,null,null,null,null,null,null,null,null,1900]
[null,null,null,null,null,null,null,null,null,null,null,null,null,null,null,null,null,1900]
[null,null,null,null,null,null,null,null,null,null,null,null,null,null,null,null,null,1900]
[null,null,null,null,null,null,null,null,null,null,null,null,null,null,null,null,null,1900]
[null,null,null,null,null,null,null,null,null,null,null,null,null,null,null,null,null,1900]
[null,null,null,null,null,null,null,null,null,null,null,null,null,null,null,null,null,1900]
[null,null,null,null,null,null,null,null,null,null,null,null,null,null,null,null,null,1900]
[null,null,null,null,null,null,null,null,null,null,null,null,null,null,null,null,null,1900]
[null,null,null,null,null,null,null,null,null,null,null,null,null,null,null,null,null,1900]
[null,null,null,null,null,null,null,null,null,null,null,null,null,null,null,null,null,1900]
[null,null,null,null,null,null,null,null,null,null,null,null,null,null,null,null,null,1900]
[null,null,null,null,null,null,null,null,null,null,null,null,null,null,null,null,null,1900]
[null,null,null,null,null,null,null,null,null,null,null,null,null,null,null,null,null,1900]
[null,null,null,null,null,null,null,null,null,null,null,null,null,null,null,null,null,1900]
[null,null,null,null,null,null,null,null,null,null,null,null,null,null,null,null,null,1900]
[null,null,null,null,null,null,null,null,null,null,null,null,null,null,null,null,null,1900]
[null,null,null,null,null,null,null,null,null,null,null,null,null,null,null,null,null,1900]
[null,null,null,null,null,null,null,null,null,null,null,null,null,null,null,null,null,1900]
[null,null,null,null,null,null,null,null,null,null,null,null,null,null,null,null,null,1900]
[null,null,null,null,null,null,null,null,null,null,null,null,null,null,null,null,null,1900]
[null,null,null,null,null,null,null,null,null,null,null,null,null,null,null,null,null,1900]
[null,null,null,null,null,null,null,null,null,null,null,null,null,null,null,null,null,1900]
[null,null,null,null,null,null,null,null,null,null,null,null,null,null,null,null,null,1900]
[null,null,null,null,null,null,null,null,null,null,null,null,null,null,null,null,null,1900]
[null,null,null,null,null,null,null,null,null,null,null,null,null,null,null,null,null,1900]
[null,null,null,null,null,null,null,null,null,null,null,null,null,null,null,null,null,1900]
[null,null,null,null,null,null,null,null,null,null,null,null,null,null,null,null,null,1900]
[null,null,null,null,null,null,null,null,null,null,null,null,null,null,null,null,null,1900]
[null,null,null,null,null,null,null,null,null,null,null,null,null,null,null,null,null,1900]
[null,null,null,null,null,null,null,null,null,null,null,null,null,null,null,null,null,1900]
[null,null,null,null,null,null,null,null,null,null,null,null,null,null,null,null,null,1900]
[null,null,null,null,null,null,null,null,null,null,null,null,null,null,null,null,null,1900]
[null,null,null,null,null,null,null,null,null,null,null,null,null,null,null,null,null,1900]
[null,null,null,null,null,null,null,null,null,null,null,null,null,null,null,null,null,1900]
[null,null,null,null,null,null,null,null,null,null,null,null,null,null,null,null,null,1900]
[null,null,null,null,null,null,null,null,null,null,null,null,null,null,null,null,null,{"$f":"YEAR(K1606)","v":1900}]
[null,null,null,null,null,null,null,null,null,null,null,null,null,null,null,null,null,1900]
[null,null,null,null,null,null,null,null,null,null,null,null,null,null,null,null,null,1900]
[null,null,null,null,null,null,null,null,null,null,null,null,null,null,null,null,null,1900]
[null,null,null,null,null,null,null,null,null,null,null,null,null,null,null,null,null,1900]
[null,null,null,null,null,null,null,null,null,null,null,null,null,null,null,null,null,1900]
[null,null,null,null,null,null,null,null,null,null,null,null,null,null,null,null,null,1900]
[null,null,null,null,null,null,null,null,null,null,null,null,null,null,null,null,null,1900]
[null,null,null,null,null,null,null,null,null,null,null,null,null,null,null,null,null,1900]
[null,null,null,null,null,null,null,null,null,null,null,null,null,null,null,null,null,1900]
[null,null,null,null,null,null,null,null,null,null,null,null,null,null,null,null,null,1900]
[null,null,null,null,null,null,null,null,null,null,null,null,null,null,null,null,null,1900]
[null,null,null,null,null,null,null,null,null,null,null,null,null,null,null,null,null,1900]
[null,null,null,null,null,null,null,null,null,null,null,null,null,null,null,null,null,1900]
[null,null,null,null,null,null,null,null,null,null,null,null,null,null,null,null,null,1900]
[null,null,null,null,null,null,null,null,null,null,null,null,null,null,null,null,null,1900]
[null,null,null,null,null,null,null,null,null,null,null,null,null,null,null,null,null,1900]
[null,null,null,null,null,null,null,null,null,null,null,null,null,null,null,null,null,1900]
[null,null,null,null,null,null,null,null,null,null,null,null,null,null,null,null,null,1900]
[null,null,null,null,null,null,null,null,null,null,null,null,null,null,null,null,null,1900]
[null,null,null,null,null,null,null,null,null,null,null,null,null,null,null,null,null,1900]
[null,null,null,null,null,null,null,null,null,null,null,null,null,null,null,null,null,1900]
[null,null,null,null,null,null,null,null,null,null,null,null,null,null,null,null,null,1900]
[null,null,null,null,null,null,null,null,null,null,null,null,null,null,null,null,null,1900]
[null,null,null,null,null,null,null,null,null,null,null,null,null,null,null,null,null,1900]
[null,null,null,null,null,null,null,null,null,null,null,null,null,null,null,null,null,1900]
[null,null,null,null,null,null,null,null,null,null,null,null,null,null,null,null,null,1900]
[null,null,null,null,null,null,null,null,null,null,null,null,null,null,null,null,null,1900]
[null,null,null,null,null,null,null,null,null,null,null,null,null,null,null,null,null,1900]
[null,null,null,null,null,null,null,null,null,null,null,null,null,null,null,null,null,1900]
[null,null,null,null,null,null,null,null,null,null,null,null,null,null,null,null,null,1900]
[null,null,null,null,null,null,null,null,null,null,null,null,null,null,null,null,null,1900]
[null,null,null,null,null,null,null,null,null,null,null,null,null,null,null,null,null,1900]
[null,null,null,null,null,null,null,null,null,null,null,null,null,null,null,null,null,1900]
[null,null,null,null,null,null,null,null,null,null,null,null,null,null,null,null,null,1900]
[null,null,null,null,null,null,null,null,null,null,null,null,null,null,null,null,null,1900]
[null,null,null,null,null,null,null,null,null,null,null,null,null,null,null,null,null,1900]
[null,null,null,null,null,null,null,null,null,null,null,null,null,null,null,null,null,1900]
[null,null,null,null,null,null,null,null,null,null,null,null,null,null,null,null,null,1900]
[null,null,null,null,null,null,null,null,null,null,null,null,null,null,null,null,null,1900]
[null,null,null,null,null,null,null,null,null,null,null,null,null,null,null,null,null,1900]
[null,null,null,null,null,null,null,null,null,null,null,null,null,null,null,null,null,1900]
[null,null,null,null,null,null,null,null,null,null,null,null,null,null,null,null,null,1900]
[null,null,null,null,null,null,null,null,null,null,null,null,null,null,null,null,null,1900]
[null,null,null,null,null,null,null,null,null,null,null,null,null,null,null,null,null,1900]
[null,null,null,null,null,null,null,null,null,null,null,null,null,null,null,null,null,1900]
[null,null,null,null,null,null,null,null,null,null,null,null,null,null,null,null,null,1900]
[null,null,null,null,null,null,null,null,null,null,null,null,null,null,null,null,null,1900]
[null,null,null,null,null,null,null,null,null,null,null,null,null,null,null,null,null,1900]
[null,null,null,null,null,null,null,null,null,null,null,null,null,null,null,null,null,1900]
[null,null,null,null,null,null,null,null,null,null,null,null,null,null,null,null,null,1900]
[null,null,null,null,null,null,null,null,null,null,null,null,null,null,null,null,null,1900]
[null,null,null,null,null,null,null,null,null,null,null,null,null,null,null,null,null,1900]
[null,null,null,null,null,null,null,null,null,null,null,null,null,null,null,null,null,1900]
[null,null,null,null,null,null,null,null,null,null,null,null,null,null,null,null,null,1900]
[null,null,null,null,null,null,null,null,null,null,null,null,null,null,null,null,null,1900]
[null,null,null,null,null,null,null,null,null,null,null,null,null,null,null,null,null,1900]
[null,null,null,null,null,null,null,null,null,null,null,null,null,null,null,null,null,1900]
[null,null,null,null,null,null,null,null,null,null,null,null,null,null,null,null,null,1900]
[null,null,null,null,null,null,null,null,null,null,null,null,null,null,null,null,null,1900]
[null,null,null,null,null,null,null,null,null,null,null,null,null,null,null,null,null,1900]
[null,null,null,null,null,null,null,null,null,null,null,null,null,null,null,null,null,1900]
[null,null,null,null,null,null,null,null,null,null,null,null,null,null,null,null,null,1900]
[null,null,null,null,null,null,null,null,null,null,null,null,null,null,null,null,null,1900]
[null,null,null,null,null,null,null,null,null,null,null,null,null,null,null,null,null,{"$f":"YEAR(K1670)","v":1900}]
[null,null,null,null,null,null,null,null,null,null,null,null,null,null,null,null,null,1900]
[null,null,null,null,null,null,null,null,null,null,null,null,null,null,null,null,null,1900]
[null,null,null,null,null,null,null,null,null,null,null,null,null,null,null,null,null,1900]
[null,null,null,null,null,null,null,null,null,null,null,null,null,null,null,null,null,1900]
[null,null,null,null,null,null,null,null,null,null,null,null,null,null,null,null,null,1900]
[null,null,null,null,null,null,null,null,null,null,null,null,null,null,null,null,null,1900]
[null,null,null,null,null,null,null,null,null,null,null,null,null,null,null,null,null,1900]
[null,null,null,null,null,null,null,null,null,null,null,null,null,null,null,null,null,1900]
[null,null,null,null,null,null,null,null,null,null,null,null,null,null,null,null,null,1900]
[null,null,null,null,null,null,null,null,null,null,null,null,null,null,null,null,null,1900]
[null,null,null,null,null,null,null,null,null,null,null,null,null,null,null,null,null,1900]
[null,null,null,null,null,null,null,null,null,null,null,null,null,null,null,null,null,1900]
[null,null,null,null,null,null,null,null,null,null,null,null,null,null,null,null,null,1900]
[null,null,null,null,null,null,null,null,null,null,null,null,null,null,null,null,null,1900]
[null,null,null,null,null,null,null,null,null,null,null,null,null,null,null,null,null,1900]
[null,null,null,null,null,null,null,null,null,null,null,null,null,null,null,null,null,1900]
[null,null,null,null,null,null,null,null,null,null,null,null,null,null,null,null,null,1900]
[null,null,null,null,null,null,null,null,null,null,null,null,null,null,null,null,null,1900]
[null,null,null,null,null,null,null,null,null,null,null,null,null,null,null,null,null,1900]
[null,null,null,null,null,null,null,null,null,null,null,null,null,null,null,null,null,1900]
[null,null,null,null,null,null,null,null,null,null,null,null,null,null,null,null,null,1900]
[null,null,null,null,null,null,null,null,null,null,null,null,null,null,null,null,null,1900]
[null,null,null,null,null,null,null,null,null,null,null,null,null,null,null,null,null,1900]
[null,null,null,null,null,null,null,null,null,null,null,null,null,null,null,null,null,1900]
[null,null,null,null,null,null,null,null,null,null,null,null,null,null,null,null,null,1900]
[null,null,null,null,null,null,null,null,null,null,null,null,null,null,null,null,null,1900]
[null,null,null,null,null,null,null,null,null,null,null,null,null,null,null,null,null,1900]
[null,null,null,null,null,null,null,null,null,null,null,null,null,null,null,null,null,1900]
[null,null,null,null,null,null,null,null,null,null,null,null,null,null,null,null,null,1900]
[null,null,null,null,null,null,null,null,null,null,null,null,null,null,null,null,null,1900]
[null,null,null,null,null,null,null,null,null,null,null,null,null,null,null,null,null,1900]
[null,null,null,null,null,null,null,null,null,null,null,null,null,null,null,null,null,1900]
[null,null,null,null,null,null,null,null,null,null,null,null,null,null,null,null,null,1900]
[null,null,null,null,null,null,null,null,null,null,null,null,null,null,null,null,null,1900]
[null,null,null,null,null,null,null,null,null,null,null,null,null,null,null,null,null,1900]
[null,null,null,null,null,null,null,null,null,null,null,null,null,null,null,null,null,1900]
[null,null,null,null,null,null,null,null,null,null,null,null,null,null,null,null,null,1900]
[null,null,null,null,null,null,null,null,null,null,null,null,null,null,null,null,null,1900]
[null,null,null,null,null,null,null,null,null,null,null,null,null,null,null,null,null,1900]
[null,null,null,null,null,null,null,null,null,null,null,null,null,null,null,null,null,1900]
[null,null,null,null,null,null,null,null,null,null,null,null,null,null,null,null,null,1900]
[null,null,null,null,null,null,null,null,null,null,null,null,null,null,null,null,null,1900]
[null,null,null,null,null,null,null,null,null,null,null,null,null,null,null,null,null,1900]
[null,null,null,null,null,null,null,null,null,null,null,null,null,null,null,null,null,1900]
[null,null,null,null,null,null,null,null,null,null,null,null,null,null,null,null,null,1900]
[null,null,null,null,null,null,null,null,null,null,null,null,null,null,null,null,null,1900]
[null,null,null,null,null,null,null,null,null,null,null,null,null,null,null,null,null,1900]
[null,null,null,null,null,null,null,null,null,null,null,null,null,null,null,null,null,1900]
[null,null,null,null,null,null,null,null,null,null,null,null,null,null,null,null,null,1900]
[null,null,null,null,null,null,null,null,null,null,null,null,null,null,null,null,null,1900]
[null,null,null,null,null,null,null,null,null,null,null,null,null,null,null,null,null,1900]
[null,null,null,null,null,null,null,null,null,null,null,null,null,null,null,null,null,1900]
[null,null,null,null,null,null,null,null,null,null,null,null,null,null,null,null,null,1900]
[null,null,null,null,null,null,null,null,null,null,null,null,null,null,null,null,null,1900]
[null,null,null,null,null,null,null,null,null,null,null,null,null,null,null,null,null,1900]
[null,null,null,null,null,null,null,null,null,null,null,null,null,null,null,null,null,1900]
[null,null,null,null,null,null,null,null,null,null,null,null,null,null,null,null,null,1900]
[null,null,null,null,null,null,null,null,null,null,null,null,null,null,null,null,null,1900]
[null,null,null,null,null,null,null,null,null,null,null,null,null,null,null,null,null,1900]
[null,null,null,null,null,null,null,null,null,null,null,null,null,null,null,null,null,1900]
[null,null,null,null,null,null,null,null,null,null,null,null,null,null,null,null,null,1900]
[null,null,null,null,null,null,null,null,null,null,null,null,null,null,null,null,null,1900]
[null,null,null,null,null,null,null,null,null,null,null,null,null,null,null,null,null,1900]
[null,null,null,null,null,null,null,null,null,null,null,null,null,null,null,null,null,{"$f":"YEAR(K1734)","v":1900}]
[null,null,null,null,null,null,null,null,null,null,null,null,null,null,null,null,null,1900]
[null,null,null,null,null,null,null,null,null,null,null,null,null,null,null,null,null,1900]
[null,null,null,null,null,null,null,null,null,null,null,null,null,null,null,null,null,1900]
[null,null,null,null,null,null,null,null,null,null,null,null,null,null,null,null,null,1900]
[null,null,null,null,null,null,null,null,null,null,null,null,null,null,null,null,null,1900]
[null,null,null,null,null,null,null,null,null,null,null,null,null,null,null,null,null,1900]
[null,null,null,null,null,null,null,null,null,null,null,null,null,null,null,null,null,1900]
[null,null,null,null,null,null,null,null,null,null,null,null,null,null,null,null,null,1900]
[null,null,null,null,null,null,null,null,null,null,null,null,null,null,null,null,null,1900]
[null,null,null,null,null,null,null,null,null,null,null,null,null,null,null,null,null,1900]
[null,null,null,null,null,null,null,null,null,null,null,null,null,null,null,null,null,1900]
[null,null,null,null,null,null,null,null,null,null,null,null,null,null,null,null,null,1900]
[null,null,null,null,null,null,null,null,null,null,null,null,null,null,null,null,null,1900]
[null,null,null,null,null,null,null,null,null,null,null,null,null,null,null,null,null,1900]
[null,null,null,null,null,null,null,null,null,null,null,null,null,null,null,null,null,1900]
[null,null,null,null,null,null,null,null,null,null,null,null,null,null,null,null,null,1900]
[null,null,null,null,null,null,null,null,null,null,null,null,null,null,null,null,null,1900]
[null,null,null,null,null,null,null,null,null,null,null,null,null,null,null,null,null,1900]
[null,null,null,null,null,null,null,null,null,null,null,null,null,null,null,null,null,1900]
[null,null,null,null,null,null,null,null,null,null,null,null,null,null,null,null,null,1900]
[null,null,null,null,null,null,null,null,null,null,null,null,null,null,null,null,null,1900]
[null,null,null,null,null,null,null,null,null,null,null,null,null,null,null,null,null,1900]
[null,null,null,null,null,null,null,null,null,null,null,null,null,null,null,null,null,1900]
[null,null,null,null,null,null,null,null,null,null,null,null,null,null,null,null,null,1900]
[null,null,null,null,null,null,null,null,null,null,null,null,null,null,null,null,null,1900]
[null,null,null,null,null,null,null,null,null,null,null,null,null,null,null,null,null,1900]
[null,null,null,null,null,null,null,null,null,null,null,null,null,null,null,null,null,1900]
[null,null,null,null,null,null,null,null,null,null,null,null,null,null,null,null,null,1900]
[null,null,null,null,null,null,null,null,null,null,null,null,null,null,null,null,null,1900]
[null,null,null,null,null,null,null,null,null,null,null,null,null,null,null,null,null,1900]
[null,null,null,null,null,null,null,null,null,null,null,null,null,null,null,null,null,1900]
[null,null,null,null,null,null,null,null,null,null,null,null,null,null,null,null,null,1900]
[null,null,null,null,null,null,null,null,null,null,null,null,null,null,null,null,null,1900]
[null,null,null,null,null,null,null,null,null,null,null,null,null,null,null,null,null,1900]
[null,null,null,null,null,null,null,null,null,null,null,null,null,null,null,null,null,1900]
[null,null,null,null,null,null,null,null,null,null,null,null,null,null,null,null,null,1900]
[null,null,null,null,null,null,null,null,null,null,null,null,null,null,null,null,null,1900]
[null,null,null,null,null,null,null,null,null,null,null,null,null,null,null,null,null,1900]
[null,null,null,null,null,null,null,null,null,null,null,null,null,null,null,null,null,1900]
[null,null,null,null,null,null,null,null,null,null,null,null,null,null,null,null,null,1900]
[null,null,null,null,null,null,null,null,null,null,null,null,null,null,null,null,null,1900]
[null,null,null,null,null,null,null,null,null,null,null,null,null,null,null,null,null,1900]
[null,null,null,null,null,null,null,null,null,null,null,null,null,null,null,null,null,1900]
[null,null,null,null,null,null,null,null,null,null,null,null,null,null,null,null,null,1900]
[null,null,null,null,null,null,null,null,null,null,null,null,null,null,null,null,null,1900]
[null,null,null,null,null,null,null,null,null,null,null,null,null,null,null,null,null,1900]
[null,null,null,null,null,null,null,null,null,null,null,null,null,null,null,null,null,1900]
[null,null,null,null,null,null,null,null,null,null,null,null,null,null,null,null,null,1900]
[null,null,null,null,null,null,null,null,null,null,null,null,null,null,null,null,null,1900]
[null,null,null,null,null,null,null,null,null,null,null,null,null,null,null,null,null,1900]
[null,null,null,null,null,null,null,null,null,null,null,null,null,null,null,null,null,1900]
[null,null,null,null,null,null,null,null,null,null,null,null,null,null,null,null,null,1900]
[null,null,null,null,null,null,null,null,null,null,null,null,null,null,null,null,null,1900]
[null,null,null,null,null,null,null,null,null,null,null,null,null,null,null,null,null,1900]
[null,null,null,null,null,null,null,null,null,null,null,null,null,null,null,null,null,1900]
[null,null,null,null,null,null,null,null,null,null,null,null,null,null,null,null,null,1900]
[null,null,null,null,null,null,null,null,null,null,null,null,null,null,null,null,null,1900]
[null,null,null,null,null,null,null,null,null,null,null,null,null,null,null,null,null,1900]
[null,null,null,null,null,null,null,null,null,null,null,null,null,null,null,null,null,1900]
[null,null,null,null,null,null,null,null,null,null,null,null,null,null,null,null,null,1900]
[null,null,null,null,null,null,null,null,null,null,null,null,null,null,null,null,null,1900]
[null,null,null,null,null,null,null,null,null,null,null,null,null,null,null,null,null,1900]
[null,null,null,null,null,null,null,null,null,null,null,null,null,null,null,null,null,1900]
[null,null,null,null,null,null,null,null,null,null,null,null,null,null,null,null,null,{"$f":"YEAR(K1798)","v":1900}]
[null,null,null,null,null,null,null,null,null,null,null,null,null,null,null,null,null,1900]
[null,null,null,null,null,null,null,null,null,null,null,null,null,null,null,null,null,1900]
[null,null,null,null,null,null,null,null,null,null,null,null,null,null,null,null,null,1900]
[null,null,null,null,null,null,null,null,null,null,null,null,null,null,null,null,null,1900]
[null,null,null,null,null,null,null,null,null,null,null,null,null,null,null,null,null,1900]
[null,null,null,null,null,null,null,null,null,null,null,null,null,null,null,null,null,1900]
[null,null,null,null,null,null,null,null,null,null,null,null,null,null,null,null,null,1900]
[null,null,null,null,null,null,null,null,null,null,null,null,null,null,null,null,null,1900]
[null,null,null,null,null,null,null,null,null,null,null,null,null,null,null,null,null,1900]
[null,null,null,null,null,null,null,null,null,null,null,null,null,null,null,null,null,1900]
[null,null,null,null,null,null,null,null,null,null,null,null,null,null,null,null,null,1900]
[null,null,null,null,null,null,null,null,null,null,null,null,null,null,null,null,null,1900]
[null,null,null,null,null,null,null,null,null,null,null,null,null,null,null,null,null,1900]
[null,null,null,null,null,null,null,null,null,null,null,null,null,null,null,null,null,1900]
[null,null,null,null,null,null,null,null,null,null,null,null,null,null,null,null,null,1900]
[null,null,null,null,null,null,null,null,null,null,null,null,null,null,null,null,null,1900]
[null,null,null,null,null,null,null,null,null,null,null,null,null,null,null,null,null,1900]
[null,null,null,null,null,null,null,null,null,null,null,null,null,null,null,null,null,1900]
[null,null,null,null,null,null,null,null,null,null,null,null,null,null,null,null,null,1900]
[null,null,null,null,null,null,null,null,null,null,null,null,null,null,null,null,null,1900]
[null,null,null,null,null,null,null,null,null,null,null,null,null,null,null,null,null,1900]
[null,null,null,null,null,null,null,null,null,null,null,null,null,null,null,null,null,1900]
[null,null,null,null,null,null,null,null,null,null,null,null,null,null,null,null,null,1900]
[null,null,null,null,null,null,null,null,null,null,null,null,null,null,null,null,null,1900]
[null,null,null,null,null,null,null,null,null,null,null,null,null,null,null,null,null,1900]
[null,null,null,null,null,null,null,null,null,null,null,null,null,null,null,null,null,1900]
[null,null,null,null,null,null,null,null,null,null,null,null,null,null,null,null,null,1900]
[null,null,null,null,null,null,null,null,null,null,null,null,null,null,null,null,null,1900]
[null,null,null,null,null,null,null,null,null,null,null,null,null,null,null,null,null,1900]
[null,null,null,null,null,null,null,null,null,null,null,null,null,null,null,null,null,1900]
[null,null,null,null,null,null,null,null,null,null,null,null,null,null,null,null,null,1900]
[null,null,null,null,null,null,null,null,null,null,null,null,null,null,null,null,null,1900]
[null,null,null,null,null,null,null,null,null,null,null,null,null,null,null,null,null,1900]
[null,null,null,null,null,null,null,null,null,null,null,null,null,null,null,null,null,1900]
[null,null,null,null,null,null,null,null,null,null,null,null,null,null,null,null,null,1900]
[null,null,null,null,null,null,null,null,null,null,null,null,null,null,null,null,null,1900]
[null,null,null,null,null,null,null,null,null,null,null,null,null,null,null,null,null,1900]
[null,null,null,null,null,null,null,null,null,null,null,null,null,null,null,null,null,1900]
[null,null,null,null,null,null,null,null,null,null,null,null,null,null,null,null,null,1900]
[null,null,null,null,null,null,null,null,null,null,null,null,null,null,null,null,null,1900]
[null,null,null,null,null,null,null,null,null,null,null,null,null,null,null,null,null,1900]
[null,null,null,null,null,null,null,null,null,null,null,null,null,null,null,null,null,1900]
[null,null,null,null,null,null,null,null,null,null,null,null,null,null,null,null,null,1900]
[null,null,null,null,null,null,null,null,null,null,null,null,null,null,null,null,null,1900]
[null,null,null,null,null,null,null,null,null,null,null,null,null,null,null,null,null,1900]
[null,null,null,null,null,null,null,null,null,null,null,null,null,null,null,null,null,1900]
[null,null,null,null,null,null,null,null,null,null,null,null,null,null,null,null,null,1900]
[null,null,null,null,null,null,null,null,null,null,null,null,null,null,null,null,null,1900]
[null,null,null,null,null,null,null,null,null,null,null,null,null,null,null,null,null,1900]
[null,null,null,null,null,null,null,null,null,null,null,null,null,null,null,null,null,1900]
[null,null,null,null,null,null,null,null,null,null,null,null,null,null,null,null,null,1900]
[null,null,null,null,null,null,null,null,null,null,null,null,null,null,null,null,null,1900]
[null,null,null,null,null,null,null,null,null,null,null,null,null,null,null,null,null,1900]
[null,null,null,null,null,null,null,null,null,null,null,null,null,null,null,null,null,1900]
[null,null,null,null,null,null,null,null,null,null,null,null,null,null,null,null,null,1900]
[null,null,null,null,null,null,null,null,null,null,null,null,null,null,null,null,null,1900]
[null,null,null,null,null,null,null,null,null,null,null,null,null,null,null,null,null,1900]
[null,null,null,null,null,null,null,null,null,null,null,null,null,null,null,null,null,1900]
[null,null,null,null,null,null,null,null,null,null,null,null,null,null,null,null,null,1900]
[null,null,null,null,null,null,null,null,null,null,null,null,null,null,null,null,null,1900]
[null,null,null,null,null,null,null,null,null,null,null,null,null,null,null,null,null,1900]
[null,null,null,null,null,null,null,null,null,null,null,null,null,null,null,null,null,1900]
[null,null,null,null,null,null,null,null,null,null,null,null,null,null,null,null,null,1900]
[null,null,null,null,null,null,null,null,null,null,null,null,null,null,null,null,null,{"$f":"YEAR(K1862)","v":1900}]
[null,null,null,null,null,null,null,null,null,null,null,null,null,null,null,null,null,1900]
[null,null,null,null,null,null,null,null,null,null,null,null,null,null,null,null,null,1900]
[null,null,null,null,null,null,null,null,null,null,null,null,null,null,null,null,null,1900]
[null,null,null,null,null,null,null,null,null,null,null,null,null,null,null,null,null,1900]
[null,null,null,null,null,null,null,null,null,null,null,null,null,null,null,null,null,1900]
[null,null,null,null,null,null,null,null,null,null,null,null,null,null,null,null,null,1900]
[null,null,null,null,null,null,null,null,null,null,null,null,null,null,null,null,null,1900]
[null,null,null,null,null,null,null,null,null,null,null,null,null,null,null,null,null,1900]
[null,null,null,null,null,null,null,null,null,null,null,null,null,null,null,null,null,1900]
[null,null,null,null,null,null,null,null,null,null,null,null,null,null,null,null,null,1900]
[null,null,null,null,null,null,null,null,null,null,null,null,null,null,null,null,null,1900]
[null,null,null,null,null,null,null,null,null,null,null,null,null,null,null,null,null,1900]
[null,null,null,null,null,null,null,null,null,null,null,null,null,null,null,null,null,1900]
[null,null,null,null,null,null,null,null,null,null,null,null,null,null,null,null,null,1900]
[null,null,null,null,null,null,null,null,null,null,null,null,null,null,null,null,null,1900]
[null,null,null,null,null,null,null,null,null,null,null,null,null,null,null,null,null,1900]
[null,null,null,null,null,null,null,null,null,null,null,null,null,null,null,null,null,1900]
[null,null,null,null,null,null,null,null,null,null,null,null,null,null,null,null,null,1900]
[null,null,null,null,null,null,null,null,null,null,null,null,null,null,null,null,null,1900]
[null,null,null,null,null,null,null,null,null,null,null,null,null,null,null,null,null,1900]
[null,null,null,null,null,null,null,null,null,null,null,null,null,null,null,null,null,1900]
[null,null,null,null,null,null,null,null,null,null,null,null,null,null,null,null,null,1900]
[null,null,null,null,null,null,null,null,null,null,null,null,null,null,null,null,null,1900]
[null,null,null,null,null,null,null,null,null,null,null,null,null,null,null,null,null,1900]
[null,null,null,null,null,null,null,null,null,null,null,null,null,null,null,null,null,1900]
[null,null,null,null,null,null,null,null,null,null,null,null,null,null,null,null,null,1900]
[null,null,null,null,null,null,null,null,null,null,null,null,null,null,null,null,null,1900]
[null,null,null,null,null,null,null,null,null,null,null,null,null,null,null,null,null,1900]
[null,null,null,null,null,null,null,null,null,null,null,null,null,null,null,null,null,1900]
[null,null,null,null,null,null,null,null,null,null,null,null,null,null,null,null,null,1900]
[null,null,null,null,null,null,null,null,null,null,null,null,null,null,null,null,null,1900]
[null,null,null,null,null,null,null,null,null,null,null,null,null,null,null,null,null,1900]
[null,null,null,null,null,null,null,null,null,null,null,null,null,null,null,null,null,1900]
[null,null,null,null,null,null,null,null,null,null,null,null,null,null,null,null,null,1900]
[null,null,null,null,null,null,null,null,null,null,null,null,null,null,null,null,null,1900]
[null,null,null,null,null,null,null,null,null,null,null,null,null,null,null,null,null,1900]
[null,null,null,null,null,null,null,null,null,null,null,null,null,null,null,null,null,1900]
[null,null,null,null,null,null,null,null,null,null,null,null,null,null,null,null,null,1900]
[null,null,null,null,null,null,null,null,null,null,null,null,null,null,null,null,null,1900]
[null,null,null,null,null,null,null,null,null,null,null,null,null,null,null,null,null,1900]
[null,null,null,null,null,null,null,null,null,null,null,null,null,null,null,null,null,1900]
[null,null,null,null,null,null,null,null,null,null,null,null,null,null,null,null,null,1900]
[null,null,null,null,null,null,null,null,null,null,null,null,null,null,null,null,null,1900]
[null,null,null,null,null,null,null,null,null,null,null,null,null,null,null,null,null,1900]
[null,null,null,null,null,null,null,null,null,null,null,null,null,null,null,null,null,1900]
[null,null,null,null,null,null,null,null,null,null,null,null,null,null,null,null,null,1900]
[null,null,null,null,null,null,null,null,null,null,null,null,null,null,null,null,null,1900]
[null,null,null,null,null,null,null,null,null,null,null,null,null,null,null,null,null,1900]
[null,null,null,null,null,null,null,null,null,null,null,null,null,null,null,null,null,1900]
[null,null,null,null,null,null,null,null,null,null,null,null,null,null,null,null,null,1900]
[null,null,null,null,null,null,null,null,null,null,null,null,null,null,null,null,null,1900]
[null,null,null,null,null,null,null,null,null,null,null,null,null,null,null,null,null,1900]
[null,null,null,null,null,null,null,null,null,null,null,null,null,null,null,null,null,1900]
[null,null,null,null,null,null,null,null,null,null,null,null,null,null,null,null,null,1900]
[null,null,null,null,null,null,null,null,null,null,null,null,null,null,null,null,null,1900]
[null,null,null,null,null,null,null,null,null,null,null,null,null,null,null,null,null,1900]
[null,null,null,null,null,null,null,null,null,null,null,null,null,null,null,null,null,1900]
[null,null,null,null,null,null,null,null,null,null,null,null,null,null,null,null,null,1900]
[null,null,null,null,null,null,null,null,null,null,null,null,null,null,null,null,null,1900]
[null,null,null,null,null,null,null,null,null,null,null,null,null,null,null,null,null,1900]
[null,null,null,null,null,null,null,null,null,null,null,null,null,null,null,null,null,1900]
[null,null,null,null,null,null,null,null,null,null,null,null,null,null,null,null,null,1900]
[null,null,null,null,null,null,null,null,null,null,null,null,null,null,null,null,null,1900]
[null,null,null,null,null,null,null,null,null,null,null,null,null,null,null,null,null,{"$f":"YEAR(K1926)","v":1900}]
[null,null,null,null,null,null,null,null,null,null,null,null,null,null,null,null,null,1900]
[null,null,null,null,null,null,null,null,null,null,null,null,null,null,null,null,null,1900]
[null,null,null,null,null,null,null,null,null,null,null,null,null,null,null,null,null,1900]
[null,null,null,null,null,null,null,null,null,null,null,null,null,null,null,null,null,1900]
[null,null,null,null,null,null,null,null,null,null,null,null,null,null,null,null,null,1900]
[null,null,null,null,null,null,null,null,null,null,null,null,null,null,null,null,null,1900]
[null,null,null,null,null,null,null,null,null,null,null,null,null,null,null,null,null,1900]
[null,null,null,null,null,null,null,null,null,null,null,null,null,null,null,null,null,1900]
[null,null,null,null,null,null,null,null,null,null,null,null,null,null,null,null,null,1900]
[null,null,null,null,null,null,null,null,null,null,null,null,null,null,null,null,null,1900]
[null,null,null,null,null,null,null,null,null,null,null,null,null,null,null,null,null,1900]
[null,null,null,null,null,null,null,null,null,null,null,null,null,null,null,null,null,1900]
[null,null,null,null,null,null,null,null,null,null,null,null,null,null,null,null,null,1900]
[null,null,null,null,null,null,null,null,null,null,null,null,null,null,null,null,null,1900]
[null,null,null,null,null,null,null,null,null,null,null,null,null,null,null,null,null,1900]
[null,null,null,null,null,null,null,null,null,null,null,null,null,null,null,null,null,1900]
[null,null,null,null,null,null,null,null,null,null,null,null,null,null,null,null,null,1900]
[null,null,null,null,null,null,null,null,null,null,null,null,null,null,null,null,null,1900]
[null,null,null,null,null,null,null,null,null,null,null,null,null,null,null,null,null,1900]
[null,null,null,null,null,null,null,null,null,null,null,null,null,null,null,null,null,1900]
[null,null,null,null,null,null,null,null,null,null,null,null,null,null,null,null,null,1900]
[null,null,null,null,null,null,null,null,null,null,null,null,null,null,null,null,null,1900]
[null,null,null,null,null,null,null,null,null,null,null,null,null,null,null,null,null,1900]
[null,null,null,null,null,null,null,null,null,null,null,null,null,null,null,null,null,1900]
[null,null,null,null,null,null,null,null,null,null,null,null,null,null,null,null,null,1900]
[null,null,null,null,null,null,null,null,null,null,null,null,null,null,null,null,null,1900]
[null,null,null,null,null,null,null,null,null,null,null,null,null,null,null,null,null,1900]
[null,null,null,null,null,null,null,null,null,null,null,null,null,null,null,null,null,1900]
[null,null,null,null,null,null,null,null,null,null,null,null,null,null,null,null,null,1900]
[null,null,null,null,null,null,null,null,null,null,null,null,null,null,null,null,null,1900]
[null,null,null,null,null,null,null,null,null,null,null,null,null,null,null,null,null,1900]
[null,null,null,null,null,null,null,null,null,null,null,null,null,null,null,null,null,1900]
[null,null,null,null,null,null,null,null,null,null,null,null,null,null,null,null,null,1900]
[null,null,null,null,null,null,null,null,null,null,null,null,null,null,null,null,null,1900]
[null,null,null,null,null,null,null,null,null,null,null,null,null,null,null,null,null,1900]
[null,null,null,null,null,null,null,null,null,null,null,null,null,null,null,null,null,1900]
[null,null,null,null,null,null,null,null,null,null,null,null,null,null,null,null,null,1900]
[null,null,null,null,null,null,null,null,null,null,null,null,null,null,null,null,null,1900]
[null,null,null,null,null,null,null,null,null,null,null,null,null,null,null,null,null,1900]
[null,null,null,null,null,null,null,null,null,null,null,null,null,null,null,null,null,1900]
[null,null,null,null,null,null,null,null,null,null,null,null,null,null,null,null,null,1900]
[null,null,null,null,null,null,null,null,null,null,null,null,null,null,null,null,null,1900]
[null,null,null,null,null,null,null,null,null,null,null,null,null,null,null,null,null,1900]
[null,null,null,null,null,null,null,null,null,null,null,null,null,null,null,null,null,1900]
[null,null,null,null,null,null,null,null,null,null,null,null,null,null,null,null,null,1900]
[null,null,null,null,null,null,null,null,null,null,null,null,null,null,null,null,null,1900]
[null,null,null,null,null,null,null,null,null,null,null,null,null,null,null,null,null,1900]
[null,null,null,null,null,null,null,null,null,null,null,null,null,null,null,null,null,1900]
[null,null,null,null,null,null,null,null,null,null,null,null,null,null,null,null,null,1900]
[null,null,null,null,null,null,null,null,null,null,null,null,null,null,null,null,null,1900]
[null,null,null,null,null,null,null,null,null,null,null,null,null,null,null,null,null,1900]
[null,null,null,null,null,null,null,null,null,null,null,null,null,null,null,null,null,1900]
[null,null,null,null,null,null,null,null,null,null,null,null,null,null,null,null,null,1900]
[null,null,null,null,null,null,null,null,null,null,null,null,null,null,null,null,null,1900]
[null,null,null,null,null,null,null,null,null,null,null,null,null,null,null,null,null,1900]
[null,null,null,null,null,null,null,null,null,null,null,null,null,null,null,null,null,1900]
[null,null,null,null,null,null,null,null,null,null,null,null,null,null,null,null,null,1900]
[null,null,null,null,null,null,null,null,null,null,null,null,null,null,null,null,null,1900]
[null,null,null,null,null,null,null,null,null,null,null,null,null,null,null,null,null,1900]
[null,null,null,null,null,null,null,null,null,null,null,null,null,null,null,null,null,1900]
[null,null,null,null,null,null,null,null,null,null,null,null,null,null,null,null,null,1900]
[null,null,null,null,null,null,null,null,null,null,null,null,null,null,null,null,null,1900]
[null,null,null,null,null,null,null,null,null,null,null,null,null,null,null,null,null,1900]
[null,null,null,null,null,null,null,null,null,null,null,null,null,null,null,null,null,{"$f":"YEAR(K1990)","v":1900}]
[null,null,null,null,null,null,null,null,null,null,null,null,null,null,null,null,null,1900]
[null,null,null,null,null,null,null,null,null,null,null,null,null,null,null,null,null,1900]
[null,null,null,null,null,null,null,null,null,null,null,null,null,null,null,null,null,1900]
[null,null,null,null,null,null,null,null,null,null,null,null,null,null,null,null,null,1900]
[null,null,null,null,null,null,null,null,null,null,null,null,null,null,null,null,null,1900]
[null,null,null,null,null,null,null,null,null,null,null,null,null,null,null,null,null,1900]
[null,null,null,null,null,null,null,null,null,null,null,null,null,null,null,null,null,1900]
[null,null,null,null,null,null,null,null,null,null,null,null,null,null,null,null,null,1900]
[null,null,null,null,null,null,null,null,null,null,null,null,null,null,null,null,null,1900]
[null,null,null,null,null,null,null,null,null,null,null,null,null,null,null,null,null,1900]
[null,null,null,null,null,null,null,null,null,null,null,null,null,null,null,null,null,1900]
[null,null,null,null,null,null,null,null,null,null,null,null,null,null,null,null,null,1900]
[null,null,null,null,null,null,null,null,null,null,null,null,null,null,null,null,null,1900]
[null,null,null,null,null,null,null,null,null,null,null,null,null,null,null,null,null,1900]
[null,null,null,null,null,null,null,null,null,null,null,null,null,null,null,null,null,1900]
[null,null,null,null,null,null,null,null,null,null,null,null,null,null,null,null,null,1900]
[null,null,null,null,null,null,null,null,null,null,null,null,null,null,null,null,null,1900]
[null,null,null,null,null,null,null,null,null,null,null,null,null,null,null,null,null,1900]
[null,null,null,null,null,null,null,null,null,null,null,null,null,null,null,null,null,1900]
[null,null,null,null,null,null,null,null,null,null,null,null,null,null,null,null,null,1900]
[null,null,null,null,null,null,null,null,null,null,null,null,null,null,null,null,null,1900]
[null,null,null,null,null,null,null,null,null,null,null,null,null,null,null,null,null,1900]
[null,null,null,null,null,null,null,null,null,null,null,null,null,null,null,null,null,1900]
[null,null,null,null,null,null,null,null,null,null,null,null,null,null,null,null,null,1900]
[null,null,null,null,null,null,null,null,null,null,null,null,null,null,null,null,null,1900]
[null,null,null,null,null,null,null,null,null,null,null,null,null,null,null,null,null,1900]
[null,null,null,null,null,null,null,null,null,null,null,null,null,null,null,null,null,1900]
[null,null,null,null,null,null,null,null,null,null,null,null,null,null,null,null,null,1900]
[null,null,null,null,null,null,null,null,null,null,null,null,null,null,null,null,null,1900]
[null,null,null,null,null,null,null,null,null,null,null,null,null,null,null,null,null,1900]
[null,null,null,null,null,null,null,null,null,null,null,null,null,null,null,null,null,1900]
[null,null,null,null,null,null,null,null,null,null,null,null,null,null,null,null,null,1900]
[null,null,null,null,null,null,null,null,null,null,null,null,null,null,null,null,null,1900]
[null,null,null,null,null,null,null,null,null,null,null,null,null,null,null,null,null,1900]
[null,null,null,null,null,null,null,null,null,null,null,null,null,null,null,null,null,1900]
[null,null,null,null,null,null,null,null,null,null,null,null,null,null,null,null,null,1900]
[null,null,null,null,null,null,null,null,null,null,null,null,null,null,null,null,null,1900]
[null,null,null,null,null,null,null,null,null,null,null,null,null,null,null,null,null,1900]
[null,null,null,null,null,null,null,null,null,null,null,null,null,null,null,null,null,1900]
[null,null,null,null,null,null,null,null,null,null,null,null,null,null,null,null,null,1900]
[null,null,null,null,null,null,null,null,null,null,null,null,null,null,null,null,null,1900]
[null,null,null,null,null,null,null,null,null,null,null,null,null,null,null,null,null,1900]
[null,null,null,null,null,null,null,null,null,null,null,null,null,null,null,null,null,1900]
[null,null,null,null,null,null,null,null,null,null,null,null,null,null,null,null,null,1900]
[null,null,null,null,null,null,null,null,null,null,null,null,null,null,null,null,null,1900]
[null,null,null,null,null,null,null,null,null,null,null,null,null,null,null,null,null,1900]
[null,null,null,null,null,null,null,null,null,null,null,null,null,null,null,null,null,1900]
[null,null,null,null,null,null,null,null,null,null,null,null,null,null,null,null,null,1900]
[null,null,null,null,null,null,null,null,null,null,null,null,null,null,null,null,null,1900]
[null,null,null,null,null,null,null,null,null,null,null,null,null,null,null,null,null,1900]
[null,null,null,null,null,null,null,null,null,null,null,null,null,null,null,null,null,1900]
[null,null,null,null,null,null,null,null,null,null,null,null,null,null,null,null,null,1900]
[null,null,null,null,null,null,null,null,null,null,null,null,null,null,null,null,null,1900]
[null,null,null,null,null,null,null,null,null,null,null,null,null,null,null,null,null,1900]
[null,null,null,null,null,null,null,null,null,null,null,null,null,null,null,null,null,1900]
[null,null,null,null,null,null,null,null,null,null,null,null,null,null,null,null,null,1900]
[null,null,null,null,null,null,null,null,null,null,null,null,null,null,null,null,null,1900]
[null,null,null,null,null,null,null,null,null,null,null,null,null,null,null,null,null,1900]
[null,null,null,null,null,null,null,null,null,null,null,null,null,null,null,null,null,1900]
[null,null,null,null,null,null,null,null,null,null,null,null,null,null,null,null,null,1900]
[null,null,null,null,null,null,null,null,null,null,null,null,null,null,null,null,null,1900]
[null,null,null,null,null,null,null,null,null,null,null,null,null,null,null,null,null,1900]
[null,null,null,null,null,null,null,null,null,null,null,null,null,null,null,null,null,1900]
[null,null,null,null,null,null,null,null,null,null,null,null,null,null,null,null,null,{"$f":"YEAR(K2054)","v":1900}]
[null,null,null,null,null,null,null,null,null,null,null,null,null,null,null,null,null,1900]
[null,null,null,null,null,null,null,null,null,null,null,null,null,null,null,null,null,1900]
[null,null,null,null,null,null,null,null,null,null,null,null,null,null,null,null,null,1900]
[null,null,null,null,null,null,null,null,null,null,null,null,null,null,null,null,null,1900]
[null,null,null,null,null,null,null,null,null,null,null,null,null,null,null,null,null,1900]
[null,null,null,null,null,null,null,null,null,null,null,null,null,null,null,null,null,1900]
[null,null,null,null,null,null,null,null,null,null,null,null,null,null,null,null,null,1900]
[null,null,null,null,null,null,null,null,null,null,null,null,null,null,null,null,null,1900]
[null,null,null,null,null,null,null,null,null,null,null,null,null,null,null,null,null,1900]
[null,null,null,null,null,null,null,null,null,null,null,null,null,null,null,null,null,1900]
[null,null,null,null,null,null,null,null,null,null,null,null,null,null,null,null,null,1900]
[null,null,null,null,null,null,null,null,null,null,null,null,null,null,null,null,null,1900]
[null,null,null,null,null,null,null,null,null,null,null,null,null,null,null,null,null,1900]
[null,null,null,null,null,null,null,null,null,null,null,null,null,null,null,null,null,1900]
[null,null,null,null,null,null,null,null,null,null,null,null,null,null,null,null,null,1900]
[null,null,null,null,null,null,null,null,null,null,null,null,null,null,null,null,null,1900]
[null,null,null,null,null,null,null,null,null,null,null,null,null,null,null,null,null,1900]
[null,null,null,null,null,null,null,null,null,null,null,null,null,null,null,null,null,1900]
[null,null,null,null,null,null,null,null,null,null,null,null,null,null,null,null,null,1900]
[null,null,null,null,null,null,null,null,null,null,null,null,null,null,null,null,null,1900]
[null,null,null,null,null,null,null,null,null,null,null,null,null,null,null,null,null,1900]
[null,null,null,null,null,null,null,null,null,null,null,null,null,null,null,null,null,1900]
[null,null,null,null,null,null,null,null,null,null,null,null,null,null,null,null,null,1900]
[null,null,null,null,null,null,null,null,null,null,null,null,null,null,null,null,null,1900]
[null,null,null,null,null,null,null,null,null,null,null,null,null,null,null,null,null,1900]
[null,null,null,null,null,null,null,null,null,null,null,null,null,null,null,null,null,1900]
[null,null,null,null,null,null,null,null,null,null,null,null,null,null,null,null,null,1900]
[null,null,null,null,null,null,null,null,null,null,null,null,null,null,null,null,null,1900]
[null,null,null,null,null,null,null,null,null,null,null,null,null,null,null,null,null,1900]
[null,null,null,null,null,null,null,null,null,null,null,null,null,null,null,null,null,1900]
[null,null,null,null,null,null,null,null,null,null,null,null,null,null,null,null,null,1900]
[null,null,null,null,null,null,null,null,null,null,null,null,null,null,null,null,null,1900]
[null,null,null,null,null,null,null,null,null,null,null,null,null,null,null,null,null,1900]
[null,null,null,null,null,null,null,null,null,null,null,null,null,null,null,null,null,1900]
[null,null,null,null,null,null,null,null,null,null,null,null,null,null,null,null,null,1900]
[null,null,null,null,null,null,null,null,null,null,null,null,null,null,null,null,null,1900]
[null,null,null,null,null,null,null,null,null,null,null,null,null,null,null,null,null,1900]
[null,null,null,null,null,null,null,null,null,null,null,null,null,null,null,null,null,1900]
[null,null,null,null,null,null,null,null,null,null,null,null,null,null,null,null,null,1900]
[null,null,null,null,null,null,null,null,null,null,null,null,null,null,null,null,null,1900]
[null,null,null,null,null,null,null,null,null,null,null,null,null,null,null,null,null,1900]
[null,null,null,null,null,null,null,null,null,null,null,null,null,null,null,null,null,1900]
[null,null,null,null,null,null,null,null,null,null,null,null,null,null,null,null,null,1900]
[null,null,null,null,null,null,null,null,null,null,null,null,null,null,null,null,null,1900]
[null,null,null,null,null,null,null,null,null,null,null,null,null,null,null,null,null,1900]
[null,null,null,null,null,null,null,null,null,null,null,null,null,null,null,null,null,1900]
[null,null,null,null,null,null,null,null,null,null,null,null,null,null,null,null,null,1900]
[null,null,null,null,null,null,null,null,null,null,null,null,null,null,null,null,null,1900]
[null,null,null,null,null,null,null,null,null,null,null,null,null,null,null,null,null,1900]
[null,null,null,null,null,null,null,null,null,null,null,null,null,null,null,null,null,1900]
[null,null,null,null,null,null,null,null,null,null,null,null,null,null,null,null,null,1900]
[null,null,null,null,null,null,null,null,null,null,null,null,null,null,null,null,null,1900]
[null,null,null,null,null,null,null,null,null,null,null,null,null,null,null,null,null,1900]
[null,null,null,null,null,null,null,null,null,null,null,null,null,null,null,null,null,1900]
[null,null,null,null,null,null,null,null,null,null,null,null,null,null,null,null,null,1900]
[null,null,null,null,null,null,null,null,null,null,null,null,null,null,null,null,null,1900]
[null,null,null,null,null,null,null,null,null,null,null,null,null,null,null,null,null,1900]
[null,null,null,null,null,null,null,null,null,null,null,null,null,null,null,null,null,1900]
[null,null,null,null,null,null,null,null,null,null,null,null,null,null,null,null,null,1900]
[null,null,null,null,null,null,null,null,null,null,null,null,null,null,null,null,null,1900]
[null,null,null,null,null,null,null,null,null,null,null,null,null,null,null,null,null,1900]
[null,null,null,null,null,null,null,null,null,null,null,null,null,null,null,null,null,1900]
[null,null,null,null,null,null,null,null,null,null,null,null,null,null,null,null,null,1900]
[null,null,null,null,null,null,null,null,null,null,null,null,null,null,null,null,null,{"$f":"YEAR(K2118)","v":1900}]
[null,null,null,null,null,null,null,null,null,null,null,null,null,null,null,null,null,1900]
[null,null,null,null,null,null,null,null,null,null,null,null,null,null,null,null,null,1900]
[null,null,null,null,null,null,null,null,null,null,null,null,null,null,null,null,null,1900]
[null,null,null,null,null,null,null,null,null,null,null,null,null,null,null,null,null,1900]
[null,null,null,null,null,null,null,null,null,null,null,null,null,null,null,null,null,1900]
[null,null,null,null,null,null,null,null,null,null,null,null,null,null,null,null,null,1900]
[null,null,null,null,null,null,null,null,null,null,null,null,null,null,null,null,null,1900]
[null,null,null,null,null,null,null,null,null,null,null,null,null,null,null,null,null,1900]
[null,null,null,null,null,null,null,null,null,null,null,null,null,null,null,null,null,1900]
[null,null,null,null,null,null,null,null,null,null,null,null,null,null,null,null,null,1900]
[null,null,null,null,null,null,null,null,null,null,null,null,null,null,null,null,null,1900]
[null,null,null,null,null,null,null,null,null,null,null,null,null,null,null,null,null,1900]
[null,null,null,null,null,null,null,null,null,null,null,null,null,null,null,null,null,1900]
[null,null,null,null,null,null,null,null,null,null,null,null,null,null,null,null,null,1900]
[null,null,null,null,null,null,null,null,null,null,null,null,null,null,null,null,null,1900]
[null,null,null,null,null,null,null,null,null,null,null,null,null,null,null,null,null,1900]
[null,null,null,null,null,null,null,null,null,null,null,null,null,null,null,null,null,1900]
[null,null,null,null,null,null,null,null,null,null,null,null,null,null,null,null,null,1900]
[null,null,null,null,null,null,null,null,null,null,null,null,null,null,null,null,null,1900]
[null,null,null,null,null,null,null,null,null,null,null,null,null,null,null,null,null,1900]
[null,null,null,null,null,null,null,null,null,null,null,null,null,null,null,null,null,1900]
[null,null,null,null,null,null,null,null,null,null,null,null,null,null,null,null,null,1900]
[null,null,null,null,null,null,null,null,null,null,null,null,null,null,null,null,null,1900]
[null,null,null,null,null,null,null,null,null,null,null,null,null,null,null,null,null,1900]
[null,null,null,null,null,null,null,null,null,null,null,null,null,null,null,null,null,1900]
[null,null,null,null,null,null,null,null,null,null,null,null,null,null,null,null,null,1900]
[null,null,null,null,null,null,null,null,null,null,null,null,null,null,null,null,null,1900]
[null,null,null,null,null,null,null,null,null,null,null,null,null,null,null,null,null,1900]
[null,null,null,null,null,null,null,null,null,null,null,null,null,null,null,null,null,1900]
[null,null,null,null,null,null,null,null,null,null,null,null,null,null,null,null,null,1900]
[null,null,null,null,null,null,null,null,null,null,null,null,null,null,null,null,null,1900]
[null,null,null,null,null,null,null,null,null,null,null,null,null,null,null,null,null,1900]
[null,null,null,null,null,null,null,null,null,null,null,null,null,null,null,null,null,1900]
[null,null,null,null,null,null,null,null,null,null,null,null,null,null,null,null,null,1900]
[null,null,null,null,null,null,null,null,null,null,null,null,null,null,null,null,null,1900]
[null,null,null,null,null,null,null,null,null,null,null,null,null,null,null,null,null,1900]
[null,null,null,null,null,null,null,null,null,null,null,null,null,null,null,null,null,1900]
[null,null,null,null,null,null,null,null,null,null,null,null,null,null,null,null,null,1900]
[null,null,null,null,null,null,null,null,null,null,null,null,null,null,null,null,null,1900]
[null,null,null,null,null,null,null,null,null,null,null,null,null,null,null,null,null,1900]
[null,null,null,null,null,null,null,null,null,null,null,null,null,null,null,null,null,1900]
[null,null,null,null,null,null,null,null,null,null,null,null,null,null,null,null,null,1900]
[null,null,null,null,null,null,null,null,null,null,null,null,null,null,null,null,null,1900]
[null,null,null,null,null,null,null,null,null,null,null,null,null,null,null,null,null,1900]
[null,null,null,null,null,null,null,null,null,null,null,null,null,null,null,null,null,1900]
[null,null,null,null,null,null,null,null,null,null,null,null,null,null,null,null,null,1900]
[null,null,null,null,null,null,null,null,null,null,null,null,null,null,null,null,null,1900]
[null,null,null,null,null,null,null,null,null,null,null,null,null,null,null,null,null,1900]
[null,null,null,null,null,null,null,null,null,null,null,null,null,null,null,null,null,1900]
[null,null,null,null,null,null,null,null,null,null,null,null,null,null,null,null,null,1900]
[null,null,null,null,null,null,null,null,null,null,null,null,null,null,null,null,null,1900]
[null,null,null,null,null,null,null,null,null,null,null,null,null,null,null,null,null,1900]
[null,null,null,null,null,null,null,null,null,null,null,null,null,null,null,null,null,1900]
[null,null,null,null,null,null,null,null,null,null,null,null,null,null,null,null,null,1900]
[null,null,null,null,null,null,null,null,null,null,null,null,null,null,null,null,null,1900]
[null,null,null,null,null,null,null,null,null,null,null,null,null,null,null,null,null,1900]
[null,null,null,null,null,null,null,null,null,null,null,null,null,null,null,null,null,1900]
[null,null,null,null,null,null,null,null,null,null,null,null,null,null,null,null,null,1900]
[null,null,null,null,null,null,null,null,null,null,null,null,null,null,null,null,null,1900]
[null,null,null,null,null,null,null,null,null,null,null,null,null,null,null,null,null,1900]
[null,null,null,null,null,null,null,null,null,null,null,null,null,null,null,null,null,1900]
[null,null,null,null,null,null,null,null,null,null,null,null,null,null,null,null,null,1900]
[null,null,null,null,null,null,null,null,null,null,null,null,null,null,null,null,null,1900]
[null,null,null,null,null,null,null,null,null,null,null,null,null,null,null,null,null,{"$f":"YEAR(K2182)","v":1900}]
[null,null,null,null,null,null,null,null,null,null,null,null,null,null,null,null,null,1900]
[null,null,null,null,null,null,null,null,null,null,null,null,null,null,null,null,null,1900]
[null,null,null,null,null,null,null,null,null,null,null,null,null,null,null,null,null,1900]
[null,null,null,null,null,null,null,null,null,null,null,null,null,null,null,null,null,1900]
[null,null,null,null,null,null,null,null,null,null,null,null,null,null,null,null,null,1900]
[null,null,null,null,null,null,null,null,null,null,null,null,null,null,null,null,null,1900]
[null,null,null,null,null,null,null,null,null,null,null,null,null,null,null,null,null,1900]
[null,null,null,null,null,null,null,null,null,null,null,null,null,null,null,null,null,1900]
[null,null,null,null,null,null,null,null,null,null,null,null,null,null,null,null,null,1900]
[null,null,null,null,null,null,null,null,null,null,null,null,null,null,null,null,null,1900]
[null,null,null,null,null,null,null,null,null,null,null,null,null,null,null,null,null,1900]
[null,null,null,null,null,null,null,null,null,null,null,null,null,null,null,null,null,1900]
[null,null,null,null,null,null,null,null,null,null,null,null,null,null,null,null,null,1900]
[null,null,null,null,null,null,null,null,null,null,null,null,null,null,null,null,null,1900]
[null,null,null,null,null,null,null,null,null,null,null,null,null,null,null,null,null,1900]
[null,null,null,null,null,null,null,null,null,null,null,null,null,null,null,null,null,1900]
[null,null,null,null,null,null,null,null,null,null,null,null,null,null,null,null,null,1900]
[null,null,null,null,null,null,null,null,null,null,null,null,null,null,null,null,null,1900]
[null,null,null,null,null,null,null,null,null,null,null,null,null,null,null,null,null,1900]
[null,null,null,null,null,null,null,null,null,null,null,null,null,null,null,null,null,1900]
[null,null,null,null,null,null,null,null,null,null,null,null,null,null,null,null,null,1900]
[null,null,null,null,null,null,null,null,null,null,null,null,null,null,null,null,null,1900]
[null,null,null,null,null,null,null,null,null,null,null,null,null,null,null,null,null,1900]
[null,null,null,null,null,null,null,null,null,null,null,null,null,null,null,null,null,1900]
[null,null,null,null,null,null,null,null,null,null,null,null,null,null,null,null,null,1900]
[null,null,null,null,null,null,null,null,null,null,null,null,null,null,null,null,null,1900]
[null,null,null,null,null,null,null,null,null,null,null,null,null,null,null,null,null,1900]
[null,null,null,null,null,null,null,null,null,null,null,null,null,null,null,null,null,1900]
[null,null,null,null,null,null,null,null,null,null,null,null,null,null,null,null,null,1900]
[null,null,null,null,null,null,null,null,null,null,null,null,null,null,null,null,null,1900]
[null,null,null,null,null,null,null,null,null,null,null,null,null,null,null,null,null,1900]
[null,null,null,null,null,null,null,null,null,null,null,null,null,null,null,null,null,1900]
[null,null,null,null,null,null,null,null,null,null,null,null,null,null,null,null,null,1900]
[null,null,null,null,null,null,null,null,null,null,null,null,null,null,null,null,null,1900]
[null,null,null,null,null,null,null,null,null,null,null,null,null,null,null,null,null,1900]
[null,null,null,null,null,null,null,null,null,null,null,null,null,null,null,null,null,1900]
[null,null,null,null,null,null,null,null,null,null,null,null,null,null,null,null,null,1900]
[null,null,null,null,null,null,null,null,null,null,null,null,null,null,null,null,null,1900]
[null,null,null,null,null,null,null,null,null,null,null,null,null,null,null,null,null,1900]
[null,null,null,null,null,null,null,null,null,null,null,null,null,null,null,null,null,1900]
[null,null,null,null,null,null,null,null,null,null,null,null,null,null,null,null,null,1900]
[null,null,null,null,null,null,null,null,null,null,null,null,null,null,null,null,null,1900]
[null,null,null,null,null,null,null,null,null,null,null,null,null,null,null,null,null,1900]
[null,null,null,null,null,null,null,null,null,null,null,null,null,null,null,null,null,1900]
[null,null,null,null,null,null,null,null,null,null,null,null,null,null,null,null,null,1900]
[null,null,null,null,null,null,null,null,null,null,null,null,null,null,null,null,null,1900]
[null,null,null,null,null,null,null,null,null,null,null,null,null,null,null,null,null,1900]
[null,null,null,null,null,null,null,null,null,null,null,null,null,null,null,null,null,1900]
[null,null,null,null,null,null,null,null,null,null,null,null,null,null,null,null,null,1900]
[null,null,null,null,null,null,null,null,null,null,null,null,null,null,null,null,null,1900]
[null,null,null,null,null,null,null,null,null,null,null,null,null,null,null,null,null,1900]
[null,null,null,null,null,null,null,null,null,null,null,null,null,null,null,null,null,1900]
[null,null,null,null,null,null,null,null,null,null,null,null,null,null,null,null,null,1900]
[null,null,null,null,null,null,null,null,null,null,null,null,null,null,null,null,null,1900]
[null,null,null,null,null,null,null,null,null,null,null,null,null,null,null,null,null,1900]
[null,null,null,null,null,null,null,null,null,null,null,null,null,null,null,null,null,1900]
[null,null,null,null,null,null,null,null,null,null,null,null,null,null,null,null,null,1900]
[null,null,null,null,null,null,null,null,null,null,null,null,null,null,null,null,null,1900]
[null,null,null,null,null,null,null,null,null,null,null,null,null,null,null,null,null,1900]
[null,null,null,null,null,null,null,null,null,null,null,null,null,null,null,null,null,1900]
[null,null,null,null,null,null,null,null,null,null,null,null,null,null,null,null,null,1900]
[null,null,null,null,null,null,null,null,null,null,null,null,null,null,null,null,null,1900]
[null,null,null,null,null,null,null,null,null,null,null,null,null,null,null,null,null,1900]
[null,null,null,null,null,null,null,null,null,null,null,null,null,null,null,null,null,{"$f":"YEAR(K2246)","v":1900}]
[null,null,null,null,null,null,null,null,null,null,null,null,null,null,null,null,null,1900]
[null,null,null,null,null,null,null,null,null,null,null,null,null,null,null,null,null,1900]
[null,null,null,null,null,null,null,null,null,null,null,null,null,null,null,null,null,1900]
[null,null,null,null,null,null,null,null,null,null,null,null,null,null,null,null,null,1900]
[null,null,null,null,null,null,null,null,null,null,null,null,null,null,null,null,null,1900]
[null,null,null,null,null,null,null,null,null,null,null,null,null,null,null,null,null,1900]
[null,null,null,null,null,null,null,null,null,null,null,null,null,null,null,null,null,1900]
[null,null,null,null,null,null,null,null,null,null,null,null,null,null,null,null,null,1900]
[null,null,null,null,null,null,null,null,null,null,null,null,null,null,null,null,null,1900]
[null,null,null,null,null,null,null,null,null,null,null,null,null,null,null,null,null,1900]
[null,null,null,null,null,null,null,null,null,null,null,null,null,null,null,null,null,1900]
[null,null,null,null,null,null,null,null,null,null,null,null,null,null,null,null,null,1900]
[null,null,null,null,null,null,null,null,null,null,null,null,null,null,null,null,null,1900]
[null,null,null,null,null,null,null,null,null,null,null,null,null,null,null,null,null,1900]
[null,null,null,null,null,null,null,null,null,null,null,null,null,null,null,null,null,1900]
[null,null,null,null,null,null,null,null,null,null,null,null,null,null,null,null,null,1900]
[null,null,null,null,null,null,null,null,null,null,null,null,null,null,null,null,null,1900]
[null,null,null,null,null,null,null,null,null,null,null,null,null,null,null,null,null,1900]
[null,null,null,null,null,null,null,null,null,null,null,null,null,null,null,null,null,1900]
[null,null,null,null,null,null,null,null,null,null,null,null,null,null,null,null,null,1900]
[null,null,null,null,null,null,null,null,null,null,null,null,null,null,null,null,null,1900]
[null,null,null,null,null,null,null,null,null,null,null,null,null,null,null,null,null,1900]
[null,null,null,null,null,null,null,null,null,null,null,null,null,null,null,null,null,1900]
[null,null,null,null,null,null,null,null,null,null,null,null,null,null,null,null,null,1900]
[null,null,null,null,null,null,null,null,null,null,null,null,null,null,null,null,null,1900]
[null,null,null,null,null,null,null,null,null,null,null,null,null,null,null,null,null,1900]
[null,null,null,null,null,null,null,null,null,null,null,null,null,null,null,null,null,1900]
[null,null,null,null,null,null,null,null,null,null,null,null,null,null,null,null,null,1900]
[null,null,null,null,null,null,null,null,null,null,null,null,null,null,null,null,null,1900]
[null,null,null,null,null,null,null,null,null,null,null,null,null,null,null,null,null,1900]
[null,null,null,null,null,null,null,null,null,null,null,null,null,null,null,null,null,1900]
[null,null,null,null,null,null,null,null,null,null,null,null,null,null,null,null,null,1900]
[null,null,null,null,null,null,null,null,null,null,null,null,null,null,null,null,null,1900]
[null,null,null,null,null,null,null,null,null,null,null,null,null,null,null,null,null,1900]
[null,null,null,null,null,null,null,null,null,null,null,null,null,null,null,null,null,1900]
[null,null,null,null,null,null,null,null,null,null,null,null,null,null,null,null,null,1900]
[null,null,null,null,null,null,null,null,null,null,null,null,null,null,null,null,null,1900]
[null,null,null,null,null,null,null,null,null,null,null,null,null,null,null,null,null,1900]
[null,null,null,null,null,null,null,null,null,null,null,null,null,null,null,null,null,1900]
[null,null,null,null,null,null,null,null,null,null,null,null,null,null,null,null,null,1900]
[null,null,null,null,null,null,null,null,null,null,null,null,null,null,null,null,null,1900]
[null,null,null,null,null,null,null,null,null,null,null,null,null,null,null,null,null,1900]
[null,null,null,null,null,null,null,null,null,null,null,null,null,null,null,null,null,1900]
[null,null,null,null,null,null,null,null,null,null,null,null,null,null,null,null,null,1900]
[null,null,null,null,null,null,null,null,null,null,null,null,null,null,null,null,null,1900]
[null,null,null,null,null,null,null,null,null,null,null,null,null,null,null,null,null,1900]
[null,null,null,null,null,null,null,null,null,null,null,null,null,null,null,null,null,1900]
[null,null,null,null,null,null,null,null,null,null,null,null,null,null,null,null,null,1900]
[null,null,null,null,null,null,null,null,null,null,null,null,null,null,null,null,null,1900]
[null,null,null,null,null,null,null,null,null,null,null,null,null,null,null,null,null,1900]
[null,null,null,null,null,null,null,null,null,null,null,null,null,null,null,null,null,1900]
[null,null,null,null,null,null,null,null,null,null,null,null,null,null,null,null,null,1900]
[null,null,null,null,null,null,null,null,null,null,null,null,null,null,null,null,null,1900]
[null,null,null,null,null,null,null,null,null,null,null,null,null,null,null,null,null,1900]
[null,null,null,null,null,null,null,null,null,null,null,null,null,null,null,null,null,1900]
[null,null,null,null,null,null,null,null,null,null,null,null,null,null,null,null,null,1900]
[null,null,null,null,null,null,null,null,null,null,null,null,null,null,null,null,null,1900]
[null,null,null,null,null,null,null,null,null,null,null,null,null,null,null,null,null,1900]
[null,null,null,null,null,null,null,null,null,null,null,null,null,null,null,null,null,1900]
[null,null,null,null,null,null,null,null,null,null,null,null,null,null,null,null,null,1900]
[null,null,null,null,null,null,null,null,null,null,null,null,null,null,null,null,null,1900]
[null,null,null,null,null,null,null,null,null,null,null,null,null,null,null,null,null,1900]
[null,null,null,null,null,null,null,null,null,null,null,null,null,null,null,null,null,1900]
[null,null,null,null,null,null,null,null,null,null,null,null,null,null,null,null,null,{"$f":"YEAR(K2310)","v":1900}]
[null,null,null,null,null,null,null,null,null,null,null,null,null,null,null,null,null,1900]
[null,null,null,null,null,null,null,null,null,null,null,null,null,null,null,null,null,1900]
[null,null,null,null,null,null,null,null,null,null,null,null,null,null,null,null,null,1900]
[null,null,null,null,null,null,null,null,null,null,null,null,null,null,null,null,null,1900]
[null,null,null,null,null,null,null,null,null,null,null,null,null,null,null,null,null,1900]
[null,null,null,null,null,null,null,null,null,null,null,null,null,null,null,null,null,1900]
[null,null,null,null,null,null,null,null,null,null,null,null,null,null,null,null,null,1900]
[null,null,null,null,null,null,null,null,null,null,null,null,null,null,null,null,null,1900]
[null,null,null,null,null,null,null,null,null,null,null,null,null,null,null,null,null,1900]
[null,null,null,null,null,null,null,null,null,null,null,null,null,null,null,null,null,1900]
[null,null,null,null,null,null,null,null,null,null,null,null,null,null,null,null,null,1900]
[null,null,null,null,null,null,null,null,null,null,null,null,null,null,null,null,null,1900]
[null,null,null,null,null,null,null,null,null,null,null,null,null,null,null,null,null,1900]
[null,null,null,null,null,null,null,null,null,null,null,null,null,null,null,null,null,1900]
[null,null,null,null,null,null,null,null,null,null,null,null,null,null,null,null,null,1900]
[null,null,null,null,null,null,null,null,null,null,null,null,null,null,null,null,null,1900]
[null,null,null,null,null,null,null,null,null,null,null,null,null,null,null,null,null,1900]
[null,null,null,null,null,null,null,null,null,null,null,null,null,null,null,null,null,1900]
[null,null,null,null,null,null,null,null,null,null,null,null,null,null,null,null,null,1900]
[null,null,null,null,null,null,null,null,null,null,null,null,null,null,null,null,null,1900]
[null,null,null,null,null,null,null,null,null,null,null,null,null,null,null,null,null,1900]
[null,null,null,null,null,null,null,null,null,null,null,null,null,null,null,null,null,1900]
[null,null,null,null,null,null,null,null,null,null,null,null,null,null,null,null,null,1900]
[null,null,null,null,null,null,null,null,null,null,null,null,null,null,null,null,null,1900]
[null,null,null,null,null,null,null,null,null,null,null,null,null,null,null,null,null,1900]
[null,null,null,null,null,null,null,null,null,null,null,null,null,null,null,null,null,1900]
[null,null,null,null,null,null,null,null,null,null,null,null,null,null,null,null,null,1900]
[null,null,null,null,null,null,null,null,null,null,null,null,null,null,null,null,null,1900]
[null,null,null,null,null,null,null,null,null,null,null,null,null,null,null,null,null,1900]
[null,null,null,null,null,null,null,null,null,null,null,null,null,null,null,null,null,1900]
[null,null,null,null,null,null,null,null,null,null,null,null,null,null,null,null,null,1900]
[null,null,null,null,null,null,null,null,null,null,null,null,null,null,null,null,null,1900]
[null,null,null,null,null,null,null,null,null,null,null,null,null,null,null,null,null,1900]
[null,null,null,null,null,null,null,null,null,null,null,null,null,null,null,null,null,1900]
[null,null,null,null,null,null,null,null,null,null,null,null,null,null,null,null,null,1900]
[null,null,null,null,null,null,null,null,null,null,null,null,null,null,null,null,null,1900]
[null,null,null,null,null,null,null,null,null,null,null,null,null,null,null,null,null,1900]
[null,null,null,null,null,null,null,null,null,null,null,null,null,null,null,null,null,1900]
[null,null,null,null,null,null,null,null,null,null,null,null,null,null,null,null,null,1900]
[null,null,null,null,null,null,null,null,null,null,null,null,null,null,null,null,null,1900]
[null,null,null,null,null,null,null,null,null,null,null,null,null,null,null,null,null,1900]
[null,null,null,null,null,null,null,null,null,null,null,null,null,null,null,null,null,1900]
[null,null,null,null,null,null,null,null,null,null,null,null,null,null,null,null,null,1900]
[null,null,null,null,null,null,null,null,null,null,null,null,null,null,null,null,null,1900]
[null,null,null,null,null,null,null,null,null,null,null,null,null,null,null,null,null,1900]
[null,null,null,null,null,null,null,null,null,null,null,null,null,null,null,null,null,1900]
[null,null,null,null,null,null,null,null,null,null,null,null,null,null,null,null,null,1900]
[null,null,null,null,null,null,null,null,null,null,null,null,null,null,null,null,null,1900]
[null,null,null,null,null,null,null,null,null,null,null,null,null,null,null,null,null,1900]
[null,null,null,null,null,null,null,null,null,null,null,null,null,null,null,null,null,1900]
[null,null,null,null,null,null,null,null,null,null,null,null,null,null,null,null,null,1900]
[null,null,null,null,null,null,null,null,null,null,null,null,null,null,null,null,null,1900]
[null,null,null,null,null,null,null,null,null,null,null,null,null,null,null,null,null,1900]
[null,null,null,null,null,null,null,null,null,null,null,null,null,null,null,null,null,1900]
[null,null,null,null,null,null,null,null,null,null,null,null,null,null,null,null,null,1900]
[null,null,null,null,null,null,null,null,null,null,null,null,null,null,null,null,null,1900]
[null,null,null,null,null,null,null,null,null,null,null,null,null,null,null,null,null,1900]
[null,null,null,null,null,null,null,null,null,null,null,null,null,null,null,null,null,1900]
[null,null,null,null,null,null,null,null,null,null,null,null,null,null,null,null,null,1900]
[null,null,null,null,null,null,null,null,null,null,null,null,null,null,null,null,null,1900]
[null,null,null,null,null,null,null,null,null,null,null,null,null,null,null,null,null,1900]
[null,null,null,null,null,null,null,null,null,null,null,null,null,null,null,null,null,1900]
[null,null,null,null,null,null,null,null,null,null,null,null,null,null,null,null,null,1900]
[null,null,null,null,null,null,null,null,null,null,null,null,null,null,null,null,null,{"$f":"YEAR(K2374)","v":1900}]
[null,null,null,null,null,null,null,null,null,null,null,null,null,null,null,null,null,1900]
[null,null,null,null,null,null,null,null,null,null,null,null,null,null,null,null,null,1900]
[null,null,null,null,null,null,null,null,null,null,null,null,null,null,null,null,null,1900]
[null,null,null,null,null,null,null,null,null,null,null,null,null,null,null,null,null,1900]
[null,null,null,null,null,null,null,null,null,null,null,null,null,null,null,null,null,1900]
[null,null,null,null,null,null,null,null,null,null,null,null,null,null,null,null,null,1900]
[null,null,null,null,null,null,null,null,null,null,null,null,null,null,null,null,null,1900]
[null,null,null,null,null,null,null,null,null,null,null,null,null,null,null,null,null,1900]
[null,null,null,null,null,null,null,null,null,null,null,null,null,null,null,null,null,1900]
[null,null,null,null,null,null,null,null,null,null,null,null,null,null,null,null,null,1900]
[null,null,null,null,null,null,null,null,null,null,null,null,null,null,null,null,null,1900]
[null,null,null,null,null,null,null,null,null,null,null,null,null,null,null,null,null,1900]
[null,null,null,null,null,null,null,null,null,null,null,null,null,null,null,null,null,1900]
[null,null,null,null,null,null,null,null,null,null,null,null,null,null,null,null,null,1900]
[null,null,null,null,null,null,null,null,null,null,null,null,null,null,null,null,null,1900]
[null,null,null,null,null,null,null,null,null,null,null,null,null,null,null,null,null,1900]
[null,null,null,null,null,null,null,null,null,null,null,null,null,null,null,null,null,1900]
[null,null,null,null,null,null,null,null,null,null,null,null,null,null,null,null,null,1900]
[null,null,null,null,null,null,null,null,null,null,null,null,null,null,null,null,null,1900]
[null,null,null,null,null,null,null,null,null,null,null,null,null,null,null,null,null,1900]
[null,null,null,null,null,null,null,null,null,null,null,null,null,null,null,null,null,1900]
[null,null,null,null,null,null,null,null,null,null,null,null,null,null,null,null,null,1900]
[null,null,null,null,null,null,null,null,null,null,null,null,null,null,null,null,null,1900]
[null,null,null,null,null,null,null,null,null,null,null,null,null,null,null,null,null,1900]
[null,null,null,null,null,null,null,null,null,null,null,null,null,null,null,null,null,1900]
[null,null,null,null,null,null,null,null,null,null,null,null,null,null,null,null,null,1900]
[null,null,null,null,null,null,null,null,null,null,null,null,null,null,null,null,null,1900]
[null,null,null,null,null,null,null,null,null,null,null,null,null,null,null,null,null,1900]
[null,null,null,null,null,null,null,null,null,null,null,null,null,null,null,null,null,1900]
[null,null,null,null,null,null,null,null,null,null,null,null,null,null,null,null,null,1900]
[null,null,null,null,null,null,null,null,null,null,null,null,null,null,null,null,null,1900]
[null,null,null,null,null,null,null,null,null,null,null,null,null,null,null,null,null,1900]
[null,null,null,null,null,null,null,null,null,null,null,null,null,null,null,null,null,1900]
[null,null,null,null,null,null,null,null,null,null,null,null,null,null,null,null,null,1900]
[null,null,null,null,null,null,null,null,null,null,null,null,null,null,null,null,null,1900]
[null,null,null,null,null,null,null,null,null,null,null,null,null,null,null,null,null,1900]
[null,null,null,null,null,null,null,null,null,null,null,null,null,null,null,null,null,1900]
[null,null,null,null,null,null,null,null,null,null,null,null,null,null,null,null,null,1900]
[null,null,null,null,null,null,null,null,null,null,null,null,null,null,null,null,null,1900]
[null,null,null,null,null,null,null,null,null,null,null,null,null,null,null,null,null,1900]
[null,null,null,null,null,null,null,null,null,null,null,null,null,null,null,null,null,1900]
[null,null,null,null,null,null,null,null,null,null,null,null,null,null,null,null,null,1900]
[null,null,null,null,null,null,null,null,null,null,null,null,null,null,null,null,null,1900]
[null,null,null,null,null,null,null,null,null,null,null,null,null,null,null,null,null,1900]
[null,null,null,null,null,null,null,null,null,null,null,null,null,null,null,null,null,1900]
[null,null,null,null,null,null,null,null,null,null,null,null,null,null,null,null,null,1900]
[null,null,null,null,null,null,null,null,null,null,null,null,null,null,null,null,null,1900]
[null,null,null,null,null,null,null,null,null,null,null,null,null,null,null,null,null,1900]
[null,null,null,null,null,null,null,null,null,null,null,null,null,null,null,null,null,1900]
[null,null,null,null,null,null,null,null,null,null,null,null,null,null,null,null,null,1900]
[null,null,null,null,null,null,null,null,null,null,null,null,null,null,null,null,null,1900]
[null,null,null,null,null,null,null,null,null,null,null,null,null,null,null,null,null,1900]
[null,null,null,null,null,null,null,null,null,null,null,null,null,null,null,null,null,1900]
[null,null,null,null,null,null,null,null,null,null,null,null,null,null,null,null,null,1900]
[null,null,null,null,null,null,null,null,null,null,null,null,null,null,null,null,null,1900]
[null,null,null,null,null,null,null,null,null,null,null,null,null,null,null,null,null,1900]
[null,null,null,null,null,null,null,null,null,null,null,null,null,null,null,null,null,1900]
[null,null,null,null,null,null,null,null,null,null,null,null,null,null,null,null,null,1900]
[null,null,null,null,null,null,null,null,null,null,null,null,null,null,null,null,null,1900]
[null,null,null,null,null,null,null,null,null,null,null,null,null,null,null,null,null,1900]
[null,null,null,null,null,null,null,null,null,null,null,null,null,null,null,null,null,1900]
[null,null,null,null,null,null,null,null,null,null,null,null,null,null,null,null,null,1900]
[null,null,null,null,null,null,null,null,null,null,null,null,null,null,null,null,null,1900]
[null,null,null,null,null,null,null,null,null,null,null,null,null,null,null,null,null,{"$f":"YEAR(K2438)","v":1900}]
[null,null,null,null,null,null,null,null,null,null,null,null,null,null,null,null,null,1900]
[null,null,null,null,null,null,null,null,null,null,null,null,null,null,null,null,null,1900]
[null,null,null,null,null,null,null,null,null,null,null,null,null,null,null,null,null,1900]
[null,null,null,null,null,null,null,null,null,null,null,null,null,null,null,null,null,1900]
[null,null,null,null,null,null,null,null,null,null,null,null,null,null,null,null,null,1900]
[null,null,null,null,null,null,null,null,null,null,null,null,null,null,null,null,null,1900]
[null,null,null,null,null,null,null,null,null,null,null,null,null,null,null,null,null,1900]
[null,null,null,null,null,null,null,null,null,null,null,null,null,null,null,null,null,1900]
[null,null,null,null,null,null,null,null,null,null,null,null,null,null,null,null,null,1900]
[null,null,null,null,null,null,null,null,null,null,null,null,null,null,null,null,null,1900]
[null,null,null,null,null,null,null,null,null,null,null,null,null,null,null,null,null,1900]
[null,null,null,null,null,null,null,null,null,null,null,null,null,null,null,null,null,1900]
[null,null,null,null,null,null,null,null,null,null,null,null,null,null,null,null,null,1900]
[null,null,null,null,null,null,null,null,null,null,null,null,null,null,null,null,null,1900]
[null,null,null,null,null,null,null,null,null,null,null,null,null,null,null,null,null,1900]
[null,null,null,null,null,null,null,null,null,null,null,null,null,null,null,null,null,1900]
[null,null,null,null,null,null,null,null,null,null,null,null,null,null,null,null,null,1900]
[null,null,null,null,null,null,null,null,null,null,null,null,null,null,null,null,null,1900]
[null,null,null,null,null,null,null,null,null,null,null,null,null,null,null,null,null,1900]
[null,null,null,null,null,null,null,null,null,null,null,null,null,null,null,null,null,1900]
[null,null,null,null,null,null,null,null,null,null,null,null,null,null,null,null,null,1900]
[null,null,null,null,null,null,null,null,null,null,null,null,null,null,null,null,null,1900]
[null,null,null,null,null,null,null,null,null,null,null,null,null,null,null,null,null,1900]
[null,null,null,null,null,null,null,null,null,null,null,null,null,null,null,null,null,1900]
[null,null,null,null,null,null,null,null,null,null,null,null,null,null,null,null,null,1900]
[null,null,null,null,null,null,null,null,null,null,null,null,null,null,null,null,null,1900]
[null,null,null,null,null,null,null,null,null,null,null,null,null,null,null,null,null,1900]
[null,null,null,null,null,null,null,null,null,null,null,null,null,null,null,null,null,1900]
[null,null,null,null,null,null,null,null,null,null,null,null,null,null,null,null,null,1900]
[null,null,null,null,null,null,null,null,null,null,null,null,null,null,null,null,null,1900]
[null,null,null,null,null,null,null,null,null,null,null,null,null,null,null,null,null,1900]
[null,null,null,null,null,null,null,null,null,null,null,null,null,null,null,null,null,1900]
[null,null,null,null,null,null,null,null,null,null,null,null,null,null,null,null,null,1900]
[null,null,null,null,null,null,null,null,null,null,null,null,null,null,null,null,null,1900]
[null,null,null,null,null,null,null,null,null,null,null,null,null,null,null,null,null,1900]
[null,null,null,null,null,null,null,null,null,null,null,null,null,null,null,null,null,1900]
[null,null,null,null,null,null,null,null,null,null,null,null,null,null,null,null,null,1900]
[null,null,null,null,null,null,null,null,null,null,null,null,null,null,null,null,null,1900]
[null,null,null,null,null,null,null,null,null,null,null,null,null,null,null,null,null,1900]
[null,null,null,null,null,null,null,null,null,null,null,null,null,null,null,null,null,1900]
[null,null,null,null,null,null,null,null,null,null,null,null,null,null,null,null,null,1900]
[null,null,null,null,null,null,null,null,null,null,null,null,null,null,null,null,null,1900]
[null,null,null,null,null,null,null,null,null,null,null,null,null,null,null,null,null,1900]
[null,null,null,null,null,null,null,null,null,null,null,null,null,null,null,null,null,1900]
[null,null,null,null,null,null,null,null,null,null,null,null,null,null,null,null,null,1900]
[null,null,null,null,null,null,null,null,null,null,null,null,null,null,null,null,null,1900]
[null,null,null,null,null,null,null,null,null,null,null,null,null,null,null,null,null,1900]
[null,null,null,null,null,null,null,null,null,null,null,null,null,null,null,null,null,1900]
[null,null,null,null,null,null,null,null,null,null,null,null,null,null,null,null,null,1900]
[null,null,null,null,null,null,null,null,null,null,null,null,null,null,null,null,null,1900]
[null,null,null,null,null,null,null,null,null,null,null,null,null,null,null,null,null,1900]
[null,null,null,null,null,null,null,null,null,null,null,null,null,null,null,null,null,1900]
[null,null,null,null,null,null,null,null,null,null,null,null,null,null,null,null,null,1900]
[null,null,null,null,null,null,null,null,null,null,null,null,null,null,null,null,null,1900]
[null,null,null,null,null,null,null,null,null,null,null,null,null,null,null,null,null,1900]
[null,null,null,null,null,null,null,null,null,null,null,null,null,null,null,null,null,1900]
[null,null,null,null,null,null,null,null,null,null,null,null,null,null,null,null,null,1900]
[null,null,null,null,null,null,null,null,null,null,null,null,null,null,null,null,null,1900]
[null,null,null,null,null,null,null,null,null,null,null,null,null,null,null,null,null,1900]
[null,null,null,null,null,null,null,null,null,null,null,null,null,null,null,null,null,1900]
[null,null,null,null,null,null,null,null,null,null,null,null,null,null,null,null,null,1900]
[null,null,null,null,null,null,null,null,null,null,null,null,null,null,null,null,null,1900]
[null,null,null,null,null,null,null,null,null,null,null,null,null,null,null,null,null,1900]
[null,null,null,null,null,null,null,null,null,null,null,null,null,null,null,null,null,{"$f":"YEAR(K2502)","v":1900}]
[null,null,null,null,null,null,null,null,null,null,null,null,null,null,null,null,null,1900]
[null,null,null,null,null,null,null,null,null,null,null,null,null,null,null,null,null,1900]
[null,null,null,null,null,null,null,null,null,null,null,null,null,null,null,null,null,1900]
[null,null,null,null,null,null,null,null,null,null,null,null,null,null,null,null,null,1900]
[null,null,null,null,null,null,null,null,null,null,null,null,null,null,null,null,null,1900]
[null,null,null,null,null,null,null,null,null,null,null,null,null,null,null,null,null,1900]
[null,null,null,null,null,null,null,null,null,null,null,null,null,null,null,null,null,1900]
[null,null,null,null,null,null,null,null,null,null,null,null,null,null,null,null,null,1900]
[null,null,null,null,null,null,null,null,null,null,null,null,null,null,null,null,null,1900]
[null,null,null,null,null,null,null,null,null,null,null,null,null,null,null,null,null,1900]
[null,null,null,null,null,null,null,null,null,null,null,null,null,null,null,null,null,1900]
[null,null,null,null,null,null,null,null,null,null,null,null,null,null,null,null,null,1900]
[null,null,null,null,null,null,null,null,null,null,null,null,null,null,null,null,null,1900]
[null,null,null,null,null,null,null,null,null,null,null,null,null,null,null,null,null,1900]
[null,null,null,null,null,null,null,null,null,null,null,null,null,null,null,null,null,1900]
[null,null,null,null,null,null,null,null,null,null,null,null,null,null,null,null,null,1900]
[null,null,null,null,null,null,null,null,null,null,null,null,null,null,null,null,null,1900]
[null,null,null,null,null,null,null,null,null,null,null,null,null,null,null,null,null,1900]
[null,null,null,null,null,null,null,null,null,null,null,null,null,null,null,null,null,1900]
[null,null,null,null,null,null,null,null,null,null,null,null,null,null,null,null,null,1900]
[null,null,null,null,null,null,null,null,null,null,null,null,null,null,null,null,null,1900]
[null,null,null,null,null,null,null,null,null,null,null,null,null,null,null,null,null,1900]
[null,null,null,null,null,null,null,null,null,null,null,null,null,null,null,null,null,1900]
[null,null,null,null,null,null,null,null,null,null,null,null,null,null,null,null,null,1900]
[null,null,null,null,null,null,null,null,null,null,null,null,null,null,null,null,null,1900]
[null,null,null,null,null,null,null,null,null,null,null,null,null,null,null,null,null,1900]
[null,null,null,null,null,null,null,null,null,null,null,null,null,null,null,null,null,1900]
[null,null,null,null,null,null,null,null,null,null,null,null,null,null,null,null,null,1900]
[null,null,null,null,null,null,null,null,null,null,null,null,null,null,null,null,null,1900]
[null,null,null,null,null,null,null,null,null,null,null,null,null,null,null,null,null,1900]
[null,null,null,null,null,null,null,null,null,null,null,null,null,null,null,null,null,1900]
[null,null,null,null,null,null,null,null,null,null,null,null,null,null,null,null,null,1900]
[null,null,null,null,null,null,null,null,null,null,null,null,null,null,null,null,null,1900]
[null,null,null,null,null,null,null,null,null,null,null,null,null,null,null,null,null,1900]
[null,null,null,null,null,null,null,null,null,null,null,null,null,null,null,null,null,1900]
[null,null,null,null,null,null,null,null,null,null,null,null,null,null,null,null,null,1900]
[null,null,null,null,null,null,null,null,null,null,null,null,null,null,null,null,null,1900]
[null,null,null,null,null,null,null,null,null,null,null,null,null,null,null,null,null,1900]
[null,null,null,null,null,null,null,null,null,null,null,null,null,null,null,null,null,1900]
[null,null,null,null,null,null,null,null,null,null,null,null,null,null,null,null,null,1900]
[null,null,null,null,null,null,null,null,null,null,null,null,null,null,null,null,null,1900]
[null,null,null,null,null,null,null,null,null,null,null,null,null,null,null,null,null,1900]
[null,null,null,null,null,null,null,null,null,null,null,null,null,null,null,null,null,1900]
[null,null,null,null,null,null,null,null,null,null,null,null,null,null,null,null,null,1900]
[null,null,null,null,null,null,null,null,null,null,null,null,null,null,null,null,null,1900]
[null,null,null,null,null,null,null,null,null,null,null,null,null,null,null,null,null,1900]
[null,null,null,null,null,null,null,null,null,null,null,null,null,null,null,null,null,1900]
[null,null,null,null,null,null,null,null,null,null,null,null,null,null,null,null,null,1900]
[null,null,null,null,null,null,null,null,null,null,null,null,null,null,null,null,null,1900]
[null,null,null,null,null,null,null,null,null,null,null,null,null,null,null,null,null,1900]
[null,null,null,null,null,null,null,null,null,null,null,null,null,null,null,null,null,1900]
[null,null,null,null,null,null,null,null,null,null,null,null,null,null,null,null,null,1900]
[null,null,null,null,null,null,null,null,null,null,null,null,null,null,null,null,null,1900]
[null,null,null,null,null,null,null,null,null,null,null,null,null,null,null,null,null,1900]
[null,null,null,null,null,null,null,null,null,null,null,null,null,null,null,null,null,1900]
[null,null,null,null,null,null,null,null,null,null,null,null,null,null,null,null,null,1900]
[null,null,null,null,null,null,null,null,null,null,null,null,null,null,null,null,null,1900]
[null,null,null,null,null,null,null,null,null,null,null,null,null,null,null,null,null,1900]
[null,null,null,null,null,null,null,null,null,null,null,null,null,null,null,null,null,1900]
[null,null,null,null,null,null,null,null,null,null,null,null,null,null,null,null,null,1900]
[null,null,null,null,null,null,null,null,null,null,null,null,null,null,null,null,null,1900]
[null,null,null,null,null,null,null,null,null,null,null,null,null,null,null,null,null,1900]
[null,null,null,null,null,null,null,null,null,null,null,null,null,null,null,null,null,1900]
[null,null,null,null,null,null,null,null,null,null,null,null,null,null,null,null,null,{"$f":"YEAR(K2566)","v":1900}]
[null,null,null,null,null,null,null,null,null,null,null,null,null,null,null,null,null,1900]
[null,null,null,null,null,null,null,null,null,null,null,null,null,null,null,null,null,1900]
[null,null,null,null,null,null,null,null,null,null,null,null,null,null,null,null,null,1900]
[null,null,null,null,null,null,null,null,null,null,null,null,null,null,null,null,null,1900]
[null,null,null,null,null,null,null,null,null,null,null,null,null,null,null,null,null,1900]
[null,null,null,null,null,null,null,null,null,null,null,null,null,null,null,null,null,1900]
[null,null,null,null,null,null,null,null,null,null,null,null,null,null,null,null,null,1900]
[null,null,null,null,null,null,null,null,null,null,null,null,null,null,null,null,null,1900]
[null,null,null,null,null,null,null,null,null,null,null,null,null,null,null,null,null,1900]
[null,null,null,null,null,null,null,null,null,null,null,null,null,null,null,null,null,1900]
[null,null,null,null,null,null,null,null,null,null,null,null,null,null,null,null,null,1900]
[null,null,null,null,null,null,null,null,null,null,null,null,null,null,null,null,null,1900]
[null,null,null,null,null,null,null,null,null,null,null,null,null,null,null,null,null,1900]
[null,null,null,null,null,null,null,null,null,null,null,null,null,null,null,null,null,1900]
[null,null,null,null,null,null,null,null,null,null,null,null,null,null,null,null,null,1900]
[null,null,null,null,null,null,null,null,null,null,null,null,null,null,null,null,null,1900]
[null,null,null,null,null,null,null,null,null,null,null,null,null,null,null,null,null,1900]
[null,null,null,null,null,null,null,null,null,null,null,null,null,null,null,null,null,1900]
[null,null,null,null,null,null,null,null,null,null,null,null,null,null,null,null,null,1900]
[null,null,null,null,null,null,null,null,null,null,null,null,null,null,null,null,null,1900]
[null,null,null,null,null,null,null,null,null,null,null,null,null,null,null,null,null,1900]
[null,null,null,null,null,null,null,null,null,null,null,null,null,null,null,null,null,1900]
[null,null,null,null,null,null,null,null,null,null,null,null,null,null,null,null,null,1900]
[null,null,null,null,null,null,null,null,null,null,null,null,null,null,null,null,null,1900]
[null,null,null,null,null,null,null,null,null,null,null,null,null,null,null,null,null,1900]
[null,null,null,null,null,null,null,null,null,null,null,null,null,null,null,null,null,1900]
[null,null,null,null,null,null,null,null,null,null,null,null,null,null,null,null,null,1900]
[null,null,null,null,null,null,null,null,null,null,null,null,null,null,null,null,null,1900]
[null,null,null,null,null,null,null,null,null,null,null,null,null,null,null,null,null,1900]
[null,null,null,null,null,null,null,null,null,null,null,null,null,null,null,null,null,1900]
[null,null,null,null,null,null,null,null,null,null,null,null,null,null,null,null,null,1900]
[null,null,null,null,null,null,null,null,null,null,null,null,null,null,null,null,null,1900]
[null,null,null,null,null,null,null,null,null,null,null,null,null,null,null,null,null,1900]
[null,null,null,null,null,null,null,null,null,null,null,null,null,null,null,null,null,1900]
[null,null,null,null,null,null,null,null,null,null,null,null,null,null,null,null,null,1900]
[null,null,null,null,null,null,null,null,null,null,null,null,null,null,null,null,null,1900]
[null,null,null,null,null,null,null,null,null,null,null,null,null,null,null,null,null,1900]
[null,null,null,null,null,null,null,null,null,null,null,null,null,null,null,null,null,1900]
[null,null,null,null,null,null,null,null,null,null,null,null,null,null,null,null,null,1900]
[null,null,null,null,null,null,null,null,null,null,null,null,null,null,null,null,null,1900]
[null,null,null,null,null,null,null,null,null,null,null,null,null,null,null,null,null,1900]
[null,null,null,null,null,null,null,null,null,null,null,null,null,null,null,null,null,1900]
[null,null,null,null,null,null,null,null,null,null,null,null,null,null,null,null,null,1900]
[null,null,null,null,null,null,null,null,null,null,null,null,null,null,null,null,null,1900]
[null,null,null,null,null,null,null,null,null,null,null,null,null,null,null,null,null,1900]
[null,null,null,null,null,null,null,null,null,null,null,null,null,null,null,null,null,1900]
[null,null,null,null,null,null,null,null,null,null,null,null,null,null,null,null,null,1900]
[null,null,null,null,null,null,null,null,null,null,null,null,null,null,null,null,null,1900]
[null,null,null,null,null,null,null,null,null,null,null,null,null,null,null,null,null,1900]
[null,null,null,null,null,null,null,null,null,null,null,null,null,null,null,null,null,1900]
[null,null,null,null,null,null,null,null,null,null,null,null,null,null,null,null,null,1900]
[null,null,null,null,null,null,null,null,null,null,null,null,null,null,null,null,null,1900]
[null,null,null,null,null,null,null,null,null,null,null,null,null,null,null,null,null,1900]
[null,null,null,null,null,null,null,null,null,null,null,null,null,null,null,null,null,1900]
[null,null,null,null,null,null,null,null,null,null,null,null,null,null,null,null,null,1900]
[null,null,null,null,null,null,null,null,null,null,null,null,null,null,null,null,null,1900]
[null,null,null,null,null,null,null,null,null,null,null,null,null,null,null,null,null,1900]
[null,null,null,null,null,null,null,null,null,null,null,null,null,null,null,null,null,1900]
[null,null,null,null,null,null,null,null,null,null,null,null,null,null,null,null,null,1900]
[null,null,null,null,null,null,null,null,null,null,null,null,null,null,null,null,null,1900]
[null,null,null,null,null,null,null,null,null,null,null,null,null,null,null,null,null,1900]
[null,null,null,null,null,null,null,null,null,null,null,null,null,null,null,null,null,1900]
[null,null,null,null,null,null,null,null,null,null,null,null,null,null,null,null,null,1900]
[null,null,null,null,null,null,null,null,null,null,null,null,null,null,null,null,null,{"$f":"YEAR(K2630)","v":1900}]
[null,null,null,null,null,null,null,null,null,null,null,null,null,null,null,null,null,1900]
[null,null,null,null,null,null,null,null,null,null,null,null,null,null,null,null,null,1900]
[null,null,null,null,null,null,null,null,null,null,null,null,null,null,null,null,null,1900]
[null,null,null,null,null,null,null,null,null,null,null,null,null,null,null,null,null,1900]
[null,null,null,null,null,null,null,null,null,null,null,null,null,null,null,null,null,1900]
[null,null,null,null,null,null,null,null,null,null,null,null,null,null,null,null,null,1900]
[null,null,null,null,null,null,null,null,null,null,null,null,null,null,null,null,null,1900]
[null,null,null,null,null,null,null,null,null,null,null,null,null,null,null,null,null,1900]
[null,null,null,null,null,null,null,null,null,null,null,null,null,null,null,null,null,1900]
[null,null,null,null,null,null,null,null,null,null,null,null,null,null,null,null,null,1900]
[null,null,null,null,null,null,null,null,null,null,null,null,null,null,null,null,null,1900]
[null,null,null,null,null,null,null,null,null,null,null,null,null,null,null,null,null,1900]
[null,null,null,null,null,null,null,null,null,null,null,null,null,null,null,null,null,1900]
[null,null,null,null,null,null,null,null,null,null,null,null,null,null,null,null,null,1900]
[null,null,null,null,null,null,null,null,null,null,null,null,null,null,null,null,null,1900]
[null,null,null,null,null,null,null,null,null,null,null,null,null,null,null,null,null,1900]
[null,null,null,null,null,null,null,null,null,null,null,null,null,null,null,null,null,1900]
[null,null,null,null,null,null,null,null,null,null,null,null,null,null,null,null,null,1900]
[null,null,null,null,null,null,null,null,null,null,null,null,null,null,null,null,null,1900]
[null,null,null,null,null,null,null,null,null,null,null,null,null,null,null,null,null,1900]
[null,null,null,null,null,null,null,null,null,null,null,null,null,null,null,null,null,1900]
[null,null,null,null,null,null,null,null,null,null,null,null,null,null,null,null,null,1900]
[null,null,null,null,null,null,null,null,null,null,null,null,null,null,null,null,null,1900]
[null,null,null,null,null,null,null,null,null,null,null,null,null,null,null,null,null,1900]
[null,null,null,null,null,null,null,null,null,null,null,null,null,null,null,null,null,1900]
[null,null,null,null,null,null,null,null,null,null,null,null,null,null,null,null,null,1900]
[null,null,null,null,null,null,null,null,null,null,null,null,null,null,null,null,null,1900]
[null,null,null,null,null,null,null,null,null,null,null,null,null,null,null,null,null,1900]
[null,null,null,null,null,null,null,null,null,null,null,null,null,null,null,null,null,1900]
[null,null,null,null,null,null,null,null,null,null,null,null,null,null,null,null,null,1900]
[null,null,null,null,null,null,null,null,null,null,null,null,null,null,null,null,null,1900]
[null,null,null,null,null,null,null,null,null,null,null,null,null,null,null,null,null,1900]
[null,null,null,null,null,null,null,null,null,null,null,null,null,null,null,null,null,1900]
[null,null,null,null,null,null,null,null,null,null,null,null,null,null,null,null,null,1900]
[null,null,null,null,null,null,null,null,null,null,null,null,null,null,null,null,null,1900]
[null,null,null,null,null,null,null,null,null,null,null,null,null,null,null,null,null,1900]
[null,null,null,null,null,null,null,null,null,null,null,null,null,null,null,null,null,1900]
[null,null,null,null,null,null,null,null,null,null,null,null,null,null,null,null,null,1900]
[null,null,null,null,null,null,null,null,null,null,null,null,null,null,null,null,null,1900]
[null,null,null,null,null,null,null,null,null,null,null,null,null,null,null,null,null,1900]
[null,null,null,null,null,null,null,null,null,null,null,null,null,null,null,null,null,1900]
[null,null,null,null,null,null,null,null,null,null,null,null,null,null,null,null,null,1900]
[null,null,null,null,null,null,null,null,null,null,null,null,null,null,null,null,null,1900]
[null,null,null,null,null,null,null,null,null,null,null,null,null,null,null,null,null,1900]
[null,null,null,null,null,null,null,null,null,null,null,null,null,null,null,null,null,1900]
[null,null,null,null,null,null,null,null,null,null,null,null,null,null,null,null,null,1900]
[null,null,null,null,null,null,null,null,null,null,null,null,null,null,null,null,null,1900]
[null,null,null,null,null,null,null,null,null,null,null,null,null,null,null,null,null,1900]
[null,null,null,null,null,null,null,null,null,null,null,null,null,null,null,null,null,1900]
[null,null,null,null,null,null,null,null,null,null,null,null,null,null,null,null,null,1900]
[null,null,null,null,null,null,null,null,null,null,null,null,null,null,null,null,null,1900]
[null,null,null,null,null,null,null,null,null,null,null,null,null,null,null,null,null,1900]
[null,null,null,null,null,null,null,null,null,null,null,null,null,null,null,null,null,1900]
[null,null,null,null,null,null,null,null,null,null,null,null,null,null,null,null,null,1900]
[null,null,null,null,null,null,null,null,null,null,null,null,null,null,null,null,null,1900]
[null,null,null,null,null,null,null,null,null,null,null,null,null,null,null,null,null,1900]
[null,null,null,null,null,null,null,null,null,null,null,null,null,null,null,null,null,1900]
[null,null,null,null,null,null,null,null,null,null,null,null,null,null,null,null,null,1900]
[null,null,null,null,null,null,null,null,null,null,null,null,null,null,null,null,null,1900]
[null,null,null,null,null,null,null,null,null,null,null,null,null,null,null,null,null,1900]
[null,null,null,null,null,null,null,null,null,null,null,null,null,null,null,null,null,1900]
[null,null,null,null,null,null,null,null,null,null,null,null,null,null,null,null,null,1900]
[null,null,null,null,null,null,null,null,null,null,null,null,null,null,null,null,null,1900]
[null,null,null,null,null,null,null,null,null,null,null,null,null,null,null,null,null,{"$f":"YEAR(K2694)","v":1900}]
[null,null,null,null,null,null,null,null,null,null,null,null,null,null,null,null,null,1900]
[null,null,null,null,null,null,null,null,null,null,null,null,null,null,null,null,null,1900]
[null,null,null,null,null,null,null,null,null,null,null,null,null,null,null,null,null,1900]
[null,null,null,null,null,null,null,null,null,null,null,null,null,null,null,null,null,1900]
[null,null,null,null,null,null,null,null,null,null,null,null,null,null,null,null,null,1900]
[null,null,null,null,null,null,null,null,null,null,null,null,null,null,null,null,null,1900]
[null,null,null,null,null,null,null,null,null,null,null,null,null,null,null,null,null,1900]
[null,null,null,null,null,null,null,null,null,null,null,null,null,null,null,null,null,1900]
[null,null,null,null,null,null,null,null,null,null,null,null,null,null,null,null,null,1900]
[null,null,null,null,null,null,null,null,null,null,null,null,null,null,null,null,null,1900]
[null,null,null,null,null,null,null,null,null,null,null,null,null,null,null,null,null,1900]
[null,null,null,null,null,null,null,null,null,null,null,null,null,null,null,null,null,1900]
[null,null,null,null,null,null,null,null,null,null,null,null,null,null,null,null,null,1900]
[null,null,null,null,null,null,null,null,null,null,null,null,null,null,null,null,null,1900]
[null,null,null,null,null,null,null,null,null,null,null,null,null,null,null,null,null,1900]
[null,null,null,null,null,null,null,null,null,null,null,null,null,null,null,null,null,1900]
[null,null,null,null,null,null,null,null,null,null,null,null,null,null,null,null,null,1900]
[null,null,null,null,null,null,null,null,null,null,null,null,null,null,null,null,null,1900]
[null,null,null,null,null,null,null,null,null,null,null,null,null,null,null,null,null,1900]
[null,null,null,null,null,null,null,null,null,null,null,null,null,null,null,null,null,1900]
[null,null,null,null,null,null,null,null,null,null,null,null,null,null,null,null,null,1900]
[null,null,null,null,null,null,null,null,null,null,null,null,null,null,null,null,null,1900]
[null,null,null,null,null,null,null,null,null,null,null,null,null,null,null,null,null,1900]
[null,null,null,null,null,null,null,null,null,null,null,null,null,null,null,null,null,1900]
[null,null,null,null,null,null,null,null,null,null,null,null,null,null,null,null,null,1900]
[null,null,null,null,null,null,null,null,null,null,null,null,null,null,null,null,null,1900]
[null,null,null,null,null,null,null,null,null,null,null,null,null,null,null,null,null,1900]
[null,null,null,null,null,null,null,null,null,null,null,null,null,null,null,null,null,1900]
[null,null,null,null,null,null,null,null,null,null,null,null,null,null,null,null,null,1900]
[null,null,null,null,null,null,null,null,null,null,null,null,null,null,null,null,null,1900]
[null,null,null,null,null,null,null,null,null,null,null,null,null,null,null,null,null,1900]
[null,null,null,null,null,null,null,null,null,null,null,null,null,null,null,null,null,1900]
[null,null,null,null,null,null,null,null,null,null,null,null,null,null,null,null,null,1900]
[null,null,null,null,null,null,null,null,null,null,null,null,null,null,null,null,null,1900]
[null,null,null,null,null,null,null,null,null,null,null,null,null,null,null,null,null,1900]
[null,null,null,null,null,null,null,null,null,null,null,null,null,null,null,null,null,1900]
[null,null,null,null,null,null,null,null,null,null,null,null,null,null,null,null,null,1900]
[null,null,null,null,null,null,null,null,null,null,null,null,null,null,null,null,null,1900]
[null,null,null,null,null,null,null,null,null,null,null,null,null,null,null,null,null,1900]
[null,null,null,null,null,null,null,null,null,null,null,null,null,null,null,null,null,1900]
[null,null,null,null,null,null,null,null,null,null,null,null,null,null,null,null,null,1900]
[null,null,null,null,null,null,null,null,null,null,null,null,null,null,null,null,null,1900]
[null,null,null,null,null,null,null,null,null,null,null,null,null,null,null,null,null,1900]
[null,null,null,null,null,null,null,null,null,null,null,null,null,null,null,null,null,1900]
[null,null,null,null,null,null,null,null,null,null,null,null,null,null,null,null,null,1900]
[null,null,null,null,null,null,null,null,null,null,null,null,null,null,null,null,null,1900]
[null,null,null,null,null,null,null,null,null,null,null,null,null,null,null,null,null,1900]
[null,null,null,null,null,null,null,null,null,null,null,null,null,null,null,null,null,1900]
[null,null,null,null,null,null,null,null,null,null,null,null,null,null,null,null,null,1900]
[null,null,null,null,null,null,null,null,null,null,null,null,null,null,null,null,null,1900]
[null,null,null,null,null,null,null,null,null,null,null,null,null,null,null,null,null,1900]
[null,null,null,null,null,null,null,null,null,null,null,null,null,null,null,null,null,1900]
[null,null,null,null,null,null,null,null,null,null,null,null,null,null,null,null,null,1900]
[null,null,null,null,null,null,null,null,null,null,null,null,null,null,null,null,null,1900]
[null,null,null,null,null,null,null,null,null,null,null,null,null,null,null,null,null,1900]
[null,null,null,null,null,null,null,null,null,null,null,null,null,null,null,null,null,1900]
[null,null,null,null,null,null,null,null,null,null,null,null,null,null,null,null,null,1900]
[null,null,null,null,null,null,null,null,null,null,null,null,null,null,null,null,null,1900]
[null,null,null,null,null,null,null,null,null,null,null,null,null,null,null,null,null,1900]
[null,null,null,null,null,null,null,null,null,null,null,null,null,null,null,null,null,1900]
[null,null,null,null,null,null,null,null,null,null,null,null,null,null,null,null,null,1900]
[null,null,null,null,null,null,null,null,null,null,null,null,null,null,null,null,null,1900]
[null,null,null,null,null,null,null,null,null,null,null,null,null,null,null,null,null,1900]
[null,null,null,null,null,null,null,null,null,null,null,null,null,null,null,null,null,{"$f":"YEAR(K2758)","v":1900}]
[null,null,null,null,null,null,null,null,null,null,null,null,null,null,null,null,null,1900]
[null,null,null,null,null,null,null,null,null,null,null,null,null,null,null,null,null,1900]
[null,null,null,null,null,null,null,null,null,null,null,null,null,null,null,null,null,1900]
[null,null,null,null,null,null,null,null,null,null,null,null,null,null,null,null,null,1900]
[null,null,null,null,null,null,null,null,null,null,null,null,null,null,null,null,null,1900]
[null,null,null,null,null,null,null,null,null,null,null,null,null,null,null,null,null,1900]
[null,null,null,null,null,null,null,null,null,null,null,null,null,null,null,null,null,1900]
[null,null,null,null,null,null,null,null,null,null,null,null,null,null,null,null,null,1900]
[null,null,null,null,null,null,null,null,null,null,null,null,null,null,null,null,null,1900]
[null,null,null,null,null,null,null,null,null,null,null,null,null,null,null,null,null,1900]
[null,null,null,null,null,null,null,null,null,null,null,null,null,null,null,null,null,1900]
[null,null,null,null,null,null,null,null,null,null,null,null,null,null,null,null,null,1900]
[null,null,null,null,null,null,null,null,null,null,null,null,null,null,null,null,null,1900]
[null,null,null,null,null,null,null,null,null,null,null,null,null,null,null,null,null,1900]
[null,null,null,null,null,null,null,null,null,null,null,null,null,null,null,null,null,1900]
[null,null,null,null,null,null,null,null,null,null,null,null,null,null,null,null,null,1900]
[null,null,null,null,null,null,null,null,null,null,null,null,null,null,null,null,null,1900]
[null,null,null,null,null,null,null,null,null,null,null,null,null,null,null,null,null,1900]
[null,null,null,null,null,null,null,null,null,null,null,null,null,null,null,null,null,1900]
[null,null,null,null,null,null,null,null,null,null,null,null,null,null,null,null,null,1900]
[null,null,null,null,null,null,null,null,null,null,null,null,null,null,null,null,null,1900]
[null,null,null,null,null,null,null,null,null,null,null,null,null,null,null,null,null,1900]
[null,null,null,null,null,null,null,null,null,null,null,null,null,null,null,null,null,1900]
[null,null,null,null,null,null,null,null,null,null,null,null,null,null,null,null,null,1900]
[null,null,null,null,null,null,null,null,null,null,null,null,null,null,null,null,null,1900]
[null,null,null,null,null,null,null,null,null,null,null,null,null,null,null,null,null,1900]
[null,null,null,null,null,null,null,null,null,null,null,null,null,null,null,null,null,1900]
[null,null,null,null,null,null,null,null,null,null,null,null,null,null,null,null,null,1900]
[null,null,null,null,null,null,null,null,null,null,null,null,null,null,null,null,null,1900]
[null,null,null,null,null,null,null,null,null,null,null,null,null,null,null,null,null,1900]
[null,null,null,null,null,null,null,null,null,null,null,null,null,null,null,null,null,1900]
[null,null,null,null,null,null,null,null,null,null,null,null,null,null,null,null,null,1900]
[null,null,null,null,null,null,null,null,null,null,null,null,null,null,null,null,null,1900]
[null,null,null,null,null,null,null,null,null,null,null,null,null,null,null,null,null,1900]
[null,null,null,null,null,null,null,null,null,null,null,null,null,null,null,null,null,1900]
[null,null,null,null,null,null,null,null,null,null,null,null,null,null,null,null,null,1900]
[null,null,null,null,null,null,null,null,null,null,null,null,null,null,null,null,null,1900]
[null,null,null,null,null,null,null,null,null,null,null,null,null,null,null,null,null,1900]
[null,null,null,null,null,null,null,null,null,null,null,null,null,null,null,null,null,1900]
[null,null,null,null,null,null,null,null,null,null,null,null,null,null,null,null,null,1900]
[null,null,null,null,null,null,null,null,null,null,null,null,null,null,null,null,null,1900]
[null,null,null,null,null,null,null,null,null,null,null,null,null,null,null,null,null,1900]
[null,null,null,null,null,null,null,null,null,null,null,null,null,null,null,null,null,1900]
[null,null,null,null,null,null,null,null,null,null,null,null,null,null,null,null,null,1900]
[null,null,null,null,null,null,null,null,null,null,null,null,null,null,null,null,null,1900]
[null,null,null,null,null,null,null,null,null,null,null,null,null,null,null,null,null,1900]
[null,null,null,null,null,null,null,null,null,null,null,null,null,null,null,null,null,1900]
[null,null,null,null,null,null,null,null,null,null,null,null,null,null,null,null,null,1900]
[null,null,null,null,null,null,null,null,null,null,null,null,null,null,null,null,null,1900]
[null,null,null,null,null,null,null,null,null,null,null,null,null,null,null,null,null,1900]
[null,null,null,null,null,null,null,null,null,null,null,null,null,null,null,null,null,1900]
[null,null,null,null,null,null,null,null,null,null,null,null,null,null,null,null,null,1900]
[null,null,null,null,null,null,null,null,null,null,null,null,null,null,null,null,null,1900]
[null,null,null,null,null,null,null,null,null,null,null,null,null,null,null,null,null,1900]
[null,null,null,null,null,null,null,null,null,null,null,null,null,null,null,null,null,1900]
[null,null,null,null,null,null,null,null,null,null,null,null,null,null,null,null,null,1900]
[null,null,null,null,null,null,null,null,null,null,null,null,null,null,null,null,null,1900]
[null,null,null,null,null,null,null,null,null,null,null,null,null,null,null,null,null,1900]
[null,null,null,null,null,null,null,null,null,null,null,null,null,null,null,null,null,1900]
[null,null,null,null,null,null,null,null,null,null,null,null,null,null,null,null,null,1900]
[null,null,null,null,null,null,null,null,null,null,null,null,null,null,null,null,null,1900]
[null,null,null,null,null,null,null,null,null,null,null,null,null,null,null,null,null,1900]
[null,null,null,null,null,null,null,null,null,null,null,null,null,null,null,null,null,1900]
[null,null,null,null,null,null,null,null,null,null,null,null,null,null,null,null,null,{"$f":"YEAR(K2822)","v":1900}]
[null,null,null,null,null,null,null,null,null,null,null,null,null,null,null,null,null,1900]
[null,null,null,null,null,null,null,null,null,null,null,null,null,null,null,null,null,1900]
[null,null,null,null,null,null,null,null,null,null,null,null,null,null,null,null,null,1900]
[null,null,null,null,null,null,null,null,null,null,null,null,null,null,null,null,null,1900]
[null,null,null,null,null,null,null,null,null,null,null,null,null,null,null,null,null,1900]
[null,null,null,null,null,null,null,null,null,null,null,null,null,null,null,null,null,1900]
[null,null,null,null,null,null,null,null,null,null,null,null,null,null,null,null,null,1900]
[null,null,null,null,null,null,null,null,null,null,null,null,null,null,null,null,null,1900]
[null,null,null,null,null,null,null,null,null,null,null,null,null,null,null,null,null,1900]
[null,null,null,null,null,null,null,null,null,null,null,null,null,null,null,null,null,1900]
[null,null,null,null,null,null,null,null,null,null,null,null,null,null,null,null,null,1900]
[null,null,null,null,null,null,null,null,null,null,null,null,null,null,null,null,null,1900]
[null,null,null,null,null,null,null,null,null,null,null,null,null,null,null,null,null,1900]
[null,null,null,null,null,null,null,null,null,null,null,null,null,null,null,null,null,1900]
[null,null,null,null,null,null,null,null,null,null,null,null,null,null,null,null,null,1900]
[null,null,null,null,null,null,null,null,null,null,null,null,null,null,null,null,null,1900]
[null,null,null,null,null,null,null,null,null,null,null,null,null,null,null,null,null,1900]
[null,null,null,null,null,null,null,null,null,null,null,null,null,null,null,null,null,1900]
[null,null,null,null,null,null,null,null,null,null,null,null,null,null,null,null,null,1900]
[null,null,null,null,null,null,null,null,null,null,null,null,null,null,null,null,null,1900]
[null,null,null,null,null,null,null,null,null,null,null,null,null,null,null,null,null,1900]
[null,null,null,null,null,null,null,null,null,null,null,null,null,null,null,null,null,1900]
[null,null,null,null,null,null,null,null,null,null,null,null,null,null,null,null,null,1900]
[null,null,null,null,null,null,null,null,null,null,null,null,null,null,null,null,null,1900]
[null,null,null,null,null,null,null,null,null,null,null,null,null,null,null,null,null,1900]
[null,null,null,null,null,null,null,null,null,null,null,null,null,null,null,null,null,1900]
[null,null,null,null,null,null,null,null,null,null,null,null,null,null,null,null,null,1900]
[null,null,null,null,null,null,null,null,null,null,null,null,null,null,null,null,null,1900]
[null,null,null,null,null,null,null,null,null,null,null,null,null,null,null,null,null,1900]
[null,null,null,null,null,null,null,null,null,null,null,null,null,null,null,null,null,1900]
[null,null,null,null,null,null,null,null,null,null,null,null,null,null,null,null,null,1900]
[null,null,null,null,null,null,null,null,null,null,null,null,null,null,null,null,null,1900]
[null,null,null,null,null,null,null,null,null,null,null,null,null,null,null,null,null,1900]
[null,null,null,null,null,null,null,null,null,null,null,null,null,null,null,null,null,1900]
[null,null,null,null,null,null,null,null,null,null,null,null,null,null,null,null,null,1900]
[null,null,null,null,null,null,null,null,null,null,null,null,null,null,null,null,null,1900]
[null,null,null,null,null,null,null,null,null,null,null,null,null,null,null,null,null,1900]
[null,null,null,null,null,null,null,null,null,null,null,null,null,null,null,null,null,1900]
[null,null,null,null,null,null,null,null,null,null,null,null,null,null,null,null,null,1900]
[null,null,null,null,null,null,null,null,null,null,null,null,null,null,null,null,null,1900]
[null,null,null,null,null,null,null,null,null,null,null,null,null,null,null,null,null,1900]
[null,null,null,null,null,null,null,null,null,null,null,null,null,null,null,null,null,1900]
[null,null,null,null,null,null,null,null,null,null,null,null,null,null,null,null,null,1900]
[null,null,null,null,null,null,null,null,null,null,null,null,null,null,null,null,null,1900]
[null,null,null,null,null,null,null,null,null,null,null,null,null,null,null,null,null,1900]
[null,null,null,null,null,null,null,null,null,null,null,null,null,null,null,null,null,1900]
[null,null,null,null,null,null,null,null,null,null,null,null,null,null,null,null,null,1900]
[null,null,null,null,null,null,null,null,null,null,null,null,null,null,null,null,null,1900]
[null,null,null,null,null,null,null,null,null,null,null,null,null,null,null,null,null,1900]
[null,null,null,null,null,null,null,null,null,null,null,null,null,null,null,null,null,1900]
[null,null,null,null,null,null,null,null,null,null,null,null,null,null,null,null,null,1900]
[null,null,null,null,null,null,null,null,null,null,null,null,null,null,null,null,null,1900]
[null,null,null,null,null,null,null,null,null,null,null,null,null,null,null,null,null,1900]
[null,null,null,null,null,null,null,null,null,null,null,null,null,null,null,null,null,1900]
[null,null,null,null,null,null,null,null,null,null,null,null,null,null,null,null,null,1900]
[null,null,null,null,null,null,null,null,null,null,null,null,null,null,null,null,null,1900]
[null,null,null,null,null,null,null,null,null,null,null,null,null,null,null,null,null,1900]
[null,null,null,null,null,null,null,null,null,null,null,null,null,null,null,null,null,1900]
[null,null,null,null,null,null,null,null,null,null,null,null,null,null,null,null,null,1900]
[null,null,null,null,null,null,null,null,null,null,null,null,null,null,null,null,null,1900]
[null,null,null,null,null,null,null,null,null,null,null,null,null,null,null,null,null,1900]
[null,null,null,null,null,null,null,null,null,null,null,null,null,null,null,null,null,1900]
[null,null,null,null,null,null,null,null,null,null,null,null,null,null,null,null,null,1900]
[null,null,null,null,null,null,null,null,null,null,null,null,null,null,null,null,null,{"$f":"YEAR(K2886)","v":1900}]
[null,null,null,null,null,null,null,null,null,null,null,null,null,null,null,null,null,1900]
[null,null,null,null,null,null,null,null,null,null,null,null,null,null,null,null,null,1900]
[null,null,null,null,null,null,null,null,null,null,null,null,null,null,null,null,null,1900]
[null,null,null,null,null,null,null,null,null,null,null,null,null,null,null,null,null,1900]
[null,null,null,null,null,null,null,null,null,null,null,null,null,null,null,null,null,1900]
[null,null,null,null,null,null,null,null,null,null,null,null,null,null,null,null,null,1900]
[null,null,null,null,null,null,null,null,null,null,null,null,null,null,null,null,null,1900]
[null,null,null,null,null,null,null,null,null,null,null,null,null,null,null,null,null,1900]
[null,null,null,null,null,null,null,null,null,null,null,null,null,null,null,null,null,1900]
[null,null,null,null,null,null,null,null,null,null,null,null,null,null,null,null,null,1900]
[null,null,null,null,null,null,null,null,null,null,null,null,null,null,null,null,null,1900]
[null,null,null,null,null,null,null,null,null,null,null,null,null,null,null,null,null,1900]
[null,null,null,null,null,null,null,null,null,null,null,null,null,null,null,null,null,1900]
[null,null,null,null,null,null,null,null,null,null,null,null,null,null,null,null,null,1900]
[null,null,null,null,null,null,null,null,null,null,null,null,null,null,null,null,null,1900]
[null,null,null,null,null,null,null,null,null,null,null,null,null,null,null,null,null,1900]
[null,null,null,null,null,null,null,null,null,null,null,null,null,null,null,null,null,1900]
[null,null,null,null,null,null,null,null,null,null,null,null,null,null,null,null,null,1900]
[null,null,null,null,null,null,null,null,null,null,null,null,null,null,null,null,null,1900]
[null,null,null,null,null,null,null,null,null,null,null,null,null,null,null,null,null,1900]
[null,null,null,null,null,null,null,null,null,null,null,null,null,null,null,null,null,1900]
[null,null,null,null,null,null,null,null,null,null,null,null,null,null,null,null,null,1900]
[null,null,null,null,null,null,null,null,null,null,null,null,null,null,null,null,null,1900]
[null,null,null,null,null,null,null,null,null,null,null,null,null,null,null,null,null,1900]
[null,null,null,null,null,null,null,null,null,null,null,null,null,null,null,null,null,1900]
[null,null,null,null,null,null,null,null,null,null,null,null,null,null,null,null,null,1900]
[null,null,null,null,null,null,null,null,null,null,null,null,null,null,null,null,null,1900]
[null,null,null,null,null,null,null,null,null,null,null,null,null,null,null,null,null,1900]
[null,null,null,null,null,null,null,null,null,null,null,null,null,null,null,null,null,1900]
[null,null,null,null,null,null,null,null,null,null,null,null,null,null,null,null,null,1900]
[null,null,null,null,null,null,null,null,null,null,null,null,null,null,null,null,null,1900]
[null,null,null,null,null,null,null,null,null,null,null,null,null,null,null,null,null,1900]
[null,null,null,null,null,null,null,null,null,null,null,null,null,null,null,null,null,1900]
[null,null,null,null,null,null,null,null,null,null,null,null,null,null,null,null,null,1900]
[null,null,null,null,null,null,null,null,null,null,null,null,null,null,null,null,null,1900]
[null,null,null,null,null,null,null,null,null,null,null,null,null,null,null,null,null,1900]
[null,null,null,null,null,null,null,null,null,null,null,null,null,null,null,null,null,1900]
[null,null,null,null,null,null,null,null,null,null,null,null,null,null,null,null,null,1900]
[null,null,null,null,null,null,null,null,null,null,null,null,null,null,null,null,null,1900]
[null,null,null,null,null,null,null,null,null,null,null,null,null,null,null,null,null,1900]
[null,null,null,null,null,null,null,null,null,null,null,null,null,null,null,null,null,1900]
[null,null,null,null,null,null,null,null,null,null,null,null,null,null,null,null,null,1900]
[null,null,null,null,null,null,null,null,null,null,null,null,null,null,null,null,null,1900]
[null,null,null,null,null,null,null,null,null,null,null,null,null,null,null,null,null,1900]
[null,null,null,null,null,null,null,null,null,null,null,null,null,null,null,null,null,1900]
[null,null,null,null,null,null,null,null,null,null,null,null,null,null,null,null,null,1900]
[null,null,null,null,null,null,null,null,null,null,null,null,null,null,null,null,null,1900]
[null,null,null,null,null,null,null,null,null,null,null,null,null,null,null,null,null,1900]
[null,null,null,null,null,null,null,null,null,null,null,null,null,null,null,null,null,1900]
[null,null,null,null,null,null,null,null,null,null,null,null,null,null,null,null,null,1900]
[null,null,null,null,null,null,null,null,null,null,null,null,null,null,null,null,null,1900]
[null,null,null,null,null,null,null,null,null,null,null,null,null,null,null,null,null,1900]
[null,null,null,null,null,null,null,null,null,null,null,null,null,null,null,null,null,1900]
[null,null,null,null,null,null,null,null,null,null,null,null,null,null,null,null,null,1900]
[null,null,null,null,null,null,null,null,null,null,null,null,null,null,null,null,null,1900]
[null,null,null,null,null,null,null,null,null,null,null,null,null,null,null,null,null,1900]
[null,null,null,null,null,null,null,null,null,null,null,null,null,null,null,null,null,1900]
[null,null,null,null,null,null,null,null,null,null,null,null,null,null,null,null,null,1900]
[null,null,null,null,null,null,null,null,null,null,null,null,null,null,null,null,null,1900]
[null,null,null,null,null,null,null,null,null,null,null,null,null,null,null,null,null,1900]
[null,null,null,null,null,null,null,null,null,null,null,null,null,null,null,null,null,1900]
[null,null,null,null,null,null,null,null,null,null,null,null,null,null,null,null,null,1900]
[null,null,null,null,null,null,null,null,null,null,null,null,null,null,null,null,null,1900]
[null,null,null,null,null,null,null,null,null,null,null,null,null,null,null,null,null,{"$f":"YEAR(K2950)","v":1900}]
[null,null,null,null,null,null,null,null,null,null,null,null,null,null,null,null,null,1900]
[null,null,null,null,null,null,null,null,null,null,null,null,null,null,null,null,null,1900]
[null,null,null,null,null,null,null,null,null,null,null,null,null,null,null,null,null,1900]
[null,null,null,null,null,null,null,null,null,null,null,null,null,null,null,null,null,1900]
[null,null,null,null,null,null,null,null,null,null,null,null,null,null,null,null,null,1900]
[null,null,null,null,null,null,null,null,null,null,null,null,null,null,null,null,null,1900]
[null,null,null,null,null,null,null,null,null,null,null,null,null,null,null,null,null,1900]
[null,null,null,null,null,null,null,null,null,null,null,null,null,null,null,null,null,1900]
[null,null,null,null,null,null,null,null,null,null,null,null,null,null,null,null,null,1900]
[null,null,null,null,null,null,null,null,null,null,null,null,null,null,null,null,null,1900]
[null,null,null,null,null,null,null,null,null,null,null,null,null,null,null,null,null,1900]
[null,null,null,null,null,null,null,null,null,null,null,null,null,null,null,null,null,1900]
[null,null,null,null,null,null,null,null,null,null,null,null,null,null,null,null,null,1900]
[null,null,null,null,null,null,null,null,null,null,null,null,null,null,null,null,null,1900]
[null,null,null,null,null,null,null,null,null,null,null,null,null,null,null,null,null,1900]
[null,null,null,null,null,null,null,null,null,null,null,null,null,null,null,null,null,1900]
[null,null,null,null,null,null,null,null,null,null,null,null,null,null,null,null,null,1900]
[null,null,null,null,null,null,null,null,null,null,null,null,null,null,null,null,null,1900]
[null,null,null,null,null,null,null,null,null,null,null,null,null,null,null,null,null,1900]
[null,null,null,null,null,null,null,null,null,null,null,null,null,null,null,null,null,1900]
[null,null,null,null,null,null,null,null,null,null,null,null,null,null,null,null,null,1900]
[null,null,null,null,null,null,null,null,null,null,null,null,null,null,null,null,null,1900]
[null,null,null,null,null,null,null,null,null,null,null,null,null,null,null,null,null,1900]
[null,null,null,null,null,null,null,null,null,null,null,null,null,null,null,null,null,1900]
[null,null,null,null,null,null,null,null,null,null,null,null,null,null,null,null,null,1900]
[null,null,null,null,null,null,null,null,null,null,null,null,null,null,null,null,null,1900]
[null,null,null,null,null,null,null,null,null,null,null,null,null,null,null,null,null,1900]
[null,null,null,null,null,null,null,null,null,null,null,null,null,null,null,null,null,1900]
[null,null,null,null,null,null,null,null,null,null,null,null,null,null,null,null,null,1900]
[null,null,null,null,null,null,null,null,null,null,null,null,null,null,null,null,null,1900]
[null,null,null,null,null,null,null,null,null,null,null,null,null,null,null,null,null,1900]
[null,null,null,null,null,null,null,null,null,null,null,null,null,null,null,null,null,1900]
[null,null,null,null,null,null,null,null,null,null,null,null,null,null,null,null,null,1900]
[null,null,null,null,null,null,null,null,null,null,null,null,null,null,null,null,null,1900]
[null,null,null,null,null,null,null,null,null,null,null,null,null,null,null,null,null,1900]
[null,null,null,null,null,null,null,null,null,null,null,null,null,null,null,null,null,1900]
[null,null,null,null,null,null,null,null,null,null,null,null,null,null,null,null,null,1900]
[null,null,null,null,null,null,null,null,null,null,null,null,null,null,null,null,null,1900]
[null,null,null,null,null,null,null,null,null,null,null,null,null,null,null,null,null,1900]
[null,null,null,null,null,null,null,null,null,null,null,null,null,null,null,null,null,1900]
[null,null,null,null,null,null,null,null,null,null,null,null,null,null,null,null,null,1900]
[null,null,null,null,null,null,null,null,null,null,null,null,null,null,null,null,null,1900]
[null,null,null,null,null,null,null,null,null,null,null,null,null,null,null,null,null,1900]
[null,null,null,null,null,null,null,null,null,null,null,null,null,null,null,null,null,1900]
[null,null,null,null,null,null,null,null,null,null,null,null,null,null,null,null,null,1900]
[null,null,null,null,null,null,null,null,null,null,null,null,null,null,null,null,null,1900]
[null,null,null,null,null,null,null,null,null,null,null,null,null,null,null,null,null,1900]
[null,null,null,null,null,null,null,null,null,null,null,null,null,null,null,null,null,1900]
[null,null,null,null,null,null,null,null,null,null,null,null,null,null,null,null,null,1900]
[null,null,null,null,null,null,null,null,null,null,null,null,null,null,null,null,null,1900]
[null,null,null,null,null,null,null,null,null,null,null,null,null,null,null,null,null,1900]
[null,null,null,null,null,null,null,null,null,null,null,null,null,null,null,null,null,1900]
[null,null,null,null,null,null,null,null,null,null,null,null,null,null,null,null,null,1900]
[null,null,null,null,null,null,null,null,null,null,null,null,null,null,null,null,null,1900]
[null,null,null,null,null,null,null,null,null,null,null,null,null,null,null,null,null,1900]
[null,null,null,null,null,null,null,null,null,null,null,null,null,null,null,null,null,1900]
[null,null,null,null,null,null,null,null,null,null,null,null,null,null,null,null,null,1900]
[null,null,null,null,null,null,null,null,null,null,null,null,null,null,null,null,null,1900]
[null,null,null,null,null,null,null,null,null,null,null,null,null,null,null,null,null,1900]
[null,null,null,null,null,null,null,null,null,null,null,null,null,null,null,null,null,1900]
[null,null,null,null,null,null,null,null,null,null,null,null,null,null,null,null,null,1900]
[null,null,null,null,null,null,null,null,null,null,null,null,null,null,null,null,null,1900]
[null,null,null,null,null,null,null,null,null,null,null,null,null,null,null,null,null,1900]
[null,null,null,null,null,null,null,null,null,null,null,null,null,null,null,null,null,{"$f":"YEAR(K3014)","v":1900}]
[null,null,null,null,null,null,null,null,null,null,null,null,null,null,null,null,null,1900]
[null,null,null,null,null,null,null,null,null,null,null,null,null,null,null,null,null,1900]
[null,null,null,null,null,null,null,null,null,null,null,null,null,null,null,null,null,1900]
[null,null,null,null,null,null,null,null,null,null,null,null,null,null,null,null,null,1900]
[null,null,null,null,null,null,null,null,null,null,null,null,null,null,null,null,null,1900]
[null,null,null,null,null,null,null,null,null,null,null,null,null,null,null,null,null,1900]
[null,null,null,null,null,null,null,null,null,null,null,null,null,null,null,null,null,1900]
[null,null,null,null,null,null,null,null,null,null,null,null,null,null,null,null,null,1900]
[null,null,null,null,null,null,null,null,null,null,null,null,null,null,null,null,null,1900]
[null,null,null,null,null,null,null,null,null,null,null,null,null,null,null,null,null,1900]
[null,null,null,null,null,null,null,null,null,null,null,null,null,null,null,null,null,1900]
[null,null,null,null,null,null,null,null,null,null,null,null,null,null,null,null,null,1900]
[null,null,null,null,null,null,null,null,null,null,null,null,null,null,null,null,null,1900]
[null,null,null,null,null,null,null,null,null,null,null,null,null,null,null,null,null,1900]
[null,null,null,null,null,null,null,null,null,null,null,null,null,null,null,null,null,1900]
[null,null,null,null,null,null,null,null,null,null,null,null,null,null,null,null,null,1900]
[null,null,null,null,null,null,null,null,null,null,null,null,null,null,null,null,null,1900]
[null,null,null,null,null,null,null,null,null,null,null,null,null,null,null,null,null,1900]
[null,null,null,null,null,null,null,null,null,null,null,null,null,null,null,null,null,1900]
[null,null,null,null,null,null,null,null,null,null,null,null,null,null,null,null,null,1900]
[null,null,null,null,null,null,null,null,null,null,null,null,null,null,null,null,null,1900]
[null,null,null,null,null,null,null,null,null,null,null,null,null,null,null,null,null,1900]
[null,null,null,null,null,null,null,null,null,null,null,null,null,null,null,null,null,1900]
[null,null,null,null,null,null,null,null,null,null,null,null,null,null,null,null,null,1900]
[null,null,null,null,null,null,null,null,null,null,null,null,null,null,null,null,null,1900]
[null,null,null,null,null,null,null,null,null,null,null,null,null,null,null,null,null,1900]
[null,null,null,null,null,null,null,null,null,null,null,null,null,null,null,null,null,1900]
[null,null,null,null,null,null,null,null,null,null,null,null,null,null,null,null,null,1900]
[null,null,null,null,null,null,null,null,null,null,null,null,null,null,null,null,null,1900]
[null,null,null,null,null,null,null,null,null,null,null,null,null,null,null,null,null,1900]
[null,null,null,null,null,null,null,null,null,null,null,null,null,null,null,null,null,1900]
[null,null,null,null,null,null,null,null,null,null,null,null,null,null,null,null,null,1900]
[null,null,null,null,null,null,null,null,null,null,null,null,null,null,null,null,null,1900]
[null,null,null,null,null,null,null,null,null,null,null,null,null,null,null,null,null,1900]
[null,null,null,null,null,null,null,null,null,null,null,null,null,null,null,null,null,1900]
[null,null,null,null,null,null,null,null,null,null,null,null,null,null,null,null,null,1900]
[null,null,null,null,null,null,null,null,null,null,null,null,null,null,null,null,null,1900]
[null,null,null,null,null,null,null,null,null,null,null,null,null,null,null,null,null,1900]
[null,null,null,null,null,null,null,null,null,null,null,null,null,null,null,null,null,1900]
[null,null,null,null,null,null,null,null,null,null,null,null,null,null,null,null,null,1900]
[null,null,null,null,null,null,null,null,null,null,null,null,null,null,null,null,null,1900]
[null,null,null,null,null,null,null,null,null,null,null,null,null,null,null,null,null,1900]
[null,null,null,null,null,null,null,null,null,null,null,null,null,null,null,null,null,1900]
[null,null,null,null,null,null,null,null,null,null,null,null,null,null,null,null,null,1900]
[null,null,null,null,null,null,null,null,null,null,null,null,null,null,null,null,null,1900]
[null,null,null,null,null,null,null,null,null,null,null,null,null,null,null,null,null,1900]
[null,null,null,null,null,null,null,null,null,null,null,null,null,null,null,null,null,1900]
[null,null,null,null,null,null,null,null,null,null,null,null,null,null,null,null,null,1900]
[null,null,null,null,null,null,null,null,null,null,null,null,null,null,null,null,null,1900]
[null,null,null,null,null,null,null,null,null,null,null,null,null,null,null,null,null,1900]
[null,null,null,null,null,null,null,null,null,null,null,null,null,null,null,null,null,1900]
[null,null,null,null,null,null,null,null,null,null,null,null,null,null,null,null,null,1900]
[null,null,null,null,null,null,null,null,null,null,null,null,null,null,null,null,null,1900]
[null,null,null,null,null,null,null,null,null,null,null,null,null,null,null,null,null,1900]
[null,null,null,null,null,null,null,null,null,null,null,null,null,null,null,null,null,1900]
[null,null,null,null,null,null,null,null,null,null,null,null,null,null,null,null,null,1900]
[null,null,null,null,null,null,null,null,null,null,null,null,null,null,null,null,null,1900]
[null,null,null,null,null,null,null,null,null,null,null,null,null,null,null,null,null,1900]
[null,null,null,null,null,null,null,null,null,null,null,null,null,null,null,null,null,1900]
[null,null,null,null,null,null,null,null,null,null,null,null,null,null,null,null,null,1900]
[null,null,null,null,null,null,null,null,null,null,null,null,null,null,null,null,null,1900]
[null,null,null,null,null,null,null,null,null,null,null,null,null,null,null,null,null,1900]
[null,null,null,null,null,null,null,null,null,null,null,null,null,null,null,null,null,1900]
[null,null,null,null,null,null,null,null,null,null,null,null,null,null,null,null,null,{"$f":"YEAR(K3078)","v":1900}]
[null,null,null,null,null,null,null,null,null,null,null,null,null,null,null,null,null,1900]
[null,null,null,null,null,null,null,null,null,null,null,null,null,null,null,null,null,1900]
[null,null,null,null,null,null,null,null,null,null,null,null,null,null,null,null,null,1900]
[null,null,null,null,null,null,null,null,null,null,null,null,null,null,null,null,null,1900]
[null,null,null,null,null,null,null,null,null,null,null,null,null,null,null,null,null,1900]
[null,null,null,null,null,null,null,null,null,null,null,null,null,null,null,null,null,1900]
[null,null,null,null,null,null,null,null,null,null,null,null,null,null,null,null,null,1900]
[null,null,null,null,null,null,null,null,null,null,null,null,null,null,null,null,null,1900]
[null,null,null,null,null,null,null,null,null,null,null,null,null,null,null,null,null,1900]
[null,null,null,null,null,null,null,null,null,null,null,null,null,null,null,null,null,1900]

{"sheet":"التقرير","index":2,"n_rows":5,"n_cols":13,"rows_kept":5,"cut":false,"hidden":false,"merged":[]}
[]
[null,null,"من","2022-09-26"]
[null,null,"الى","2022-10-01"]
[]
["م","الاسم","كود طالب","تاريخ تقديم الملف","الرقم القومى","اسم الاب","الوظيفة","محل الإقامة","التليفون","رقم الايصال","تاريخ السداد المصروفات","ملاحظات","النوع"]

{"sheet":"ايصال","index":3,"n_rows":17,"n_cols":9,"rows_kept":17,"cut":false,"hidden":false,"merged":[[15,1,15,3],[10,2,10,7],[4,1,4,8]]}
[]
[null,0]
[null,0]
[null,0]
[null,"إيـــصــــــــال إستـــــــــــــــــــلام"]
[null,0]
[null,"المبـــــــــــلغ :",null,null,null,null,null,null,"Customer No:"]
[null,0]
[null,"استلمت من /",null,null,null,null,"عن سنة"]
[null,0]
[null,"مبلــغ وقــدره /"]
[null,0]
[null,"وذلـــــــك عن "]
[null,0]
[null,0,null,null,null,"توقيع المستلم",null,"تحـــريـرا فــى"]
[null,0]
[null,0]